{"text_format":"1","workbook":"xlsx","n_sheets":6,"sheets":["Turnierplan Eingabe Resultate","AUSWERTUNG VORRUNDE","Schiri-Zettel","Turnierplan nur für Ausdruck","Ranglisten","Hilfstabelle"],"not_rendered":{"charts":0,"images":2,"macros":1,"external_links":1,"defined_names":8,"comments":3,"pivot_tables":0},"unopened":[],"bounds":{"document_bytes":16777216,"sheet_cells":100000,"rows_first":2000,"rows_last":500,"rows_between":2000,"halvings":0,"cell_chars":16384,"cell_head_chars":4096},"cells_cut":0,"cells_raw":0,"read":"whole","date_system":"1900"}

{"sheet":"Turnierplan Eingabe Resultate","index":0,"n_rows":95,"n_cols":51,"rows_kept":95,"cut":false,"hidden":false,"merged":[[93,25,93,26],[0,13,0,19],[22,4,22,10],[22,11,22,17],[22,18,22,24],[2,13,5,31],[40,0,40,24],[50,0,50,24]]}
[null,null,null,null,null,null,null,null,null,null,null,null,null,"2018-06-09"]
[]
[null,null,null,null,null,null,null,null,null,null,null,null,null,"10. Unihockey Turnier"]
[]
[]
[]
["Turnierplan"]
[]
["Gruppe A",null,null,null,null,null,null,null,null,null,null,null,null,"Gruppe B",null,null,null,null,null,null,null,null,null,null,"Gruppe C",null,null,null,null,null,null,null,null,null,"Gruppe D1"]
[1,"=","Büspi Flyers 1",null,null,null,null,null,null,null,null,null,null,{"$f":"A13+1","v":5},"=","Rappi Jona Flames 1",null,null,null,null,null,null,null,null,{"$f":"N13+1","v":9},"=","btv chur unihockey 1",null,null,null,null,null,null,null,{"$f":"Y15+1","v":15},"=","UHC PSW"]
[{"$f":"A10+1","v":2},"=","Special Alligators 1",null,null,null,null,null,null,null,null,null,null,{"$f":"N10+1","v":6},"=","Bärau Tigers 1",null,null,null,null,null,null,null,null,{"$f":"Y10+1","v":10},"=","Special Alligators 2",null,null,null,null,null,null,null,{"$f":"AI10+1","v":16},"=","btv chur unihockey 2"]
[{"$f":"A11+1","v":3},"=","Vindonissa Tigers",null,null,null,null,null,null,null,null,null,null,7,"=","Altra Ducks",null,null,null,null,null,null,null,null,{"$f":"Y11+1","v":11},"=","Schulheim  Chur",null,null,null,null,null,null,null,{"$f":"AI11+1","v":17},"=","Black Panthers"]
[4,"=","FC Zürisee 1",null,null,null,null,null,null,null,null,null,null,8,"=","Junkihüpfer Wohlen",null,null,null,null,null,null,null,null,12,"=","FC Zürisee 2",null,null,null,null,null,null,null,{"$f":"AI12+1","v":18},"=","Bünzgeister"]
[null,null,null,null,null,null,null,null,null,null,null,null,null,null,null,null,null,null,null,null,null,null,null,null,13,"=","Le Tigri 1",null,null,null,null,null,null,null,{"$f":"AI13+1","v":19},"=","Le Tigri 2"]
[null,null,null,null,null,null,null,null,null,null,null,null,null,null,null,null,null,null,null,null,null,null,null,null,14,"=","Winti United 1",null,null,null,null,null,null,null,{"$f":"AI14+1","v":20},"=","La Branche"]
[]
[]
[]
[null,null,null,null,null,null,null,null,null,null,null,null,null,null,null,null,null,null,null,null,null,null,null,null,null,null,null,null,null,null,null,null,null,null,"Gruppe D2"]
[null,null,null,null,null,null,null,null,null,null,null,null,null,null,null,null,null,null,null,null,null,null,null,null,null,null,null,null,null,null,null,null,null,null,{"$f":"AI15+1","v":21},"=","Insieme Rheintal Gators"]
[null,null,null,null,null,null,null,null,null,null,null,null,null,null,null,null,null,null,null,null,null,null,null,null,null,null,null,null,null,null,null,null,null,null,{"$f":"AI20+1","v":22},"=","btv chur unihockey 3"]
[null,null,null,null,null,null,null,null,null,null,null,null,null,null,null,null,null,null,null,null,null,null,null,null,null,null,null,null,null,null,null,null,null,null,{"$f":"AI21+1","v":23},"=","Vindonissa Panthers"]
[null,null,null,null,"Halle 1",null,null,null,null,null,null,"Halle 2",null,null,null,null,null,null,"Halle 3",null,null,null,null,null,null,null,null,null,null,null,null,null,null,null,24,"=","Rappi Jona Flames 2"]
["Rn",null,"Zeit",null,null,"Spiel",null,null,null,"Res.",null,null,"Spiel",null,null,null,"Res.",null,null,"Spiel",null,null,null,"Res.",null,null,null,null,null,null,null,null,null,null,25,"=","Winti United 2"]
[1,"09:00:00","-",{"$f":"B25+$AY$25","v":"09:12:00"},10,":",9,null,3,":",2,11,":",12,null,1,":",9,21,":",22,null,2,":",2,null,null,null,null,null,null,null,null,null,null,null,null,null,null,null,null,null,null,null,null,null,null,null,null,"Spielzeit Vorrunde:",{"$f":"TIME(0,12,0)","v":"00:12:00"}]
[{"$f":"A25+1","v":2},{"$f":"B25+$AY$26","v":"09:15:00"},"-",{"$f":"B26+$AY$25","v":"09:27:00"},1,":",2,null,7,":",2,3,":",4,null,1,":",4,23,":",24,null,3,":",0,null,null,null,null,null,null,null,null,null,null,null,null,null,null,null,null,null,null,null,null,null,null,null,null,"Abstand Startzeiten",{"$f":"TIME(0,15,0)","v":"00:15:00"}]
[{"$f":"A26+1","v":3},{"$f":"B26+$AY$26","v":"09:30:00"},"-","09:42:00",15,":",16,null,5,":",2,17,":",18,null,1,":",3,7,":",8,null,2,":",5]
[4,"09:45:00","-","09:57:00",13,":",14,null,3,":",2,19,":",20,null,1,":",5,5,":",6,null,2,":",3]
[5,"10:00:00","-","10:12:00",1,":",3,null,4,":",1,2,":",4,null,3,":",2,25,":",21,null,3,":",1]
[6,"10:15:00","-","10:27:00",5,":",7,null,6,":",4,6,":",8,null,0,":",8,22,":",23,null,2,":",2]
[7,"10:30:00","-","10:42:00",11,":",9,null,2,":",6,10,":",13,null,0,":",4,12,":",14,null,4,":",3]
[8,"10:45:00","-","10:57:00",15,":",17,null,0,":",2,16,":",19,null,6,":",0,18,":",20,null,4,":",5]
[9,"11:00:00","-","11:12:00",2,":",3,null,4,":",1,4,":",1,null,3,":",3,24,":",25,null,2,":",2]
[10,"11:15:00","-","11:27:00",8,":",5,null,4,":",2,6,":",7,null,5,":",2,21,":",23,null,1,":",6]
[11,"11:30:00","-","11:42:00",9,":",13,null,2,":",1,10,":",12,null,3,":",2,14,":",11,null,8,":",1]
[12,"11:45:00","-","11:57:00",15,":",19,null,6,":",1,16,":",18,null,1,":",1,20,":",17,null,1,":",6]
[13,"12:00:00","-","12:12:00",2,":",1,null,3,":",3,4,":",3,null,5,":",0,22,":",24,null,2,":",3]
[14,"12:15:00","-","12:27:00",8,":",7,null,3,":",2,6,":",5,null,2,":",1,23,":",25,null,3,":",3]
[15,"12:30:00","-",{"$f":"B39+$AY$25","v":"12:42:00"},12,":",9,null,2,":",2,14,":",10,null,1,":",4,11,":",13,null,0,":",6]
[16,{"$f":"B39+$AY$26","v":"12:45:00"},"-","12:57:00",18,":",15,null,0,":",7,20,":",16,null,2,":",6,17,":",19,null,5,":",0]
["13:30 Uhr Begrüssung und Teampräsentation"]
[{"$f":"A40+1","v":17},"14:00:00","-",{"$f":"B42+$AY$25","v":"14:12:00"},3,":",1,null,0,":",3,4,":",2,null,4,":",3,24,":",21,null,4,":",0]
[18,{"$f":"B42+$AY$26","v":"14:15:00"},"-","14:27:00",7,":",5,null,2,":",3,8,":",6,null,4,":",2,25,":",22,null,1,":",6]
[19,"14:30:00","-","14:42:00",14,":",9,null,2,":",3,10,":",11,null,5,":",0,13,":",12,null,3,":",5]
[20,"14:45:00","-","14:57:00",20,":",15,null,2,":",3,16,":",17,null,1,":",3,19,":",18,null,2,":",5]
[21,"15:00:00","-","15:12:00",3,":",2,null,1,":",3,"3.D2",":","4.D2",null,0,":",1,1,":",4,null,4,":",2]
[22,"15:15:00","-","15:27:00",5,":",8,null,2,":",3,"1.D2",":","2.D2",null,4,":",0,7,":",6,null,0,":",6]
[23,"15:30:00","-","15:42:00","3.C",":","4.C",null,1,":",2,"1.C",":","2.C",null,4,":",0,"5.C",":","6.C",null,2,":",3]
[24,"15:45:00","-","15:57:00","3.D1",":","4.D1",null,3,":",2,"1.D1",":","2.D1",null,0,":",1,"5.D1",":","6.D1",null,4,":",3]
[]
["ca. 16.15 Uhr Rangverkündigung mit Medaillenübergabe"]
[]
[]
[]
[]
[null,null,null,null,null,"Mannschaft:",null,null,null,null,null,"Summe:",null,null,null,null,null,null,null,null,null,null,null,"Spiele:"]
[null,null,null,"Kontrolle:",null,null,1,{"$f":"COUNTIF($E$25:$G$51,G57)","v":4},{"$f":"COUNTIF($L$25:$N$51,G57)","v":1},null,{"$f":"COUNTIF($S$25:$U$51,G57)","v":1},{"$f":"SUM(H57:K57)","v":6}]
[null,null,null,null,null,null,2,4,2,null,0,{"$f":"SUM(H58:K58)","v":6}]
[null,null,null,null,null,null,3,4,2,null,0,6,null,null,null,null,null,null,null,null,null,null,null,null,null,{"$f":"(U60*(U60-1))","v":12}]
[null,null,null,null,null,null,4,0,5,null,1,6,null,null,null,null,null,null,null,null,{"$f":"COUNT(G57:G60)","v":4},"Mannschaften"]
[null,null,null,null,null,null,5,4,1,null,1,6,null,null,null,null,null,null,null,null,null,null,null,null,"Finalspiele:",0]
[null,null,null,null,null,null,6,0,4,null,2,6]
[null,null,null,null,null,null,7,3,1,null,2,6,null,null,null,null,null,null,null,null,null,null,null,null,null,{"$f":"(U64*(U64-1))","v":12}]
[null,null,null,null,null,null,8,3,2,null,1,6,null,null,null,null,null,null,null,null,{"$f":"COUNT(G61:G64)","v":4},"Mannschaften"]
[null,null,null,null,null,null,9,5,0,null,0,5,null,null,null,null,null,null,null,null,null,null,null,null,"Finalspiele:",0]
[null,null,null,null,null,null,10,1,4,null,0,5]
[null,null,null,null,null,null,11,1,2,null,2,5]
[null,null,null,null,null,null,12,1,2,null,2,5]
[null,null,null,null,null,null,13,2,1,null,2,5,null,null,null,null,null,null,null,null,null,null,null,null,null,{"$f":"(U70*(U70-1))/2","v":15}]
[null,null,null,null,null,null,14,2,1,null,2,5,null,null,null,null,null,null,null,null,{"$f":"COUNT(G65:G70)","v":6},"Mannschaften"]
[null,null,null,null,null,null,15,5,0,null,0,5,null,null,null,null,null,null,null,null,null,null,null,null,"Finalspiele:",3]
[null,null,null,null,null,null,16,1,4,null,0,5]
[null,null,null,null,null,null,17,1,2,null,2,5]
[null,null,null,null,null,null,18,1,2,null,2,5]
[null,null,null,null,null,null,19,1,2,null,2,5,null,null,null,null,null,null,null,null,null,null,null,null,null,{"$f":"(U76*(U76-1))/2","v":15}]
[null,null,null,null,null,null,20,1,2,null,2,5,null,null,null,null,null,null,null,null,{"$f":"COUNT(G71:G76)","v":6},"Mannschaften"]
[null,null,null,null,null,null,21,0,0,null,4,4,null,null,null,null,null,null,null,null,null,null,null,null,"Finalspiele:",3]
[null,null,null,null,null,null,22,0,0,null,4,4]
[null,null,null,null,null,null,23,0,0,null,4,4]
[null,null,null,null,null,null,24,0,0,null,4,4,null,null,null,null,null,null,null,null,null,null,null,null,null,{"$f":"(U81*(U81-1))/2","v":10}]
[null,null,null,null,null,null,25,0,0,null,4,4,null,null,null,null,null,null,null,null,{"$f":"COUNT(G77:G81)","v":5},"Mannschaften"]
[null,null,null,null,null,null,26,0,0,null,0,0,null,null,null,null,null,null,null,null,null,null,null,null,"Finalspiele:",2]
[null,null,null,null,null,null,27,0,0,null,0,0]
[null,null,null,null,null,null,28,0,0,null,0,0]
[null,null,null,null,null,null,29,0,0,null,0,0]
[null,null,null,null,null,null,30,0,0,null,0,{"$f":"SUM(H86:K86)","v":0}]
[null,null,null,null,null,null,31,0,0,null,0,0]
[null,null,null,null,null,null,32,0,0,null,0,{"$f":"SUM(H88:K88)","v":0}]
[]
[]
[]
[]
[null,null,null,null,null,null,null,null,"Summe:",null,null,{"$f":"SUM(L57:L92)","v":128},null,null,null,null,null,null,null,null,null,null,null,null,null,{"$f":"SUM(Z57:Z89)","v":72},null,"Spiele total"]
[null,null,null,null,null,null,null,null,"Spiele:",null,null,{"$f":"L93/2","v":64},null,null,null,null,null,null,null,null,null,null,null,null,null,{"$f":"Z93/3","v":24},null,"Runden"]
[null,null,null,null,null,null,null,null,"Runden:",null,null,{"$f":"L94/3","v":21.333333333333332}]

{"sheet":"AUSWERTUNG VORRUNDE","index":1,"n_rows":214,"n_cols":60,"rows_kept":214,"cut":false,"hidden":false,"merged":[[38,35,38,36],[49,35,49,36]]}
[]
[null,"Auswertung Vorrunde"]
[null,null,null,null,null,null,null,null,null,null,null,null,null,null,null,null,null,null,null,null,null,null,null,null,null,null,null,null,null,null,null,null,null,null,null,null,null,null,null,null,null,null,null,null,null,null,null,null,null,null,null,null,null,null,null,"Bei Punktgleichheit, Mannschaften von Hand aufgrund der Direktbegegnung klassieren!"]
[null,{"$f":"'Turnierplan Eingabe Resultate'!A9","v":"Gruppe A"},null,null,{"$f":"A6","v":1},null,null,null,{"$f":"A7","v":2},null,null,null,{"$f":"A8","v":3},null,null,null,{"$f":"A9","v":4},null,null,null,{"$f":"A6","v":1},null,null,null,{"$f":"A7","v":2},null,null,null,{"$f":"A8","v":3},null,null,null,{"$f":"A9","v":4},null,null,null,{"$f":"A14","v":0},null,null,null,null,null,null,null,null,null,null,null,null,null,null,"P Dif","P","Rang"]
[null,null,{"$f":"B6","v":"Büspi Flyers 1"},null,null,"P",{"$f":"B7","v":"Special Alligators 1"},null,null,"P",{"$f":"B8","v":"Vindonissa Tigers"},null,null,"P",{"$f":"B9","v":"FC Zürisee 1"},null,null,"P",{"$f":"B6","v":"Büspi Flyers 1"},null,null,"P",{"$f":"B7","v":"Special Alligators 1"},null,null,"P",{"$f":"B8","v":"Vindonissa Tigers"},null,null,"P",{"$f":"B9","v":"FC Zürisee 1"},null,null,"P",null,null,null,"P",null,null,null,null," P+","P -","P Dif","Punkte","Gruppenrang A'"]
[{"$f":"'Turnierplan Eingabe Resultate'!A10","v":1},{"$f":"'Turnierplan Eingabe Resultate'!C10","v":"Büspi Flyers 1"},null,null,null,null,{"$f":"VLOOKUP($A6&\"-\"&I$4,Hilfstabelle!$A$3:$E$90,4,FALSE)","v":7},":",{"$f":"VLOOKUP($A6&\"-\"&I$4,Hilfstabelle!$A$3:$E$90,5,FALSE)","v":2},{"$f":"IF(OR(G6=\"\",I6=\"\"),\"\",IF(G6>I6,2,IF(G6=I6,1,0)))","v":2},{"$f":"VLOOKUP($A6&\"-\"&M$4,Hilfstabelle!$A$3:$E$90,4,FALSE)","v":4},":",{"$f":"VLOOKUP($A6&\"-\"&M$4,Hilfstabelle!$A$3:$E$90,5,FALSE)","v":1},{"$f":"IF(OR(K6=\"\",M6=\"\"),\"\",IF(K6>M6,2,IF(K6=M6,1,0)))","v":2},{"$f":"VLOOKUP($A6&\"-\"&Q$4,Hilfstabelle!$A$3:$E$90,4,FALSE)","v":4},":",{"$f":"VLOOKUP($A6&\"-\"&Q$4,Hilfstabelle!$A$3:$E$90,5,FALSE)","v":2},{"$f":"IF(OR(O6=\"\",Q6=\"\"),\"\",IF(O6>Q6,2,IF(O6=Q6,1,0)))","v":2},null,null,null,null,{"$f":"VLOOKUP(Y$4&\"-\"&$A6,Hilfstabelle!$A$3:$E$90,5,FALSE)","v":3},":",{"$f":"VLOOKUP(Y$4&\"-\"&$A6,Hilfstabelle!$A$3:$E$90,4,FALSE)","v":3},{"$f":"IF(OR(W6=\"\",Y6=\"\"),\"\",IF(W6>Y6,2,IF(W6=Y6,1,0)))","v":1},{"$f":"VLOOKUP(AC$4&\"-\"&$A6,Hilfstabelle!$A$3:$E$90,5,FALSE)","v":3},":",{"$f":"VLOOKUP(AC$4&\"-\"&$A6,Hilfstabelle!$A$3:$E$90,4,FALSE)","v":0},{"$f":"IF(OR(AA6=\"\",AC6=\"\"),\"\",IF(AA6>AC6,2,IF(AA6=AC6,1,0)))","v":2},{"$f":"VLOOKUP(AG$4&\"-\"&$A6,Hilfstabelle!$A$3:$E$90,5,FALSE)","v":3},":",{"$f":"VLOOKUP(AG$4&\"-\"&$A6,Hilfstabelle!$A$3:$E$90,4,FALSE)","v":3},{"$f":"IF(OR(AE6=\"\",AG6=\"\"),\"\",IF(AE6>AG6,2,IF(AE6=AG6,1,0)))","v":1},null,":",null,null,null,null,null,null,{"$f":"SUM(C6,G6,K6,O6,S6,W6,AA6,AE6,AM6)","v":24},{"$f":"SUM(E6,I6,M6,Q6,U6,Y6,AC6,AG6,AO6)","v":11},{"$f":"AQ6-AR6","v":13},{"$f":"SUM(F6,J6,N6,R6,V6,Z6,AD6,AH6,AL6)","v":10},{"$f":"_xlfn.RANK.EQ(AT6,$AT$6:$AT$14)","v":1},null,null,null,"Büspi Flyers 1",13,10,1,null,{"$f":"IF(AND(BA6=BA7,BA6<>\"\"),\"Achtung! Punktgleichheit\",\"\")","v":""}]
[{"$f":"'Turnierplan Eingabe Resultate'!A11","v":2},{"$f":"'Turnierplan Eingabe Resultate'!C11","v":"Special Alligators 1"},{"$f":"I6","v":2},":",{"$f":"G6","v":7},{"$f":"IF(OR(C7=\"\",E7=\"\"),\"\",IF(C7>E7,2,IF(C7=E7,1,0)))","v":0},null,null,null,null,{"$f":"VLOOKUP($A7&\"-\"&M$4,Hilfstabelle!$A$3:$E$90,4,FALSE)","v":4},":",{"$f":"VLOOKUP($A7&\"-\"&M$4,Hilfstabelle!$A$3:$E$90,5,FALSE)","v":1},{"$f":"IF(OR(K7=\"\",M7=\"\"),\"\",IF(K7>M7,2,IF(K7=M7,1,0)))","v":2},{"$f":"VLOOKUP($A7&\"-\"&Q$4,Hilfstabelle!$A$3:$E$90,4,FALSE)","v":3},":",{"$f":"VLOOKUP($A7&\"-\"&Q$4,Hilfstabelle!$A$3:$E$90,5,FALSE)","v":2},2,{"$f":"Y6","v":3},":",{"$f":"W6","v":3},{"$f":"IF(OR(S7=\"\",U7=\"\"),\"\",IF(S7>U7,2,IF(S7=U7,1,0)))","v":1},null,null,null,null,{"$f":"VLOOKUP(AC$4&\"-\"&$A7,Hilfstabelle!$A$3:$E$90,5,FALSE)","v":3},":",{"$f":"VLOOKUP(AC$4&\"-\"&$A7,Hilfstabelle!$A$3:$E$90,4,FALSE)","v":1},2,{"$f":"VLOOKUP(AG$4&\"-\"&$A7,Hilfstabelle!$A$3:$E$90,5,FALSE)","v":3},":",{"$f":"VLOOKUP(AG$4&\"-\"&$A7,Hilfstabelle!$A$3:$E$90,4,FALSE)","v":4},0,null,":",null,null,null,null,null,null,{"$f":"SUM(C7,G7,K7,O7,S7,W7,AA7,AE7,AM7)","v":18},{"$f":"SUM(E7,I7,M7,Q7,U7,Y7,AC7,AG7,AO7)","v":18},{"$f":"AQ7-AR7","v":0},{"$f":"SUM(F7,J7,N7,R7,V7,Z7,AD7,AH7,AP7)","v":7},3,null,null,null,"FC Zürisee 1",6,7,2,null,{"$f":"IF(AND(BA7=BA8,BA7<>\"\"),\"Achtung! Punktgleichheit\",\"\")","v":"Achtung! Punktgleichheit"}]
[{"$f":"'Turnierplan Eingabe Resultate'!A12","v":3},{"$f":"'Turnierplan Eingabe Resultate'!C12","v":"Vindonissa Tigers"},{"$f":"M6","v":1},":",{"$f":"K6","v":4},{"$f":"IF(OR(C8=\"\",E8=\"\"),\"\",IF(C8>E8,2,IF(C8=E8,1,0)))","v":0},{"$f":"M7","v":1},":",{"$f":"K7","v":4},{"$f":"IF(OR(G8=\"\",I8=\"\"),\"\",IF(G8>I8,2,IF(G8=I8,1,0)))","v":0},null,null,null,null,{"$f":"VLOOKUP($A8&\"-\"&Q$4,Hilfstabelle!$A$3:$E$90,4,FALSE)","v":1},":",{"$f":"VLOOKUP($A8&\"-\"&Q$4,Hilfstabelle!$A$3:$E$90,5,FALSE)","v":4},0,{"$f":"AC6","v":0},":",{"$f":"AA6","v":3},0,{"$f":"AC7","v":1},":",{"$f":"AA7","v":3},{"$f":"IF(OR(W8=\"\",Y8=\"\"),\"\",IF(W8>Y8,2,IF(W8=Y8,1,0)))","v":0},null,null,null,null,{"$f":"VLOOKUP(AG$4&\"-\"&$A8,Hilfstabelle!$A$3:$E$90,5,FALSE)","v":0},":",{"$f":"VLOOKUP(AG$4&\"-\"&$A8,Hilfstabelle!$A$3:$E$90,4,FALSE)","v":5},0,null,":",null,null,null,null,null,null,4,23,{"$f":"AQ8-AR8","v":-19},0,{"$f":"_xlfn.RANK.EQ(AT8,$AT$6:$AT$14)","v":4},null,null,null,"Special Alligators 1",0,7,3,null,""]
[{"$f":"'Turnierplan Eingabe Resultate'!A13","v":4},{"$f":"'Turnierplan Eingabe Resultate'!C13","v":"FC Zürisee 1"},{"$f":"Q6","v":2},":",{"$f":"O6","v":4},0,{"$f":"Q7","v":2},":",{"$f":"O7","v":3},0,{"$f":"Q8","v":4},":",{"$f":"O8","v":1},{"$f":"IF(OR(K9=\"\",M9=\"\"),\"\",IF(K9>M9,2,IF(K9=M9,1,0)))","v":2},null,null,null,null,{"$f":"AG6","v":3},":",{"$f":"AE6","v":3},1,{"$f":"AG7","v":4},":",{"$f":"AE7","v":3},2,{"$f":"AG8","v":5},":",{"$f":"AE8","v":0},{"$f":"IF(OR(AA9=\"\",AC9=\"\"),\"\",IF(AA9>AC9,2,IF(AA9=AC9,1,0)))","v":2},null,null,null,null,null,":",null,null,null,null,null,null,20,14,{"$f":"AQ9-AR9","v":6},7,2,null,null,null,"Vindonissa Tigers",-19,0,4]
[{"$f":"'Turnierplan Eingabe Resultate'!A14","v":0},{"$f":"'Turnierplan Eingabe Resultate'!C14","v":0},null,":",null,"",null,":",null,"",null,":",null,"",null,":",null,{"$f":"IF(OR(O10=\"\",Q10=\"\"),\"\",IF(O10>Q10,2,IF(O10=Q10,1,0)))","v":""},null,null,null,null,null,":",null,null,null,":",null,null,null,":",null,null,null,":",null,null,null,null,null,null,0,0,{"$f":"AQ10-AR10","v":0},0,null,null,null,null,0,0,0]
[{"$f":"'Turnierplan Eingabe Resultate'!A15","v":0},{"$f":"'Turnierplan Eingabe Resultate'!C15","v":0},null,":",null,"",null,":",null,"",null,":",null,"",null,":",null,"",null,":",null,{"$f":"IF(OR(S11=\"\",U11=\"\"),\"\",IF(S11>U11,2,IF(S11=U11,1,0)))","v":""},null,null,null,null,null,":",null,null,null,":",null,null,null,":",null,null,null,null,null,null,0,0,{"$f":"AQ11-AR11","v":0},0,null,null,null,null,0,0,0]
[{"$f":"'Turnierplan Eingabe Resultate'!A16","v":0},{"$f":"'Turnierplan Eingabe Resultate'!C16","v":0},null,":",null,"",null,":",null,"",null,":",null,"",null,":",null,"",null,":",null,"",null,":",null,{"$f":"IF(OR(W12=\"\",Y12=\"\"),\"\",IF(W12>Y12,2,IF(W12=Y12,1,0)))","v":""},null,null,null,null,null,":",null,null,null,":",null,null,null,null,null,null,0,0,0,0,null,null,null,null,0,0,0]
[{"$f":"'Turnierplan Eingabe Resultate'!A17","v":0},{"$f":"'Turnierplan Eingabe Resultate'!C17","v":0},null,":",null,"",null,":",null,"",null,":",null,"",null,":",null,"",null,":",null,"",null,":",null,"",null,":",null,{"$f":"IF(OR(AA13=\"\",AC13=\"\"),\"\",IF(AA13>AC13,2,IF(AA13=AC13,1,0)))","v":""},null,null,null,null,null,":",null,null,null,null,null,null,0,0,0,0,null,null,null,null,0,0,0]
[{"$f":"'Turnierplan Eingabe Resultate'!A18","v":0},{"$f":"'Turnierplan Eingabe Resultate'!C18","v":0},null,":",null,"",null,":",null,"",null,":",null,"",null,":",null,"",null,":",null,"",null,":",null,"",null,":",null,"",null,":",null,{"$f":"IF(OR(AE14=\"\",AG14=\"\"),\"\",IF(AE14>AG14,2,IF(AE14=AG14,1,0)))","v":""},null,null,null,null,null,null,null,null,0,0,{"$f":"AQ14-AR14","v":0},0,null,null,null,null,0,0,0]
[]
[]
[null,{"$f":"'Turnierplan Eingabe Resultate'!N9","v":"Gruppe B"},null,null,{"$f":"A19","v":5},null,null,null,{"$f":"A20","v":6},null,null,null,{"$f":"A21","v":7},null,null,null,{"$f":"A22","v":8},null,null,null,{"$f":"A19","v":5},null,null,null,{"$f":"A20","v":6},null,null,null,{"$f":"A21","v":7},null,null,null,{"$f":"A22","v":8},null,null,null,null,null,null,null,null,null,null,null,null,null,null,null,null,null,null,"P Dif","P","Rang"]
[null,null,{"$f":"B19","v":"Rappi Jona Flames 1"},null,null,"P",{"$f":"B20","v":"Bärau Tigers 1"},null,null,"P",{"$f":"B21","v":"Altra Ducks"},null,null,"P",{"$f":"B22","v":"Junkihüpfer Wohlen"},null,null,"P",{"$f":"B23","v":0},null,null,"P",{"$f":"B24","v":0},null,null,"P",{"$f":"B25","v":0},null,null,"P",null,null,null,"P",null,null,null,null,null,null,null,"P"," P+","P -","P Dif","Punkte","Gruppenrang B'"]
[{"$f":"'Turnierplan Eingabe Resultate'!N10","v":5},{"$f":"'Turnierplan Eingabe Resultate'!P10","v":"Rappi Jona Flames 1"}," ",null,null,null,{"$f":"VLOOKUP($A19&\"-\"&I$17,Hilfstabelle!$A$3:$E$90,4,FALSE)","v":2},":",{"$f":"VLOOKUP($A19&\"-\"&I$17,Hilfstabelle!$A$3:$E$90,5,FALSE)","v":3},{"$f":"IF(OR(G19=\"\",I19=\"\"),\"\",IF(G19>I19,2,IF(G19=I19,1,0)))","v":0},{"$f":"VLOOKUP($A19&\"-\"&M$17,Hilfstabelle!$A$3:$E$90,4,FALSE)","v":6},":",{"$f":"VLOOKUP($A19&\"-\"&M$17,Hilfstabelle!$A$3:$E$90,5,FALSE)","v":4},{"$f":"IF(OR(K19=\"\",M19=\"\"),\"\",IF(K19>M19,2,IF(K19=M19,1,0)))","v":2},{"$f":"VLOOKUP($A19&\"-\"&Q$17,Hilfstabelle!$A$3:$E$90,4,FALSE)","v":2},":",{"$f":"VLOOKUP($A19&\"-\"&Q$17,Hilfstabelle!$A$3:$E$90,5,FALSE)","v":3},{"$f":"IF(OR(O19=\"\",Q19=\"\"),\"\",IF(O19>Q19,2,IF(O19=Q19,1,0)))","v":0},null,":",null,{"$f":"IF(OR(S19=\"\",U19=\"\"),\"\",IF(S19>U19,2,IF(S19=U19,1,0)))","v":""},{"$f":"VLOOKUP(Y$17&\"-\"&$A19,Hilfstabelle!$A$3:$E$90,5,FALSE)","v":1},":",{"$f":"VLOOKUP(Y$17&\"-\"&$A19,Hilfstabelle!$A$3:$E$90,4,FALSE)","v":2},{"$f":"IF(OR(W19=\"\",Y19=\"\"),\"\",IF(W19>Y19,2,IF(W19=Y19,1,0)))","v":0},{"$f":"VLOOKUP(AC$17&\"-\"&$A19,Hilfstabelle!$A$3:$E$90,5,FALSE)","v":3},":",{"$f":"VLOOKUP(AC$17&\"-\"&$A19,Hilfstabelle!$A$3:$E$90,4,FALSE)","v":2},{"$f":"IF(OR(AA19=\"\",AC19=\"\"),\"\",IF(AA19>AC19,2,IF(AA19=AC19,1,0)))","v":2},{"$f":"VLOOKUP(AG$17&\"-\"&$A19,Hilfstabelle!$A$3:$E$90,5,FALSE)","v":2},":",{"$f":"VLOOKUP(AG$17&\"-\"&$A19,Hilfstabelle!$A$3:$E$90,4,FALSE)","v":4},{"$f":"IF(OR(AE19=\"\",AG19=\"\"),\"\",IF(AE19>AG19,2,IF(AE19=AG19,1,0)))","v":0},null,null,null,null,null,null,null,null,{"$f":"SUM(C19,G19,K19,O19,S19,W19,AA19,AE19,AM19)","v":16},{"$f":"SUM(E19,I19,M19,Q19,U19,Y19,AC19,AG19,AO19)","v":18},{"$f":"AQ19-AR19","v":-2},{"$f":"SUM(F19,J19,N19,R19,V19,Z19,AD19,AH19,AP19)","v":4},{"$f":"_xlfn.RANK.EQ(AT19,$AT$19:$AT$25)","v":3},null,null,null,"Junkihüpfer Wohlen",17,12,1,null,{"$f":"IF(AND(BA19=BA20,BA19<>\"\"),\"Achtung! Punktgleichheit\",\"\")","v":""}]
[{"$f":"'Turnierplan Eingabe Resultate'!N11","v":6},{"$f":"'Turnierplan Eingabe Resultate'!P11","v":"Bärau Tigers 1"},{"$f":"I19","v":3},":",{"$f":"G19","v":2},{"$f":"IF(OR(C20=\"\",E20=\"\"),\"\",IF(C20>E20,2,IF(C20=E20,1,0)))","v":2},null,null,null,null,{"$f":"VLOOKUP($A20&\"-\"&M$17,Hilfstabelle!$A$3:$E$90,4,FALSE)","v":5},":",{"$f":"VLOOKUP($A20&\"-\"&M$17,Hilfstabelle!$A$3:$E$90,5,FALSE)","v":2},2,{"$f":"VLOOKUP($A20&\"-\"&Q$17,Hilfstabelle!$A$3:$E$90,4,FALSE)","v":0},":",{"$f":"VLOOKUP($A20&\"-\"&Q$17,Hilfstabelle!$A$3:$E$90,5,FALSE)","v":8},0,{"$f":"Y19","v":2},":",{"$f":"W19","v":1},2,null,":",null,"",{"$f":"VLOOKUP(AC$17&\"-\"&$A20,Hilfstabelle!$A$3:$E$90,5,FALSE)","v":6},":",{"$f":"VLOOKUP(AC$17&\"-\"&$A20,Hilfstabelle!$A$3:$E$90,4,FALSE)","v":0},2,{"$f":"VLOOKUP(AG$17&\"-\"&$A20,Hilfstabelle!$A$3:$E$90,5,FALSE)","v":2},":",{"$f":"VLOOKUP(AG$17&\"-\"&$A20,Hilfstabelle!$A$3:$E$90,4,FALSE)","v":4},0,null,null,null,null,null,null,null,null,{"$f":"SUM(C20,G20,K20,O20,S20,W20,AA20,AE20,AM20)","v":18},{"$f":"SUM(E20,I20,M20,Q20,U20,Y20,AC20,AG20,AO20)","v":17},{"$f":"AQ20-AR20","v":1},{"$f":"SUM(F20,J20,N20,R20,V20,Z20,AD20,AH20,AP20)","v":8},{"$f":"_xlfn.RANK.EQ(AT20,$AT$19:$AT$25)","v":2},null,null,null,"Bärau Tigers 1",1,8,2,null,{"$f":"IF(AND(BA20=BA21,BA20<>\"\"),\"Achtung! Punktgleichheit\",\"\")","v":""}]
[{"$f":"'Turnierplan Eingabe Resultate'!N12","v":7},{"$f":"'Turnierplan Eingabe Resultate'!P12","v":"Altra Ducks"},{"$f":"M19","v":4},":",{"$f":"K19","v":6},0,{"$f":"M20","v":2},":",{"$f":"K20","v":5},{"$f":"IF(OR(G21=\"\",I21=\"\"),\"\",IF(G21>I21,2,IF(G21=I21,1,0)))","v":0},null,null,null,null,{"$f":"VLOOKUP($A21&\"-\"&Q$17,Hilfstabelle!$A$3:$E$90,4,FALSE)","v":2},":",{"$f":"VLOOKUP($A21&\"-\"&Q$17,Hilfstabelle!$A$3:$E$90,5,FALSE)","v":5},0,{"$f":"AC19","v":2},":",{"$f":"AA19","v":3},0,{"$f":"AC20","v":0},":",{"$f":"AA20","v":6},0,null,":",null,"",{"$f":"VLOOKUP(AG$17&\"-\"&$A21,Hilfstabelle!$A$3:$E$90,5,FALSE)","v":2},":",{"$f":"VLOOKUP(AG$17&\"-\"&$A21,Hilfstabelle!$A$3:$E$90,4,FALSE)","v":3},0,null,null,null,null,null,null,null,null,12,28,{"$f":"AQ21-AR21","v":-16},0,4,null,null,null,"Rappi Jona Flames 1",-2,4,3,null,""]
[{"$f":"'Turnierplan Eingabe Resultate'!N13","v":8},{"$f":"'Turnierplan Eingabe Resultate'!P13","v":"Junkihüpfer Wohlen"},{"$f":"Q19","v":3},":",{"$f":"O19","v":2},2,{"$f":"Q20","v":8},":",{"$f":"O20","v":0},2,{"$f":"Q21","v":5},":",{"$f":"O21","v":2},{"$f":"IF(OR(K22=\"\",M22=\"\"),\"\",IF(K22>M22,2,IF(K22=M22,1,0)))","v":2},null,null,null,null,{"$f":"AG19","v":4},":",{"$f":"AE19","v":2},2,{"$f":"AG20","v":4},":",{"$f":"AE20","v":2},2,{"$f":"AG21","v":3},":",{"$f":"AE21","v":2},2,null,null,null,null,null,null,null,null,null,null,null,null,27,10,17,12,1,null,null,null,"Altra Ducks",-16,0,4]
[{"$f":"'Turnierplan Eingabe Resultate'!N14","v":0},{"$f":"'Turnierplan Eingabe Resultate'!P14","v":0},null,":",null,"",null,":",null,"",null,":",null,"",null,":",null,{"$f":"IF(OR(O23=\"\",Q23=\"\"),\"\",IF(O23>Q23,2,IF(O23=Q23,1,0)))","v":""},null,null,null,null,null,":",null,"",null,":",null,"",null,null,null,null,null,null,null,null,null,null,null,null,0,0,0,0,null,null,null,null,0,0,0]
[{"$f":"'Turnierplan Eingabe Resultate'!N15","v":0},{"$f":"'Turnierplan Eingabe Resultate'!P15","v":0},null,":",null,"",null,":",null,"",null,":",null,"",null,":",null,"",null,":",null,{"$f":"IF(OR(S24=\"\",U24=\"\"),\"\",IF(S24>U24,2,IF(S24=U24,1,0)))","v":""},null,null,null,null,null,":",null,"",null,null,null,null,null,null,null,null,null,null,null,null,0,0,0,0,null,null,null,null,0,0,0]
[{"$f":"'Turnierplan Eingabe Resultate'!N16","v":0},{"$f":"'Turnierplan Eingabe Resultate'!P16","v":0},null,":",null,"",null,":",null,"",null,":",null,"",null,":",null,"",null,":",null,"",null,":",null,{"$f":"IF(OR(W25=\"\",Y25=\"\"),\"\",IF(W25>Y25,2,IF(W25=Y25,1,0)))","v":""},null,null,null,null,null,null,null,null,null,null,null,null,null,null,null,null,0,0,0,0,null,null,null,null,0,0,0]
[]
[]
[null,{"$f":"'Turnierplan Eingabe Resultate'!Y9","v":"Gruppe C"},null,null,{"$f":"A30","v":9},null,null,null,{"$f":"A31","v":10},null,null,null,{"$f":"A32","v":11},null,null,null,{"$f":"A33","v":12},null,null,null,{"$f":"A34","v":13},null,null,null,{"$f":"A35","v":14},null,null,null,{"$f":"A36","v":0},null,null,null,null,null,null,null,null,null,null,null,null,null,null,null,null,null,null,null,null,null,null,"P Dif","P","Rang"]
[null,null,{"$f":"B30","v":"btv chur unihockey 1"},null,null,"P",{"$f":"B31","v":"Special Alligators 2"},null,null,"P",{"$f":"B32","v":"Schulheim  Chur"},null,null,"P",{"$f":"B33","v":"FC Zürisee 2"},null,null,"P",{"$f":"B34","v":"Le Tigri 1"},null,null,"P",{"$f":"B35","v":"Winti United 1"},null,null,"P",{"$f":"B36","v":0},null,null,"P",null,null,null,"P",null,null,null,null,null,null,null,"P"," P+","P -","P Dif","Punkte","Gruppenrang B'"]
[{"$f":"'Turnierplan Eingabe Resultate'!Y10","v":9},{"$f":"'Turnierplan Eingabe Resultate'!AA10","v":"btv chur unihockey 1"}," ",null,null,null,{"$f":"IF(ISERROR(VLOOKUP($A30&\"-\"&I$28,Hilfstabelle!$A$3:$E$90,4,FALSE)),VLOOKUP(I$28&\"-\"&$A30,Hilfstabelle!$A$3:$E$90,5,FALSE),VLOOKUP($A30&\"-\"&I$28,Hilfstabelle!$A$3:$E$90,4,FALSE))","v":2},":",{"$f":"IF(ISERROR(VLOOKUP($A30&\"-\"&I$28,Hilfstabelle!$A$3:$E$90,4,FALSE)),VLOOKUP(I$28&\"-\"&$A30,Hilfstabelle!$A$3:$E$90,4,FALSE),VLOOKUP($A30&\"-\"&I$28,Hilfstabelle!$A$3:$E$90,5,FALSE))","v":3},{"$f":"IF(OR(G30=\"\",I30=\"\"),\"\",IF(G30>I30,2,IF(G30=I30,1,0)))","v":0},{"$f":"IF(ISERROR(VLOOKUP($A30&\"-\"&M$28,Hilfstabelle!$A$3:$E$90,4,FALSE)),VLOOKUP(M$28&\"-\"&$A30,Hilfstabelle!$A$3:$E$90,5,FALSE),VLOOKUP($A30&\"-\"&M$28,Hilfstabelle!$A$3:$E$90,4,FALSE))","v":6},":",{"$f":"IF(ISERROR(VLOOKUP($A30&\"-\"&M$28,Hilfstabelle!$A$3:$E$90,4,FALSE)),VLOOKUP(M$28&\"-\"&$A30,Hilfstabelle!$A$3:$E$90,4,FALSE),VLOOKUP($A30&\"-\"&M$28,Hilfstabelle!$A$3:$E$90,5,FALSE))","v":2},{"$f":"IF(OR(K30=\"\",M30=\"\"),\"\",IF(K30>M30,2,IF(K30=M30,1,0)))","v":2},{"$f":"IF(ISERROR(VLOOKUP($A30&\"-\"&Q$28,Hilfstabelle!$A$3:$E$90,4,FALSE)),VLOOKUP(Q$28&\"-\"&$A30,Hilfstabelle!$A$3:$E$90,5,FALSE),VLOOKUP($A30&\"-\"&Q$28,Hilfstabelle!$A$3:$E$90,4,FALSE))","v":2},":",{"$f":"IF(ISERROR(VLOOKUP($A30&\"-\"&Q$28,Hilfstabelle!$A$3:$E$90,4,FALSE)),VLOOKUP(Q$28&\"-\"&$A30,Hilfstabelle!$A$3:$E$90,4,FALSE),VLOOKUP($A30&\"-\"&Q$28,Hilfstabelle!$A$3:$E$90,5,FALSE))","v":2},{"$f":"IF(OR(O30=\"\",Q30=\"\"),\"\",IF(O30>Q30,2,IF(O30=Q30,1,0)))","v":1},{"$f":"IF(ISERROR(VLOOKUP($A30&\"-\"&U$28,Hilfstabelle!$A$3:$E$90,4,FALSE)),VLOOKUP(U$28&\"-\"&$A30,Hilfstabelle!$A$3:$E$90,5,FALSE),VLOOKUP($A30&\"-\"&U$28,Hilfstabelle!$A$3:$E$90,4,FALSE))","v":2},":",{"$f":"IF(ISERROR(VLOOKUP($A30&\"-\"&U$28,Hilfstabelle!$A$3:$E$90,4,FALSE)),VLOOKUP(U$28&\"-\"&$A30,Hilfstabelle!$A$3:$E$90,4,FALSE),VLOOKUP($A30&\"-\"&U$28,Hilfstabelle!$A$3:$E$90,5,FALSE))","v":1},{"$f":"IF(OR(S30=\"\",U30=\"\"),\"\",IF(S30>U30,2,IF(S30=U30,1,0)))","v":2},{"$f":"IF(ISERROR(VLOOKUP($A30&\"-\"&Y$28,Hilfstabelle!$A$3:$E$90,4,FALSE)),VLOOKUP(Y$28&\"-\"&$A30,Hilfstabelle!$A$3:$E$90,5,FALSE),VLOOKUP($A30&\"-\"&Y$28,Hilfstabelle!$A$3:$E$90,4,FALSE))","v":3},":",{"$f":"IF(ISERROR(VLOOKUP($A30&\"-\"&Y$28,Hilfstabelle!$A$3:$E$90,4,FALSE)),VLOOKUP(Y$28&\"-\"&$A30,Hilfstabelle!$A$3:$E$90,4,FALSE),VLOOKUP($A30&\"-\"&Y$28,Hilfstabelle!$A$3:$E$90,5,FALSE))","v":2},{"$f":"IF(OR(W30=\"\",Y30=\"\"),\"\",IF(W30>Y30,2,IF(W30=Y30,1,0)))","v":2},null,":",null,{"$f":"IF(OR(AA30=\"\",AC30=\"\"),\"\",IF(AA30>AC30,2,IF(AA30=AC30,1,0)))","v":""},null,null,null,null,null,null,null,null,null,":",null,null,{"$f":"SUM(C30,G30,K30,O30,S30,W30,AA30,AE30,AM30)","v":15},{"$f":"SUM(E30,I30,M30,Q30,U30,Y30,AC30,AG30,AO30)","v":10},{"$f":"AQ30-AR30","v":5},{"$f":"SUM(F30,J30,N30,R30,V30,Z30,AD30,AH30,AP30)","v":7},3,null,null,null,"Special Alligators 2",6,8,1,null,{"$f":"IF(AND(BA30=BA31,BA30<>\"\"),\"Achtung! Punktgleichheit\",\"\")","v":""}]
[{"$f":"'Turnierplan Eingabe Resultate'!Y11","v":10},{"$f":"'Turnierplan Eingabe Resultate'!AA11","v":"Special Alligators 2"},{"$f":"I30","v":3},":",{"$f":"G30","v":2},{"$f":"IF(OR(C31=\"\",E31=\"\"),\"\",IF(C31>E31,2,IF(C31=E31,1,0)))","v":2},null,null,null,null,{"$f":"IF(ISERROR(VLOOKUP($A31&\"-\"&M$28,Hilfstabelle!$A$3:$E$90,4,FALSE)),VLOOKUP(M$28&\"-\"&$A31,Hilfstabelle!$A$3:$E$90,5,FALSE),VLOOKUP($A31&\"-\"&M$28,Hilfstabelle!$A$3:$E$90,4,FALSE))","v":5},":",{"$f":"IF(ISERROR(VLOOKUP($A31&\"-\"&M$28,Hilfstabelle!$A$3:$E$90,4,FALSE)),VLOOKUP(M$28&\"-\"&$A31,Hilfstabelle!$A$3:$E$90,4,FALSE),VLOOKUP($A31&\"-\"&M$28,Hilfstabelle!$A$3:$E$90,5,FALSE))","v":0},2,{"$f":"IF(ISERROR(VLOOKUP($A31&\"-\"&Q$28,Hilfstabelle!$A$3:$E$90,4,FALSE)),VLOOKUP(Q$28&\"-\"&$A31,Hilfstabelle!$A$3:$E$90,5,FALSE),VLOOKUP($A31&\"-\"&Q$28,Hilfstabelle!$A$3:$E$90,4,FALSE))","v":3},":",{"$f":"IF(ISERROR(VLOOKUP($A31&\"-\"&Q$28,Hilfstabelle!$A$3:$E$90,4,FALSE)),VLOOKUP(Q$28&\"-\"&$A31,Hilfstabelle!$A$3:$E$90,4,FALSE),VLOOKUP($A31&\"-\"&Q$28,Hilfstabelle!$A$3:$E$90,5,FALSE))","v":2},2,{"$f":"IF(ISERROR(VLOOKUP($A31&\"-\"&U$28,Hilfstabelle!$A$3:$E$90,4,FALSE)),VLOOKUP(U$28&\"-\"&$A31,Hilfstabelle!$A$3:$E$90,5,FALSE),VLOOKUP($A31&\"-\"&U$28,Hilfstabelle!$A$3:$E$90,4,FALSE))","v":0},":",{"$f":"IF(ISERROR(VLOOKUP($A31&\"-\"&U$28,Hilfstabelle!$A$3:$E$90,4,FALSE)),VLOOKUP(U$28&\"-\"&$A31,Hilfstabelle!$A$3:$E$90,4,FALSE),VLOOKUP($A31&\"-\"&U$28,Hilfstabelle!$A$3:$E$90,5,FALSE))","v":4},0,{"$f":"IF(ISERROR(VLOOKUP($A31&\"-\"&Y$28,Hilfstabelle!$A$3:$E$90,4,FALSE)),VLOOKUP(Y$28&\"-\"&$A31,Hilfstabelle!$A$3:$E$90,5,FALSE),VLOOKUP($A31&\"-\"&Y$28,Hilfstabelle!$A$3:$E$90,4,FALSE))","v":4},":",{"$f":"IF(ISERROR(VLOOKUP($A31&\"-\"&Y$28,Hilfstabelle!$A$3:$E$90,4,FALSE)),VLOOKUP(Y$28&\"-\"&$A31,Hilfstabelle!$A$3:$E$90,4,FALSE),VLOOKUP($A31&\"-\"&Y$28,Hilfstabelle!$A$3:$E$90,5,FALSE))","v":1},2,null,":",null,"",null,null,null,null,null,null,null,null,null,":",null,null,{"$f":"SUM(C31,G31,K31,O31,S31,W31,AA31,AE31,AM31)","v":15},{"$f":"SUM(E31,I31,M31,Q31,U31,Y31,AC31,AG31,AO31)","v":9},{"$f":"AQ31-AR31","v":6},{"$f":"SUM(F31,J31,N31,R31,V31,Z31,AD31,AH31,AP31)","v":8},{"$f":"_xlfn.RANK.EQ(AT31,$AT$30:$AT$36)","v":1},null,null,null,"FC Zürisee 2",10,7,2,null,{"$f":"IF(AND(BA31=BA32,BA31<>\"\"),\"Achtung! Punktgleichheit\",\"\")","v":"Achtung! Punktgleichheit"}]
[{"$f":"'Turnierplan Eingabe Resultate'!Y12","v":11},{"$f":"'Turnierplan Eingabe Resultate'!AA12","v":"Schulheim  Chur"},{"$f":"M30","v":2},":",{"$f":"K30","v":6},0,{"$f":"M31","v":0},":",{"$f":"K31","v":5},{"$f":"IF(OR(G32=\"\",I32=\"\"),\"\",IF(G32>I32,2,IF(G32=I32,1,0)))","v":0},null,null,null,null,{"$f":"IF(ISERROR(VLOOKUP($A32&\"-\"&Q$28,Hilfstabelle!$A$3:$E$90,4,FALSE)),VLOOKUP(Q$28&\"-\"&$A32,Hilfstabelle!$A$3:$E$90,5,FALSE),VLOOKUP($A32&\"-\"&Q$28,Hilfstabelle!$A$3:$E$90,4,FALSE))","v":1},":",{"$f":"IF(ISERROR(VLOOKUP($A32&\"-\"&Q$28,Hilfstabelle!$A$3:$E$90,4,FALSE)),VLOOKUP(Q$28&\"-\"&$A32,Hilfstabelle!$A$3:$E$90,4,FALSE),VLOOKUP($A32&\"-\"&Q$28,Hilfstabelle!$A$3:$E$90,5,FALSE))","v":9},0,{"$f":"IF(ISERROR(VLOOKUP($A32&\"-\"&U$28,Hilfstabelle!$A$3:$E$90,4,FALSE)),VLOOKUP(U$28&\"-\"&$A32,Hilfstabelle!$A$3:$E$90,5,FALSE),VLOOKUP($A32&\"-\"&U$28,Hilfstabelle!$A$3:$E$90,4,FALSE))","v":0},":",{"$f":"IF(ISERROR(VLOOKUP($A32&\"-\"&U$28,Hilfstabelle!$A$3:$E$90,4,FALSE)),VLOOKUP(U$28&\"-\"&$A32,Hilfstabelle!$A$3:$E$90,4,FALSE),VLOOKUP($A32&\"-\"&U$28,Hilfstabelle!$A$3:$E$90,5,FALSE))","v":6},0,{"$f":"IF(ISERROR(VLOOKUP($A32&\"-\"&Y$28,Hilfstabelle!$A$3:$E$90,4,FALSE)),VLOOKUP(Y$28&\"-\"&$A32,Hilfstabelle!$A$3:$E$90,5,FALSE),VLOOKUP($A32&\"-\"&Y$28,Hilfstabelle!$A$3:$E$90,4,FALSE))","v":1},":",{"$f":"IF(ISERROR(VLOOKUP($A32&\"-\"&Y$28,Hilfstabelle!$A$3:$E$90,4,FALSE)),VLOOKUP(Y$28&\"-\"&$A32,Hilfstabelle!$A$3:$E$90,4,FALSE),VLOOKUP($A32&\"-\"&Y$28,Hilfstabelle!$A$3:$E$90,5,FALSE))","v":8},0,null,":",null,"",null,null,null,null,null,null,null,null,null,":",null,null,4,34,{"$f":"AQ32-AR32","v":-30},0,6,null,null,null,"btv chur unihockey 1",5,7,3,null,""]
[{"$f":"'Turnierplan Eingabe Resultate'!Y13","v":12},{"$f":"'Turnierplan Eingabe Resultate'!AA13","v":"FC Zürisee 2"},{"$f":"Q30","v":2},":",{"$f":"O30","v":2},1,{"$f":"Q31","v":2},":",{"$f":"O31","v":3},0,{"$f":"Q32","v":9},":",{"$f":"O32","v":1},{"$f":"IF(OR(K33=\"\",M33=\"\"),\"\",IF(K33>M33,2,IF(K33=M33,1,0)))","v":2},null,null,null,null,{"$f":"IF(ISERROR(VLOOKUP($A33&\"-\"&U$28,Hilfstabelle!$A$3:$E$90,4,FALSE)),VLOOKUP(U$28&\"-\"&$A33,Hilfstabelle!$A$3:$E$90,5,FALSE),VLOOKUP($A33&\"-\"&U$28,Hilfstabelle!$A$3:$E$90,4,FALSE))","v":5},":",{"$f":"IF(ISERROR(VLOOKUP($A33&\"-\"&U$28,Hilfstabelle!$A$3:$E$90,4,FALSE)),VLOOKUP(U$28&\"-\"&$A33,Hilfstabelle!$A$3:$E$90,4,FALSE),VLOOKUP($A33&\"-\"&U$28,Hilfstabelle!$A$3:$E$90,5,FALSE))","v":3},2,{"$f":"IF(ISERROR(VLOOKUP($A33&\"-\"&Y$28,Hilfstabelle!$A$3:$E$90,4,FALSE)),VLOOKUP(Y$28&\"-\"&$A33,Hilfstabelle!$A$3:$E$90,5,FALSE),VLOOKUP($A33&\"-\"&Y$28,Hilfstabelle!$A$3:$E$90,4,FALSE))","v":4},":",{"$f":"IF(ISERROR(VLOOKUP($A33&\"-\"&Y$28,Hilfstabelle!$A$3:$E$90,4,FALSE)),VLOOKUP(Y$28&\"-\"&$A33,Hilfstabelle!$A$3:$E$90,4,FALSE),VLOOKUP($A33&\"-\"&Y$28,Hilfstabelle!$A$3:$E$90,5,FALSE))","v":3},2,null,":",null,"",null,null,null,null,null,null,null,null,null,":",null,null,22,12,10,7,2,null,null,null,"Le Tigri 1",8,6,4,null,""]
[{"$f":"'Turnierplan Eingabe Resultate'!Y14","v":13},{"$f":"'Turnierplan Eingabe Resultate'!AA14","v":"Le Tigri 1"},{"$f":"U30","v":1},":",{"$f":"S30","v":2},0,{"$f":"U31","v":4},":",{"$f":"S31","v":0},2,{"$f":"U32","v":6},":",{"$f":"S32","v":0},2,{"$f":"U33","v":3},":",{"$f":"S33","v":5},{"$f":"IF(OR(O34=\"\",Q34=\"\"),\"\",IF(O34>Q34,2,IF(O34=Q34,1,0)))","v":0},null,null,null,null,{"$f":"IF(ISERROR(VLOOKUP($A34&\"-\"&Y$28,Hilfstabelle!$A$3:$E$90,4,FALSE)),VLOOKUP(Y$28&\"-\"&$A34,Hilfstabelle!$A$3:$E$90,5,FALSE),VLOOKUP($A34&\"-\"&Y$28,Hilfstabelle!$A$3:$E$90,4,FALSE))","v":3},":",{"$f":"IF(ISERROR(VLOOKUP($A34&\"-\"&Y$28,Hilfstabelle!$A$3:$E$90,4,FALSE)),VLOOKUP(Y$28&\"-\"&$A34,Hilfstabelle!$A$3:$E$90,4,FALSE),VLOOKUP($A34&\"-\"&Y$28,Hilfstabelle!$A$3:$E$90,5,FALSE))","v":2},2,null,":",null,"",null,null,null,null,null,null,null,null,null,":",null,null,17,9,8,6,4,null,null,null,"Winti United 1",1,2,5,null,""]
[{"$f":"'Turnierplan Eingabe Resultate'!Y15","v":14},{"$f":"'Turnierplan Eingabe Resultate'!AA15","v":"Winti United 1"},{"$f":"Y30","v":2},":",{"$f":"W30","v":3},0,{"$f":"Y31","v":1},":",{"$f":"W31","v":4},0,{"$f":"Y32","v":8},":",{"$f":"W32","v":1},2,{"$f":"Y33","v":3},":",{"$f":"W33","v":4},0,{"$f":"Y34","v":2},":",{"$f":"W34","v":3},{"$f":"IF(OR(S35=\"\",U35=\"\"),\"\",IF(S35>U35,2,IF(S35=U35,1,0)))","v":0},null,null,null,null,null,":",null,"",null,null,null,null,null,null,null,null,null,":",null,null,16,15,1,2,5,null,null,null,"Schulheim  Chur",-30,0,6]
[{"$f":"'Turnierplan Eingabe Resultate'!Y16","v":0},{"$f":"'Turnierplan Eingabe Resultate'!AA16","v":0},null,":",null,"",null,":",null,"",null,":",null,"",null,":",null,"",null,":",null,"",null,":",null,{"$f":"IF(OR(W36=\"\",Y36=\"\"),\"\",IF(W36>Y36,2,IF(W36=Y36,1,0)))","v":""},null,null,null,null,null,null,null,null,null,null,null,null,null,null,null,null,0,0,0,0,null,null,null,null,0,0,0]
[]
[]
[null,{"$f":"'Turnierplan Eingabe Resultate'!AI9","v":"Gruppe D1"},null,null,{"$f":"A41","v":15},null,null,null,{"$f":"A42","v":16},null,null,null,{"$f":"A43","v":17},null,null,null,{"$f":"A44","v":18},null,null,null,{"$f":"A45","v":19},null,null,null,{"$f":"A46","v":20},null,null,null,{"$f":"A47","v":0},null,null,null,null,null,null,null,null,null,null,null,null,null,null,null,null,null,null,null,null,null,null,"P Dif","P","Rang"]
[null,null,{"$f":"B41","v":"UHC PSW"},null,null,"P",{"$f":"B42","v":"btv chur unihockey 2"},null,null,"P",{"$f":"B43","v":"Black Panthers"},null,null,"P",{"$f":"B44","v":"Bünzgeister"},null,null,"P",{"$f":"B45","v":"Le Tigri 2"},null,null,"P",{"$f":"B46","v":"La Branche"},null,null,"P",{"$f":"B47","v":0},null,null,null,null,null,null,"P",null,null,null,"P",null,null,null,"P"," P+","P -","P Dif","Punkte","Gruppenrang C'"]
[{"$f":"'Turnierplan Eingabe Resultate'!AI10","v":15},{"$f":"'Turnierplan Eingabe Resultate'!AK10","v":"UHC PSW"},null,null,null,null,{"$f":"IF(ISERROR(VLOOKUP($A41&\"-\"&I$39,Hilfstabelle!$A$3:$E$90,4,FALSE)),VLOOKUP(I$39&\"-\"&$A41,Hilfstabelle!$A$3:$E$90,5,FALSE),VLOOKUP($A41&\"-\"&I$39,Hilfstabelle!$A$3:$E$90,4,FALSE))","v":5},":",{"$f":"IF(ISERROR(VLOOKUP($A41&\"-\"&I$39,Hilfstabelle!$A$3:$E$90,4,FALSE)),VLOOKUP(I$39&\"-\"&$A41,Hilfstabelle!$A$3:$E$90,4,FALSE),VLOOKUP($A41&\"-\"&I$39,Hilfstabelle!$A$3:$E$90,5,FALSE))","v":2},{"$f":"IF(OR(G41=\"\",I41=\"\"),\"\",IF(G41>I41,2,IF(G41=I41,1,0)))","v":2},{"$f":"IF(ISERROR(VLOOKUP($A41&\"-\"&M$39,Hilfstabelle!$A$3:$E$90,4,FALSE)),VLOOKUP(M$39&\"-\"&$A41,Hilfstabelle!$A$3:$E$90,5,FALSE),VLOOKUP($A41&\"-\"&M$39,Hilfstabelle!$A$3:$E$90,4,FALSE))","v":0},":",{"$f":"IF(ISERROR(VLOOKUP($A41&\"-\"&M$39,Hilfstabelle!$A$3:$E$90,4,FALSE)),VLOOKUP(M$39&\"-\"&$A41,Hilfstabelle!$A$3:$E$90,4,FALSE),VLOOKUP($A41&\"-\"&M$39,Hilfstabelle!$A$3:$E$90,5,FALSE))","v":2},{"$f":"IF(OR(K41=\"\",M41=\"\"),\"\",IF(K41>M41,2,IF(K41=M41,1,0)))","v":0},{"$f":"IF(ISERROR(VLOOKUP($A41&\"-\"&Q$39,Hilfstabelle!$A$3:$E$90,4,FALSE)),VLOOKUP(Q$39&\"-\"&$A41,Hilfstabelle!$A$3:$E$90,5,FALSE),VLOOKUP($A41&\"-\"&Q$39,Hilfstabelle!$A$3:$E$90,4,FALSE))","v":7},":",{"$f":"IF(ISERROR(VLOOKUP($A41&\"-\"&Q$39,Hilfstabelle!$A$3:$E$90,4,FALSE)),VLOOKUP(Q$39&\"-\"&$A41,Hilfstabelle!$A$3:$E$90,4,FALSE),VLOOKUP($A41&\"-\"&Q$39,Hilfstabelle!$A$3:$E$90,5,FALSE))","v":0},{"$f":"IF(OR(O41=\"\",Q41=\"\"),\"\",IF(O41>Q41,2,IF(O41=Q41,1,0)))","v":2},{"$f":"IF(ISERROR(VLOOKUP($A41&\"-\"&U$39,Hilfstabelle!$A$3:$E$90,4,FALSE)),VLOOKUP(U$39&\"-\"&$A41,Hilfstabelle!$A$3:$E$90,5,FALSE),VLOOKUP($A41&\"-\"&U$39,Hilfstabelle!$A$3:$E$90,4,FALSE))","v":6},":",{"$f":"IF(ISERROR(VLOOKUP($A41&\"-\"&U$39,Hilfstabelle!$A$3:$E$90,4,FALSE)),VLOOKUP(U$39&\"-\"&$A41,Hilfstabelle!$A$3:$E$90,4,FALSE),VLOOKUP($A41&\"-\"&U$39,Hilfstabelle!$A$3:$E$90,5,FALSE))","v":1},{"$f":"IF(OR(S41=\"\",U41=\"\"),\"\",IF(S41>U41,2,IF(S41=U41,1,0)))","v":2},{"$f":"IF(ISERROR(VLOOKUP($A41&\"-\"&Y$39,Hilfstabelle!$A$3:$E$90,4,FALSE)),VLOOKUP(Y$39&\"-\"&$A41,Hilfstabelle!$A$3:$E$90,5,FALSE),VLOOKUP($A41&\"-\"&Y$39,Hilfstabelle!$A$3:$E$90,4,FALSE))","v":3},":",{"$f":"IF(ISERROR(VLOOKUP($A41&\"-\"&Y$39,Hilfstabelle!$A$3:$E$90,4,FALSE)),VLOOKUP(Y$39&\"-\"&$A41,Hilfstabelle!$A$3:$E$90,4,FALSE),VLOOKUP($A41&\"-\"&Y$39,Hilfstabelle!$A$3:$E$90,5,FALSE))","v":2},{"$f":"IF(OR(W41=\"\",Y41=\"\"),\"\",IF(W41>Y41,2,IF(W41=Y41,1,0)))","v":2},null,":",null,{"$f":"IF(OR(AA41=\"\",AC41=\"\"),\"\",IF(AA41>AC41,2,IF(AA41=AC41,1,0)))","v":""},null,":",null,null,null,":",null,null,null,":",null,null,{"$f":"SUM(C41,G41,K41,O41,S41,W41,AA41,AE41,AI41,AM41)","v":21},{"$f":"SUM(E41,I41,M41,Q41,U41,Y41,AC41,AG41,AK41,AO41)","v":7},{"$f":"AQ41-AR41","v":14},{"$f":"SUM(F41,J41,N41,R41,V41,Z41,AD41,AH41,AL41,AP41)","v":8},2,null,null,null,"Black Panthers",12,8,1,null,{"$f":"IF(AND(BA41=BA42,BA41<>\"\"),\"Achtung! Punktgleichheit\",\"\")","v":"Achtung! Punktgleichheit"}]
[{"$f":"'Turnierplan Eingabe Resultate'!AI11","v":16},{"$f":"'Turnierplan Eingabe Resultate'!AK11","v":"btv chur unihockey 2"},{"$f":"I41","v":2},":",{"$f":"G41","v":5},{"$f":"IF(OR(C42=\"\",E42=\"\"),\"\",IF(C42>E42,2,IF(C42=E42,1,0)))","v":0},null,null,null,null,{"$f":"IF(ISERROR(VLOOKUP($A42&\"-\"&M$39,Hilfstabelle!$A$3:$E$90,4,FALSE)),VLOOKUP(M$39&\"-\"&$A42,Hilfstabelle!$A$3:$E$90,5,FALSE),VLOOKUP($A42&\"-\"&M$39,Hilfstabelle!$A$3:$E$90,4,FALSE))","v":1},":",{"$f":"IF(ISERROR(VLOOKUP($A42&\"-\"&M$39,Hilfstabelle!$A$3:$E$90,4,FALSE)),VLOOKUP(M$39&\"-\"&$A42,Hilfstabelle!$A$3:$E$90,4,FALSE),VLOOKUP($A42&\"-\"&M$39,Hilfstabelle!$A$3:$E$90,5,FALSE))","v":3},0,{"$f":"IF(ISERROR(VLOOKUP($A42&\"-\"&Q$39,Hilfstabelle!$A$3:$E$90,4,FALSE)),VLOOKUP(Q$39&\"-\"&$A42,Hilfstabelle!$A$3:$E$90,5,FALSE),VLOOKUP($A42&\"-\"&Q$39,Hilfstabelle!$A$3:$E$90,4,FALSE))","v":1},":",{"$f":"IF(ISERROR(VLOOKUP($A42&\"-\"&Q$39,Hilfstabelle!$A$3:$E$90,4,FALSE)),VLOOKUP(Q$39&\"-\"&$A42,Hilfstabelle!$A$3:$E$90,4,FALSE),VLOOKUP($A42&\"-\"&Q$39,Hilfstabelle!$A$3:$E$90,5,FALSE))","v":1},1,{"$f":"IF(ISERROR(VLOOKUP($A42&\"-\"&U$39,Hilfstabelle!$A$3:$E$90,4,FALSE)),VLOOKUP(U$39&\"-\"&$A42,Hilfstabelle!$A$3:$E$90,5,FALSE),VLOOKUP($A42&\"-\"&U$39,Hilfstabelle!$A$3:$E$90,4,FALSE))","v":6},":",{"$f":"IF(ISERROR(VLOOKUP($A42&\"-\"&U$39,Hilfstabelle!$A$3:$E$90,4,FALSE)),VLOOKUP(U$39&\"-\"&$A42,Hilfstabelle!$A$3:$E$90,4,FALSE),VLOOKUP($A42&\"-\"&U$39,Hilfstabelle!$A$3:$E$90,5,FALSE))","v":0},2,{"$f":"IF(ISERROR(VLOOKUP($A42&\"-\"&Y$39,Hilfstabelle!$A$3:$E$90,4,FALSE)),VLOOKUP(Y$39&\"-\"&$A42,Hilfstabelle!$A$3:$E$90,5,FALSE),VLOOKUP($A42&\"-\"&Y$39,Hilfstabelle!$A$3:$E$90,4,FALSE))","v":6},":",{"$f":"IF(ISERROR(VLOOKUP($A42&\"-\"&Y$39,Hilfstabelle!$A$3:$E$90,4,FALSE)),VLOOKUP(Y$39&\"-\"&$A42,Hilfstabelle!$A$3:$E$90,4,FALSE),VLOOKUP($A42&\"-\"&Y$39,Hilfstabelle!$A$3:$E$90,5,FALSE))","v":2},2,null,":",null,"",null,":",null,null,null,":",null,null,null,":",null,null,{"$f":"SUM(C42,G42,K42,O42,S42,W42,AA42,AE42,AI42,AM42)","v":16},{"$f":"SUM(E42,I42,M42,Q42,U42,Y42,AC42,AG42,AK42,AO42)","v":11},5,{"$f":"SUM(F42,J42,N42,R42,V42,Z42,AD42,AH42,AL42,AP42)","v":5},{"$f":"_xlfn.RANK.EQ(AT42,$AT$41:$AT$47)","v":3},null,null,null,"UHC PSW",14,8,2,null,{"$f":"IF(AND(BA42=BA43,BA42<>\"\"),\"Achtung! Punktgleichheit\",\"\")","v":""}]
[{"$f":"'Turnierplan Eingabe Resultate'!AI12","v":17},{"$f":"'Turnierplan Eingabe Resultate'!AK12","v":"Black Panthers"},{"$f":"M41","v":2},":",{"$f":"K41","v":0},2,{"$f":"M42","v":3},":",{"$f":"K42","v":1},{"$f":"IF(OR(G43=\"\",I43=\"\"),\"\",IF(G43>I43,2,IF(G43=I43,1,0)))","v":2},null,null,null,null,{"$f":"IF(ISERROR(VLOOKUP($A43&\"-\"&Q$39,Hilfstabelle!$A$3:$E$90,4,FALSE)),VLOOKUP(Q$39&\"-\"&$A43,Hilfstabelle!$A$3:$E$90,5,FALSE),VLOOKUP($A43&\"-\"&Q$39,Hilfstabelle!$A$3:$E$90,4,FALSE))","v":1},":",{"$f":"IF(ISERROR(VLOOKUP($A43&\"-\"&Q$39,Hilfstabelle!$A$3:$E$90,4,FALSE)),VLOOKUP(Q$39&\"-\"&$A43,Hilfstabelle!$A$3:$E$90,4,FALSE),VLOOKUP($A43&\"-\"&Q$39,Hilfstabelle!$A$3:$E$90,5,FALSE))","v":3},0,{"$f":"IF(ISERROR(VLOOKUP($A43&\"-\"&U$39,Hilfstabelle!$A$3:$E$90,4,FALSE)),VLOOKUP(U$39&\"-\"&$A43,Hilfstabelle!$A$3:$E$90,5,FALSE),VLOOKUP($A43&\"-\"&U$39,Hilfstabelle!$A$3:$E$90,4,FALSE))","v":5},":",{"$f":"IF(ISERROR(VLOOKUP($A43&\"-\"&U$39,Hilfstabelle!$A$3:$E$90,4,FALSE)),VLOOKUP(U$39&\"-\"&$A43,Hilfstabelle!$A$3:$E$90,4,FALSE),VLOOKUP($A43&\"-\"&U$39,Hilfstabelle!$A$3:$E$90,5,FALSE))","v":0},2,{"$f":"IF(ISERROR(VLOOKUP($A43&\"-\"&Y$39,Hilfstabelle!$A$3:$E$90,4,FALSE)),VLOOKUP(Y$39&\"-\"&$A43,Hilfstabelle!$A$3:$E$90,5,FALSE),VLOOKUP($A43&\"-\"&Y$39,Hilfstabelle!$A$3:$E$90,4,FALSE))","v":6},":",{"$f":"IF(ISERROR(VLOOKUP($A43&\"-\"&Y$39,Hilfstabelle!$A$3:$E$90,4,FALSE)),VLOOKUP(Y$39&\"-\"&$A43,Hilfstabelle!$A$3:$E$90,4,FALSE),VLOOKUP($A43&\"-\"&Y$39,Hilfstabelle!$A$3:$E$90,5,FALSE))","v":1},2,null,":",null,"",null,null,null,null,null,":",null,null,null,":",null,null,{"$f":"SUM(C43,G43,K43,O43,S43,W43,AA43,AE43,AI43,AM43)","v":17},5,12,8,1,null,null,null,"btv chur unihockey 2",5,5,3,null,"Achtung! Punktgleichheit"]
[{"$f":"'Turnierplan Eingabe Resultate'!AI13","v":18},{"$f":"'Turnierplan Eingabe Resultate'!AK13","v":"Bünzgeister"},{"$f":"Q41","v":0},":",{"$f":"O41","v":7},0,{"$f":"Q42","v":1},":",{"$f":"O42","v":1},1,{"$f":"Q43","v":3},":",{"$f":"O43","v":1},{"$f":"IF(OR(K44=\"\",M44=\"\"),\"\",IF(K44>M44,2,IF(K44=M44,1,0)))","v":2},null,null,null,null,{"$f":"IF(ISERROR(VLOOKUP($A44&\"-\"&U$39,Hilfstabelle!$A$3:$E$90,4,FALSE)),VLOOKUP(U$39&\"-\"&$A44,Hilfstabelle!$A$3:$E$90,5,FALSE),VLOOKUP($A44&\"-\"&U$39,Hilfstabelle!$A$3:$E$90,4,FALSE))","v":5},":",{"$f":"IF(ISERROR(VLOOKUP($A44&\"-\"&U$39,Hilfstabelle!$A$3:$E$90,4,FALSE)),VLOOKUP(U$39&\"-\"&$A44,Hilfstabelle!$A$3:$E$90,4,FALSE),VLOOKUP($A44&\"-\"&U$39,Hilfstabelle!$A$3:$E$90,5,FALSE))","v":2},2,{"$f":"IF(ISERROR(VLOOKUP($A44&\"-\"&Y$39,Hilfstabelle!$A$3:$E$90,4,FALSE)),VLOOKUP(Y$39&\"-\"&$A44,Hilfstabelle!$A$3:$E$90,5,FALSE),VLOOKUP($A44&\"-\"&Y$39,Hilfstabelle!$A$3:$E$90,4,FALSE))","v":4},":",{"$f":"IF(ISERROR(VLOOKUP($A44&\"-\"&Y$39,Hilfstabelle!$A$3:$E$90,4,FALSE)),VLOOKUP(Y$39&\"-\"&$A44,Hilfstabelle!$A$3:$E$90,4,FALSE),VLOOKUP($A44&\"-\"&Y$39,Hilfstabelle!$A$3:$E$90,5,FALSE))","v":5},0,null,":",null,"",null,":",null,null,null,null,null,null,null,":",null,null,13,16,-3,5,4,null,null,null,"Bünzgeister",-3,5,4,null,""]
[{"$f":"'Turnierplan Eingabe Resultate'!AI14","v":19},{"$f":"'Turnierplan Eingabe Resultate'!AK14","v":"Le Tigri 2"},{"$f":"U41","v":1},":",{"$f":"S41","v":6},0,{"$f":"U42","v":0},":",{"$f":"S42","v":6},0,{"$f":"U43","v":0},":",{"$f":"S43","v":5},0,{"$f":"U44","v":2},":",{"$f":"S44","v":5},{"$f":"IF(OR(O45=\"\",Q45=\"\"),\"\",IF(O45>Q45,2,IF(O45=Q45,1,0)))","v":0},null,null,null,null,{"$f":"IF(ISERROR(VLOOKUP($A45&\"-\"&Y$39,Hilfstabelle!$A$3:$E$90,4,FALSE)),VLOOKUP(Y$39&\"-\"&$A45,Hilfstabelle!$A$3:$E$90,5,FALSE),VLOOKUP($A45&\"-\"&Y$39,Hilfstabelle!$A$3:$E$90,4,FALSE))","v":1},":",{"$f":"IF(ISERROR(VLOOKUP($A45&\"-\"&Y$39,Hilfstabelle!$A$3:$E$90,4,FALSE)),VLOOKUP(Y$39&\"-\"&$A45,Hilfstabelle!$A$3:$E$90,4,FALSE),VLOOKUP($A45&\"-\"&Y$39,Hilfstabelle!$A$3:$E$90,5,FALSE))","v":5},0,null,":",null,"",null,":",null,null,null,":",null,null,null,null,null,null,4,27,-23,0,6,null,null,null,"La Branche",-5,4,5,null,""]
[{"$f":"'Turnierplan Eingabe Resultate'!AI15","v":20},{"$f":"'Turnierplan Eingabe Resultate'!AK15","v":"La Branche"},{"$f":"Y41","v":2},":",{"$f":"W41","v":3},0,{"$f":"Y42","v":2},":",{"$f":"W42","v":6},0,{"$f":"Y43","v":1},":",{"$f":"W43","v":6},0,{"$f":"Y44","v":5},":",{"$f":"W44","v":4},2,{"$f":"Y45","v":5},":",{"$f":"W45","v":1},{"$f":"IF(OR(S46=\"\",U46=\"\"),\"\",IF(S46>U46,2,IF(S46=U46,1,0)))","v":2},null,null,null,null,null,":",null,"",null,null,null,null,null,null,null,null,null,":",null,null,15,20,-5,4,5,null,null,null,"Le Tigri 2",-23,0,6]
[{"$f":"'Turnierplan Eingabe Resultate'!AI16","v":0},{"$f":"'Turnierplan Eingabe Resultate'!AK16","v":0},null,":",null,"",null,":",null,"",null,":",null,"",null,":",null,"",null,":",null,"",null,":",null,{"$f":"IF(OR(W47=\"\",Y47=\"\"),\"\",IF(W47>Y47,2,IF(W47=Y47,1,0)))","v":""},null,null,null,null,null,null,null,null,null,null,null,null,null,":",null,null,0,0,0,0,null,null,null,null,0,0,0]
[]
[]
[null,{"$f":"'Turnierplan Eingabe Resultate'!AI19","v":"Gruppe D2"},null,null,{"$f":"A52","v":21},null,null,null,{"$f":"A53","v":22},null,null,null,{"$f":"A54","v":23},null,null,null,{"$f":"A55","v":24},null,null,null,{"$f":"A56","v":25},null,null,null,{"$f":"A57","v":0},null,null,null,{"$f":"A58","v":0},null,null,null,null,null,null,null,null,null,null,null,null,null,null,null,null,null,null,null,null,null,null,"P Dif","P","Rang"]
[null,null,{"$f":"B52","v":"Insieme Rheintal Gators"},null,null,"P",{"$f":"B53","v":"btv chur unihockey 3"},null,null,"P",{"$f":"B54","v":"Vindonissa Panthers"},null,null,"P",{"$f":"B55","v":"Rappi Jona Flames 2"},null,null,"P",{"$f":"B56","v":"Winti United 2"},null,null,"P",{"$f":"B57","v":0},null,null,"P",{"$f":"B58","v":0},null,null,null,null,null,null,"P",null,null,null,"P",null,null,null,"P"," P+","P -","P Dif","Punkte","Gruppenrang C'"]
[{"$f":"'Turnierplan Eingabe Resultate'!AI20","v":21},{"$f":"'Turnierplan Eingabe Resultate'!AK20","v":"Insieme Rheintal Gators"},null,null,null,null,{"$f":"IF(ISERROR(VLOOKUP($A52&\"-\"&I$50,Hilfstabelle!$A$3:$E$90,4,FALSE)),VLOOKUP(I$50&\"-\"&$A52,Hilfstabelle!$A$3:$E$90,5,FALSE),VLOOKUP($A52&\"-\"&I$50,Hilfstabelle!$A$3:$E$90,4,FALSE))","v":2},":",{"$f":"IF(ISERROR(VLOOKUP($A52&\"-\"&I$50,Hilfstabelle!$A$3:$E$90,4,FALSE)),VLOOKUP(I$50&\"-\"&$A52,Hilfstabelle!$A$3:$E$90,4,FALSE),VLOOKUP($A52&\"-\"&I$50,Hilfstabelle!$A$3:$E$90,5,FALSE))","v":2},{"$f":"IF(OR(G52=\"\",I52=\"\"),\"\",IF(G52>I52,2,IF(G52=I52,1,0)))","v":1},{"$f":"IF(ISERROR(VLOOKUP($A52&\"-\"&M$50,Hilfstabelle!$A$3:$E$90,4,FALSE)),VLOOKUP(M$50&\"-\"&$A52,Hilfstabelle!$A$3:$E$90,5,FALSE),VLOOKUP($A52&\"-\"&M$50,Hilfstabelle!$A$3:$E$90,4,FALSE))","v":1},":",{"$f":"IF(ISERROR(VLOOKUP($A52&\"-\"&M$50,Hilfstabelle!$A$3:$E$90,4,FALSE)),VLOOKUP(M$50&\"-\"&$A52,Hilfstabelle!$A$3:$E$90,4,FALSE),VLOOKUP($A52&\"-\"&M$50,Hilfstabelle!$A$3:$E$90,5,FALSE))","v":6},{"$f":"IF(OR(K52=\"\",M52=\"\"),\"\",IF(K52>M52,2,IF(K52=M52,1,0)))","v":0},{"$f":"IF(ISERROR(VLOOKUP($A52&\"-\"&Q$50,Hilfstabelle!$A$3:$E$90,4,FALSE)),VLOOKUP(Q$50&\"-\"&$A52,Hilfstabelle!$A$3:$E$90,5,FALSE),VLOOKUP($A52&\"-\"&Q$50,Hilfstabelle!$A$3:$E$90,4,FALSE))","v":0},":",{"$f":"IF(ISERROR(VLOOKUP($A52&\"-\"&Q$50,Hilfstabelle!$A$3:$E$90,4,FALSE)),VLOOKUP(Q$50&\"-\"&$A52,Hilfstabelle!$A$3:$E$90,4,FALSE),VLOOKUP($A52&\"-\"&Q$50,Hilfstabelle!$A$3:$E$90,5,FALSE))","v":4},{"$f":"IF(OR(O52=\"\",Q52=\"\"),\"\",IF(O52>Q52,2,IF(O52=Q52,1,0)))","v":0},{"$f":"IF(ISERROR(VLOOKUP($A52&\"-\"&U$50,Hilfstabelle!$A$3:$E$90,4,FALSE)),VLOOKUP(U$50&\"-\"&$A52,Hilfstabelle!$A$3:$E$90,5,FALSE),VLOOKUP($A52&\"-\"&U$50,Hilfstabelle!$A$3:$E$90,4,FALSE))","v":1},":",{"$f":"IF(ISERROR(VLOOKUP($A52&\"-\"&U$50,Hilfstabelle!$A$3:$E$90,4,FALSE)),VLOOKUP(U$50&\"-\"&$A52,Hilfstabelle!$A$3:$E$90,4,FALSE),VLOOKUP($A52&\"-\"&U$50,Hilfstabelle!$A$3:$E$90,5,FALSE))","v":3},{"$f":"IF(OR(S52=\"\",U52=\"\"),\"\",IF(S52>U52,2,IF(S52=U52,1,0)))","v":0},null,":",null,{"$f":"IF(OR(W52=\"\",Y52=\"\"),\"\",IF(W52>Y52,2,IF(W52=Y52,1,0)))","v":""},null,":",null,{"$f":"IF(OR(AA52=\"\",AC52=\"\"),\"\",IF(AA52>AC52,2,IF(AA52=AC52,1,0)))","v":""},null,":",null,null,null,":",null,null,null,":",null,null,{"$f":"SUM(C52,G52,K52,O52,S52,W52,AA52,AE52,AI52,AM52)","v":4},{"$f":"SUM(E52,I52,M52,Q52,U52,Y52,AC52,AG52,AK52,AO52)","v":15},{"$f":"AQ52-AR52","v":-11},{"$f":"SUM(F52,J52,N52,R52,V52,Z52,AD52,AH52,AL52,AP52)","v":1},{"$f":"_xlfn.RANK.EQ(AT52,$AT$52:$AT$58)","v":5},null,null,null,"Vindonissa Panthers",8,6,1,null,{"$f":"IF(AND(BA52=BA53,BA52<>\"\"),\"Achtung! Punktgleichheit\",\"\")","v":""}]
[{"$f":"'Turnierplan Eingabe Resultate'!AI21","v":22},{"$f":"'Turnierplan Eingabe Resultate'!AK21","v":"btv chur unihockey 3"},{"$f":"I52","v":2},":",{"$f":"G52","v":2},{"$f":"IF(OR(C53=\"\",E53=\"\"),\"\",IF(C53>E53,2,IF(C53=E53,1,0)))","v":1},null,null,null,null,{"$f":"IF(ISERROR(VLOOKUP($A53&\"-\"&M$50,Hilfstabelle!$A$3:$E$90,4,FALSE)),VLOOKUP(M$50&\"-\"&$A53,Hilfstabelle!$A$3:$E$90,5,FALSE),VLOOKUP($A53&\"-\"&M$50,Hilfstabelle!$A$3:$E$90,4,FALSE))","v":2},":",{"$f":"IF(ISERROR(VLOOKUP($A53&\"-\"&M$50,Hilfstabelle!$A$3:$E$90,4,FALSE)),VLOOKUP(M$50&\"-\"&$A53,Hilfstabelle!$A$3:$E$90,4,FALSE),VLOOKUP($A53&\"-\"&M$50,Hilfstabelle!$A$3:$E$90,5,FALSE))","v":2},{"$f":"IF(OR(K53=\"\",M53=\"\"),\"\",IF(K53>M53,2,IF(K53=M53,1,0)))","v":1},{"$f":"IF(ISERROR(VLOOKUP($A53&\"-\"&Q$50,Hilfstabelle!$A$3:$E$90,4,FALSE)),VLOOKUP(Q$50&\"-\"&$A53,Hilfstabelle!$A$3:$E$90,5,FALSE),VLOOKUP($A53&\"-\"&Q$50,Hilfstabelle!$A$3:$E$90,4,FALSE))","v":2},":",{"$f":"IF(ISERROR(VLOOKUP($A53&\"-\"&Q$50,Hilfstabelle!$A$3:$E$90,4,FALSE)),VLOOKUP(Q$50&\"-\"&$A53,Hilfstabelle!$A$3:$E$90,4,FALSE),VLOOKUP($A53&\"-\"&Q$50,Hilfstabelle!$A$3:$E$90,5,FALSE))","v":3},{"$f":"IF(OR(O53=\"\",Q53=\"\"),\"\",IF(O53>Q53,2,IF(O53=Q53,1,0)))","v":0},{"$f":"IF(ISERROR(VLOOKUP($A53&\"-\"&U$50,Hilfstabelle!$A$3:$E$90,4,FALSE)),VLOOKUP(U$50&\"-\"&$A53,Hilfstabelle!$A$3:$E$90,5,FALSE),VLOOKUP($A53&\"-\"&U$50,Hilfstabelle!$A$3:$E$90,4,FALSE))","v":6},":",{"$f":"IF(ISERROR(VLOOKUP($A53&\"-\"&U$50,Hilfstabelle!$A$3:$E$90,4,FALSE)),VLOOKUP(U$50&\"-\"&$A53,Hilfstabelle!$A$3:$E$90,4,FALSE),VLOOKUP($A53&\"-\"&U$50,Hilfstabelle!$A$3:$E$90,5,FALSE))","v":1},{"$f":"IF(OR(S53=\"\",U53=\"\"),\"\",IF(S53>U53,2,IF(S53=U53,1,0)))","v":2},null,":",null,"",null,":",null,"",null,":",null,null,null,":",null,null,null,":",null,null,{"$f":"SUM(C53,G53,K53,O53,S53,W53,AA53,AE53,AI53,AM53)","v":12},{"$f":"SUM(E53,I53,M53,Q53,U53,Y53,AC53,AG53,AK53,AO53)","v":8},4,{"$f":"SUM(F53,J53,N53,R53,V53,Z53,AD53,AH53,AL53,AP53)","v":4},{"$f":"_xlfn.RANK.EQ(AT53,$AT$52:$AT$58)","v":3},null,null,null,"Rappi Jona Flames 2",2,5,2,null,{"$f":"IF(AND(BA53=BA54,BA53<>\"\"),\"Achtung! Punktgleichheit\",\"\")","v":""}]
[{"$f":"'Turnierplan Eingabe Resultate'!AI22","v":23},{"$f":"'Turnierplan Eingabe Resultate'!AK22","v":"Vindonissa Panthers"},{"$f":"M52","v":6},":",{"$f":"K52","v":1},2,{"$f":"M53","v":2},":",{"$f":"K53","v":2},{"$f":"IF(OR(G54=\"\",I54=\"\"),\"\",IF(G54>I54,2,IF(G54=I54,1,0)))","v":1},null,null,null,null,{"$f":"IF(ISERROR(VLOOKUP($A54&\"-\"&Q$50,Hilfstabelle!$A$3:$E$90,4,FALSE)),VLOOKUP(Q$50&\"-\"&$A54,Hilfstabelle!$A$3:$E$90,5,FALSE),VLOOKUP($A54&\"-\"&Q$50,Hilfstabelle!$A$3:$E$90,4,FALSE))","v":3},":",{"$f":"IF(ISERROR(VLOOKUP($A54&\"-\"&Q$50,Hilfstabelle!$A$3:$E$90,4,FALSE)),VLOOKUP(Q$50&\"-\"&$A54,Hilfstabelle!$A$3:$E$90,4,FALSE),VLOOKUP($A54&\"-\"&Q$50,Hilfstabelle!$A$3:$E$90,5,FALSE))","v":0},2,{"$f":"IF(ISERROR(VLOOKUP($A54&\"-\"&U$50,Hilfstabelle!$A$3:$E$90,4,FALSE)),VLOOKUP(U$50&\"-\"&$A54,Hilfstabelle!$A$3:$E$90,5,FALSE),VLOOKUP($A54&\"-\"&U$50,Hilfstabelle!$A$3:$E$90,4,FALSE))","v":3},":",{"$f":"IF(ISERROR(VLOOKUP($A54&\"-\"&U$50,Hilfstabelle!$A$3:$E$90,4,FALSE)),VLOOKUP(U$50&\"-\"&$A54,Hilfstabelle!$A$3:$E$90,4,FALSE),VLOOKUP($A54&\"-\"&U$50,Hilfstabelle!$A$3:$E$90,5,FALSE))","v":3},1,null,":",null,"",null,":",null,"",null,null,null,null,null,":",null,null,null,":",null,null,{"$f":"SUM(C54,G54,K54,O54,S54,W54,AA54,AE54,AI54,AM54)","v":14},6,8,6,1,null,null,null,"btv chur unihockey 3",4,4,3,null,{"$f":"IF(AND(BA54=BA55,BA54<>\"\"),\"Achtung! Punktgleichheit\",\"\")","v":"Achtung! Punktgleichheit"}]
[{"$f":"'Turnierplan Eingabe Resultate'!AI23","v":24},{"$f":"'Turnierplan Eingabe Resultate'!AK23","v":"Rappi Jona Flames 2"},{"$f":"Q52","v":4},":",{"$f":"O52","v":0},2,{"$f":"Q53","v":3},":",{"$f":"O53","v":2},2,{"$f":"Q54","v":0},":",{"$f":"O54","v":3},{"$f":"IF(OR(K55=\"\",M55=\"\"),\"\",IF(K55>M55,2,IF(K55=M55,1,0)))","v":0},null,null,null,null,{"$f":"IF(ISERROR(VLOOKUP($A55&\"-\"&U$50,Hilfstabelle!$A$3:$E$90,4,FALSE)),VLOOKUP(U$50&\"-\"&$A55,Hilfstabelle!$A$3:$E$90,5,FALSE),VLOOKUP($A55&\"-\"&U$50,Hilfstabelle!$A$3:$E$90,4,FALSE))","v":2},":",{"$f":"IF(ISERROR(VLOOKUP($A55&\"-\"&U$50,Hilfstabelle!$A$3:$E$90,4,FALSE)),VLOOKUP(U$50&\"-\"&$A55,Hilfstabelle!$A$3:$E$90,4,FALSE),VLOOKUP($A55&\"-\"&U$50,Hilfstabelle!$A$3:$E$90,5,FALSE))","v":2},1,null,":",null,"",null,":",null,"",null,":",null,null,null,null,null,null,null,":",null,null,9,7,2,5,2,null,null,null,"Winti United 2",-3,4,4,null,{"$f":"IF(AND(BA55=BA56,BA55<>\"\"),\"Achtung! Punktgleichheit\",\"\")","v":""}]
[{"$f":"'Turnierplan Eingabe Resultate'!AI24","v":25},{"$f":"'Turnierplan Eingabe Resultate'!AK24","v":"Winti United 2"},{"$f":"U52","v":3},":",{"$f":"S52","v":1},2,{"$f":"U53","v":1},":",{"$f":"S53","v":6},0,{"$f":"U54","v":3},":",{"$f":"S54","v":3},1,{"$f":"U55","v":2},":",{"$f":"S55","v":2},{"$f":"IF(OR(O56=\"\",Q56=\"\"),\"\",IF(O56>Q56,2,IF(O56=Q56,1,0)))","v":1},null,null,null,null,null,":",null,"",null,":",null,"",null,":",null,null,null,":",null,null,null,null,null,null,9,12,-3,4,4,null,null,null,"Insieme Rheintal Gators",-11,1,5]
[{"$f":"'Turnierplan Eingabe Resultate'!AI25","v":0},{"$f":"'Turnierplan Eingabe Resultate'!AK25","v":0},null,":",null,"",null,":",null,"",null,":",null,"",null,":",null,"",null,":",null,{"$f":"IF(OR(S57=\"\",U57=\"\"),\"\",IF(S57>U57,2,IF(S57=U57,1,0)))","v":""},null,null,null,null,{"$f":"IF(ISERROR(VLOOKUP($A57&\"-\"&AC$39,Hilfstabelle!$A$3:$E$90,4,FALSE)),VLOOKUP(AC$39&\"-\"&$A57,Hilfstabelle!$A$3:$E$90,5,FALSE),VLOOKUP($A57&\"-\"&AC$39,Hilfstabelle!$A$3:$E$90,4,FALSE))","v":""},":",{"$f":"IF(ISERROR(VLOOKUP($A57&\"-\"&AC$39,Hilfstabelle!$A$3:$E$90,4,FALSE)),VLOOKUP(AC$39&\"-\"&$A57,Hilfstabelle!$A$3:$E$90,4,FALSE),VLOOKUP($A57&\"-\"&AC$39,Hilfstabelle!$A$3:$E$90,5,FALSE))","v":""},"",null,null,null,null,null,null,null,null,null,":",null,null,0,0,0,0,null,null,null,null,0,0,0]
[{"$f":"'Turnierplan Eingabe Resultate'!AI26","v":0},{"$f":"'Turnierplan Eingabe Resultate'!AK26","v":0},null,":",null,"",null,":",null,"",null,":",null,"",null,":",null,"",null,":",null,"",{"$f":"AC57","v":""},":",{"$f":"AA57","v":""},{"$f":"IF(OR(W58=\"\",Y58=\"\"),\"\",IF(W58>Y58,2,IF(W58=Y58,1,0)))","v":""},null,null,null,null,null,null,null,null,null,null,null,null,null,":",null,null,0,0,0,0,null,null,null,null,0,0,0]
[]
[]
[]
[]
[]
[]
[]
[]
[]
[]
[]
[]
[]
[]
[]
[]
[]
[]
[]
[]
[]
[]
[]
[]
[]
[]
[]
[]
[]
[]
[]
[]
[]
[]
[]
[]
[]
[]
[]
[]
[]
[]
[]
[]
[]
[]
[]
[]
[]
[]
[]
[]
[]
[]
[]
[]
[]
[]
[]
[]
[]
[]
[]
[null,null,null,null,null,null,null,null,null,null,null,null,null,null,null,null,null,null,null,null,null,null,null,null,null,null,null,null,null,null,null,null,null,null,null,null,null,null,null,null,null,null,null,null,null,null,null,null,null,null,null,null,null,null,null,{"$f":"'Turnierplan Eingabe Resultate'!S49","v":"5.D1"},{"$f":"'Turnierplan Eingabe Resultate'!U49","v":"6.D1"},{"$f":"'Turnierplan Eingabe Resultate'!W49","v":4},{"$f":"'Turnierplan Eingabe Resultate'!Y49","v":3}]
[null,null,null,null,null,null,null,null,null,null,null,null,null,null,null,null,null,null,null,null,null,null,null,null,null,null,null,null,null,null,null,null,null,null,null,null,null,null,null,null,null,null,null,null,null,null,null,null,null,null,null,null,null,null,null,{"$f":"'Turnierplan Eingabe Resultate'!S50","v":0},{"$f":"'Turnierplan Eingabe Resultate'!U50","v":0},{"$f":"'Turnierplan Eingabe Resultate'!W50","v":0},{"$f":"'Turnierplan Eingabe Resultate'!Y50","v":0}]
[null,null,null,null,null,null,null,null,null,null,null,null,null,null,null,null,null,null,null,null,null,null,null,null,null,null,null,null,null,null,null,null,null,null,null,null,null,null,null,null,null,null,null,null,null,null,null,null,null,null,null,null,null,null,null,{"$f":"'Turnierplan Eingabe Resultate'!#REF!","v":{"$error":"#REF!"}},{"$f":"'Turnierplan Eingabe Resultate'!#REF!","v":{"$error":"#REF!"}},{"$f":"'Turnierplan Eingabe Resultate'!#REF!","v":{"$error":"#REF!"}},{"$f":"'Turnierplan Eingabe Resultate'!#REF!","v":{"$error":"#REF!"}}]
[null,null,null,null,null,null,null,null,null,null,null,null,null,null,null,null,null,null,null,null,null,null,null,null,null,null,null,null,null,null,null,null,null,null,null,null,null,null,null,null,null,null,null,null,null,null,null,null,null,null,null,null,null,null,null,{"$f":"'Turnierplan Eingabe Resultate'!S51","v":0},{"$f":"'Turnierplan Eingabe Resultate'!U51","v":0},{"$f":"'Turnierplan Eingabe Resultate'!W51","v":0},{"$f":"'Turnierplan Eingabe Resultate'!Y51","v":0}]
[]
[]
[]
[]
[]
[]
[]
[]
[]
[]
[]
[]
[]
[]
[]
[]
[null,null,null,null,null,null,null,null,null,null,null,null,null,null,null,null,null,null,null,null,null,null,null,null,null,null,null,null,null,null,null,null,null,null,null,null,null,null,null,null,null,null,null,null,null,null,null,null,null,null,null,null,null,null,null,null,"gruppe1","gruppe1","gruppe2","gruppe2"]
[]
[]
[]
[]
[]
[]
[]
[]
[]
[null,null,null,null,null,null,null,null,null,null,null,null,null,null,null,null,null,null,null,null,null,null,null,null,null,null,null,null,null,null,null,null,null,null,null,null,null,null,null,null,null,null,null,null,null,null,null,null,null,null,null,null,null,null,null,null,{"$f":"'Turnierplan Eingabe Resultate'!E30","v":5},{"$f":"'Turnierplan Eingabe Resultate'!G30","v":7},{"$f":"'Turnierplan Eingabe Resultate'!I30","v":6},{"$f":"'Turnierplan Eingabe Resultate'!K30","v":4}]
[null,null,null,null,null,null,null,null,null,null,null,null,null,null,null,null,null,null,null,null,null,null,null,null,null,null,null,null,null,null,null,null,null,null,null,null,null,null,null,null,null,null,null,null,null,null,null,null,null,null,null,null,null,null,null,null,{"$f":"'Turnierplan Eingabe Resultate'!E31","v":11},{"$f":"'Turnierplan Eingabe Resultate'!G31","v":9},{"$f":"'Turnierplan Eingabe Resultate'!I31","v":2},{"$f":"'Turnierplan Eingabe Resultate'!K31","v":6}]
[null,null,null,null,null,null,null,null,null,null,null,null,null,null,null,null,null,null,null,null,null,null,null,null,null,null,null,null,null,null,null,null,null,null,null,null,null,null,null,null,null,null,null,null,null,null,null,null,null,null,null,null,null,null,null,null,{"$f":"'Turnierplan Eingabe Resultate'!E32","v":15},{"$f":"'Turnierplan Eingabe Resultate'!G32","v":17},{"$f":"'Turnierplan Eingabe Resultate'!I32","v":0},{"$f":"'Turnierplan Eingabe Resultate'!K32","v":2}]
[null,null,null,null,null,null,null,null,null,null,null,null,null,null,null,null,null,null,null,null,null,null,null,null,null,null,null,null,null,null,null,null,null,null,null,null,null,null,null,null,null,null,null,null,null,null,null,null,null,null,null,null,null,null,null,null,{"$f":"'Turnierplan Eingabe Resultate'!E33","v":2},{"$f":"'Turnierplan Eingabe Resultate'!G33","v":3},{"$f":"'Turnierplan Eingabe Resultate'!I33","v":4},{"$f":"'Turnierplan Eingabe Resultate'!K33","v":1}]
[null,null,null,null,null,null,null,null,null,null,null,null,null,null,null,null,null,null,null,null,null,null,null,null,null,null,null,null,null,null,null,null,null,null,null,null,null,null,null,null,null,null,null,null,null,null,null,null,null,null,null,null,null,null,null,null,{"$f":"'Turnierplan Eingabe Resultate'!E34","v":8},{"$f":"'Turnierplan Eingabe Resultate'!G34","v":5},{"$f":"'Turnierplan Eingabe Resultate'!I34","v":4},{"$f":"'Turnierplan Eingabe Resultate'!K34","v":2}]
[null,null,null,null,null,null,null,null,null,null,null,null,null,null,null,null,null,null,null,null,null,null,null,null,null,null,null,null,null,null,null,null,null,null,null,null,null,null,null,null,null,null,null,null,null,null,null,null,null,null,null,null,null,null,null,null,{"$f":"'Turnierplan Eingabe Resultate'!E35","v":9},{"$f":"'Turnierplan Eingabe Resultate'!G35","v":13},{"$f":"'Turnierplan Eingabe Resultate'!I35","v":2},{"$f":"'Turnierplan Eingabe Resultate'!K35","v":1}]
[null,null,null,null,null,null,null,null,null,null,null,null,null,null,null,null,null,null,null,null,null,null,null,null,null,null,null,null,null,null,null,null,null,null,null,null,null,null,null,null,null,null,null,null,null,null,null,null,null,null,null,null,null,null,null,null,{"$f":"'Turnierplan Eingabe Resultate'!E36","v":15},{"$f":"'Turnierplan Eingabe Resultate'!G36","v":19},{"$f":"'Turnierplan Eingabe Resultate'!I36","v":6},{"$f":"'Turnierplan Eingabe Resultate'!K36","v":1}]
[null,null,null,null,null,null,null,null,null,null,null,null,null,null,null,null,null,null,null,null,null,null,null,null,null,null,null,null,null,null,null,null,null,null,null,null,null,null,null,null,null,null,null,null,null,null,null,null,null,null,null,null,null,null,null,null,{"$f":"'Turnierplan Eingabe Resultate'!E37","v":2},{"$f":"'Turnierplan Eingabe Resultate'!G37","v":1},{"$f":"'Turnierplan Eingabe Resultate'!I37","v":3},{"$f":"'Turnierplan Eingabe Resultate'!K37","v":3}]
[null,null,null,null,null,null,null,null,null,null,null,null,null,null,null,null,null,null,null,null,null,null,null,null,null,null,null,null,null,null,null,null,null,null,null,null,null,null,null,null,null,null,null,null,null,null,null,null,null,null,null,null,null,null,null,null,{"$f":"'Turnierplan Eingabe Resultate'!E38","v":8},{"$f":"'Turnierplan Eingabe Resultate'!G38","v":7},{"$f":"'Turnierplan Eingabe Resultate'!I38","v":3},{"$f":"'Turnierplan Eingabe Resultate'!K38","v":2}]
[null,null,null,null,null,null,null,null,null,null,null,null,null,null,null,null,null,null,null,null,null,null,null,null,null,null,null,null,null,null,null,null,null,null,null,null,null,null,null,null,null,null,null,null,null,null,null,null,null,null,null,null,null,null,null,null,{"$f":"'Turnierplan Eingabe Resultate'!#REF!","v":{"$error":"#REF!"}},{"$f":"'Turnierplan Eingabe Resultate'!#REF!","v":{"$error":"#REF!"}},{"$f":"'Turnierplan Eingabe Resultate'!#REF!","v":{"$error":"#REF!"}},{"$f":"'Turnierplan Eingabe Resultate'!#REF!","v":{"$error":"#REF!"}}]
[null,null,null,null,null,null,null,null,null,null,null,null,null,null,null,null,null,null,null,null,null,null,null,null,null,null,null,null,null,null,null,null,null,null,null,null,null,null,null,null,null,null,null,null,null,null,null,null,null,null,null,null,null,null,null,null,{"$f":"'Turnierplan Eingabe Resultate'!E39","v":12},{"$f":"'Turnierplan Eingabe Resultate'!G39","v":9},{"$f":"'Turnierplan Eingabe Resultate'!I39","v":2},{"$f":"'Turnierplan Eingabe Resultate'!K39","v":2}]
[null,null,null,null,null,null,null,null,null,null,null,null,null,null,null,null,null,null,null,null,null,null,null,null,null,null,null,null,null,null,null,null,null,null,null,null,null,null,null,null,null,null,null,null,null,null,null,null,null,null,null,null,null,null,null,null,{"$f":"'Turnierplan Eingabe Resultate'!E40","v":18},{"$f":"'Turnierplan Eingabe Resultate'!G40","v":15},{"$f":"'Turnierplan Eingabe Resultate'!I40","v":0},{"$f":"'Turnierplan Eingabe Resultate'!K40","v":7}]
[null,null,null,null,null,null,null,null,null,null,null,null,null,null,null,null,null,null,null,null,null,null,null,null,null,null,null,null,null,null,null,null,null,null,null,null,null,null,null,null,null,null,null,null,null,null,null,null,null,null,null,null,null,null,null,null,{"$f":"'Turnierplan Eingabe Resultate'!E47","v":5},{"$f":"'Turnierplan Eingabe Resultate'!G47","v":8},{"$f":"'Turnierplan Eingabe Resultate'!I47","v":2},{"$f":"'Turnierplan Eingabe Resultate'!K47","v":3}]
[null,null,null,null,null,null,null,null,null,null,null,null,null,null,null,null,null,null,null,null,null,null,null,null,null,null,null,null,null,null,null,null,null,null,null,null,null,null,null,null,null,null,null,null,null,null,null,null,null,null,null,null,null,null,null,null,{"$f":"'Turnierplan Eingabe Resultate'!#REF!","v":{"$error":"#REF!"}},{"$f":"'Turnierplan Eingabe Resultate'!#REF!","v":{"$error":"#REF!"}},{"$f":"'Turnierplan Eingabe Resultate'!#REF!","v":{"$error":"#REF!"}},{"$f":"'Turnierplan Eingabe Resultate'!#REF!","v":{"$error":"#REF!"}}]
[null,null,null,null,null,null,null,null,null,null,null,null,null,null,null,null,null,null,null,null,null,null,null,null,null,null,null,null,null,null,null,null,null,null,null,null,null,null,null,null,null,null,null,null,null,null,null,null,null,null,null,null,null,null,null,null,{"$f":"'Turnierplan Eingabe Resultate'!E48","v":"3.C"},{"$f":"'Turnierplan Eingabe Resultate'!G48","v":"4.C"},{"$f":"'Turnierplan Eingabe Resultate'!I48","v":1},{"$f":"'Turnierplan Eingabe Resultate'!K48","v":2}]
[null,null,null,null,null,null,null,null,null,null,null,null,null,null,null,null,null,null,null,null,null,null,null,null,null,null,null,null,null,null,null,null,null,null,null,null,null,null,null,null,null,null,null,null,null,null,null,null,null,null,null,null,null,null,null,null,{"$f":"'Turnierplan Eingabe Resultate'!E49","v":"3.D1"},{"$f":"'Turnierplan Eingabe Resultate'!G49","v":"4.D1"},{"$f":"'Turnierplan Eingabe Resultate'!I49","v":3},{"$f":"'Turnierplan Eingabe Resultate'!K49","v":2}]
[null,null,null,null,null,null,null,null,null,null,null,null,null,null,null,null,null,null,null,null,null,null,null,null,null,null,null,null,null,null,null,null,null,null,null,null,null,null,null,null,null,null,null,null,null,null,null,null,null,null,null,null,null,null,null,null,{"$f":"'Turnierplan Eingabe Resultate'!E50","v":0},{"$f":"'Turnierplan Eingabe Resultate'!G50","v":0},{"$f":"'Turnierplan Eingabe Resultate'!I50","v":0},{"$f":"'Turnierplan Eingabe Resultate'!K50","v":0}]
[null,null,null,null,null,null,null,null,null,null,null,null,null,null,null,null,null,null,null,null,null,null,null,null,null,null,null,null,null,null,null,null,null,null,null,null,null,null,null,null,null,null,null,null,null,null,null,null,null,null,null,null,null,null,null,null,{"$f":"'Turnierplan Eingabe Resultate'!#REF!","v":{"$error":"#REF!"}},{"$f":"'Turnierplan Eingabe Resultate'!#REF!","v":{"$error":"#REF!"}},{"$f":"'Turnierplan Eingabe Resultate'!#REF!","v":{"$error":"#REF!"}},{"$f":"'Turnierplan Eingabe Resultate'!#REF!","v":{"$error":"#REF!"}}]
[null,null,null,null,null,null,null,null,null,null,null,null,null,null,null,null,null,null,null,null,null,null,null,null,null,null,null,null,null,null,null,null,null,null,null,null,null,null,null,null,null,null,null,null,null,null,null,null,null,null,null,null,null,null,null,null,{"$f":"'Turnierplan Eingabe Resultate'!E51","v":0},{"$f":"'Turnierplan Eingabe Resultate'!G51","v":0},{"$f":"'Turnierplan Eingabe Resultate'!I51","v":0},{"$f":"'Turnierplan Eingabe Resultate'!K51","v":0}]
[null,null,null,null,null,null,null,null,null,null,null,null,null,null,null,null,null,null,null,null,null,null,null,null,null,null,null,null,null,null,null,null,null,null,null,null,null,null,null,null,null,null,null,null,null,null,null,null,null,null,null,null,null,null,null,null,{"$f":"'Turnierplan Eingabe Resultate'!L25","v":11},{"$f":"'Turnierplan Eingabe Resultate'!N25","v":12},{"$f":"'Turnierplan Eingabe Resultate'!P25","v":1},{"$f":"'Turnierplan Eingabe Resultate'!R25","v":9}]
[null,null,null,null,null,null,null,null,null,null,null,null,null,null,null,null,null,null,null,null,null,null,null,null,null,null,null,null,null,null,null,null,null,null,null,null,null,null,null,null,null,null,null,null,null,null,null,null,null,null,null,null,null,null,null,null,{"$f":"'Turnierplan Eingabe Resultate'!L26","v":3},{"$f":"'Turnierplan Eingabe Resultate'!N26","v":4},{"$f":"'Turnierplan Eingabe Resultate'!P26","v":1},{"$f":"'Turnierplan Eingabe Resultate'!R26","v":4}]
[null,null,null,null,null,null,null,null,null,null,null,null,null,null,null,null,null,null,null,null,null,null,null,null,null,null,null,null,null,null,null,null,null,null,null,null,null,null,null,null,null,null,null,null,null,null,null,null,null,null,null,null,null,null,null,null,{"$f":"'Turnierplan Eingabe Resultate'!L27","v":17},{"$f":"'Turnierplan Eingabe Resultate'!N27","v":18},{"$f":"'Turnierplan Eingabe Resultate'!P27","v":1},{"$f":"'Turnierplan Eingabe Resultate'!R27","v":3}]
[null,null,null,null,null,null,null,null,null,null,null,null,null,null,null,null,null,null,null,null,null,null,null,null,null,null,null,null,null,null,null,null,null,null,null,null,null,null,null,null,null,null,null,null,null,null,null,null,null,null,null,null,null,null,null,null,{"$f":"'Turnierplan Eingabe Resultate'!L28","v":19},{"$f":"'Turnierplan Eingabe Resultate'!N28","v":20},{"$f":"'Turnierplan Eingabe Resultate'!P28","v":1},{"$f":"'Turnierplan Eingabe Resultate'!R28","v":5}]
[null,null,null,null,null,null,null,null,null,null,null,null,null,null,null,null,null,null,null,null,null,null,null,null,null,null,null,null,null,null,null,null,null,null,null,null,null,null,null,null,null,null,null,null,null,null,null,null,null,null,null,null,null,null,null,null,{"$f":"'Turnierplan Eingabe Resultate'!L29","v":2},{"$f":"'Turnierplan Eingabe Resultate'!N29","v":4},{"$f":"'Turnierplan Eingabe Resultate'!P29","v":3},{"$f":"'Turnierplan Eingabe Resultate'!R29","v":2}]
[null,null,null,null,null,null,null,null,null,null,null,null,null,null,null,null,null,null,null,null,null,null,null,null,null,null,null,null,null,null,null,null,null,null,null,null,null,null,null,null,null,null,null,null,null,null,null,null,null,null,null,null,null,null,null,null,{"$f":"'Turnierplan Eingabe Resultate'!L30","v":6},{"$f":"'Turnierplan Eingabe Resultate'!N30","v":8},{"$f":"'Turnierplan Eingabe Resultate'!P30","v":0},{"$f":"'Turnierplan Eingabe Resultate'!R30","v":8}]
[null,null,null,null,null,null,null,null,null,null,null,null,null,null,null,null,null,null,null,null,null,null,null,null,null,null,null,null,null,null,null,null,null,null,null,null,null,null,null,null,null,null,null,null,null,null,null,null,null,null,null,null,null,null,null,null,{"$f":"'Turnierplan Eingabe Resultate'!L31","v":10},{"$f":"'Turnierplan Eingabe Resultate'!N31","v":13},{"$f":"'Turnierplan Eingabe Resultate'!P31","v":0},{"$f":"'Turnierplan Eingabe Resultate'!R31","v":4}]
[null,null,null,null,null,null,null,null,null,null,null,null,null,null,null,null,null,null,null,null,null,null,null,null,null,null,null,null,null,null,null,null,null,null,null,null,null,null,null,null,null,null,null,null,null,null,null,null,null,null,null,null,null,null,null,null,{"$f":"'Turnierplan Eingabe Resultate'!L32","v":16},{"$f":"'Turnierplan Eingabe Resultate'!N32","v":19},{"$f":"'Turnierplan Eingabe Resultate'!P32","v":6},{"$f":"'Turnierplan Eingabe Resultate'!R32","v":0}]
[null,null,null,null,null,null,null,null,null,null,null,null,null,null,null,null,null,null,null,null,null,null,null,null,null,null,null,null,null,null,null,null,null,null,null,null,null,null,null,null,null,null,null,null,null,null,null,null,null,null,null,null,null,null,null,null,{"$f":"'Turnierplan Eingabe Resultate'!L33","v":4},{"$f":"'Turnierplan Eingabe Resultate'!N33","v":1},{"$f":"'Turnierplan Eingabe Resultate'!P33","v":3},{"$f":"'Turnierplan Eingabe Resultate'!R33","v":3}]
[null,null,null,null,null,null,null,null,null,null,null,null,null,null,null,null,null,null,null,null,null,null,null,null,null,null,null,null,null,null,null,null,null,null,null,null,null,null,null,null,null,null,null,null,null,null,null,null,null,null,null,null,null,null,null,null,{"$f":"'Turnierplan Eingabe Resultate'!L34","v":6},{"$f":"'Turnierplan Eingabe Resultate'!N34","v":7},{"$f":"'Turnierplan Eingabe Resultate'!P34","v":5},{"$f":"'Turnierplan Eingabe Resultate'!R34","v":2}]
[null,null,null,null,null,null,null,null,null,null,null,null,null,null,null,null,null,null,null,null,null,null,null,null,null,null,null,null,null,null,null,null,null,null,null,null,null,null,null,null,null,null,null,null,null,null,null,null,null,null,null,null,null,null,null,null,{"$f":"'Turnierplan Eingabe Resultate'!L35","v":10},{"$f":"'Turnierplan Eingabe Resultate'!N35","v":12},{"$f":"'Turnierplan Eingabe Resultate'!P35","v":3},{"$f":"'Turnierplan Eingabe Resultate'!R35","v":2}]
[null,null,null,null,null,null,null,null,null,null,null,null,null,null,null,null,null,null,null,null,null,null,null,null,null,null,null,null,null,null,null,null,null,null,null,null,null,null,null,null,null,null,null,null,null,null,null,null,null,null,null,null,null,null,null,null,{"$f":"'Turnierplan Eingabe Resultate'!L36","v":16},{"$f":"'Turnierplan Eingabe Resultate'!N36","v":18},{"$f":"'Turnierplan Eingabe Resultate'!P36","v":1},{"$f":"'Turnierplan Eingabe Resultate'!R36","v":1}]
[null,null,null,null,null,null,null,null,null,null,null,null,null,null,null,null,null,null,null,null,null,null,null,null,null,null,null,null,null,null,null,null,null,null,null,null,null,null,null,null,null,null,null,null,null,null,null,null,null,null,null,null,null,null,null,null,{"$f":"'Turnierplan Eingabe Resultate'!L37","v":4},{"$f":"'Turnierplan Eingabe Resultate'!N37","v":3},{"$f":"'Turnierplan Eingabe Resultate'!P37","v":5},{"$f":"'Turnierplan Eingabe Resultate'!R37","v":0}]
[null,null,null,null,null,null,null,null,null,null,null,null,null,null,null,null,null,null,null,null,null,null,null,null,null,null,null,null,null,null,null,null,null,null,null,null,null,null,null,null,null,null,null,null,null,null,null,null,null,null,null,null,null,null,null,null,{"$f":"'Turnierplan Eingabe Resultate'!L38","v":6},{"$f":"'Turnierplan Eingabe Resultate'!N38","v":5},{"$f":"'Turnierplan Eingabe Resultate'!P38","v":2},{"$f":"'Turnierplan Eingabe Resultate'!R38","v":1}]
[null,null,null,null,null,null,null,null,null,null,null,null,null,null,null,null,null,null,null,null,null,null,null,null,null,null,null,null,null,null,null,null,null,null,null,null,null,null,null,null,null,null,null,null,null,null,null,null,null,null,null,null,null,null,null,null,{"$f":"'Turnierplan Eingabe Resultate'!#REF!","v":{"$error":"#REF!"}},{"$f":"'Turnierplan Eingabe Resultate'!#REF!","v":{"$error":"#REF!"}},{"$f":"'Turnierplan Eingabe Resultate'!#REF!","v":{"$error":"#REF!"}},{"$f":"'Turnierplan Eingabe Resultate'!#REF!","v":{"$error":"#REF!"}}]
[null,null,null,null,null,null,null,null,null,null,null,null,null,null,null,null,null,null,null,null,null,null,null,null,null,null,null,null,null,null,null,null,null,null,null,null,null,null,null,null,null,null,null,null,null,null,null,null,null,null,null,null,null,null,null,null,{"$f":"'Turnierplan Eingabe Resultate'!L39","v":14},{"$f":"'Turnierplan Eingabe Resultate'!N39","v":10},{"$f":"'Turnierplan Eingabe Resultate'!P39","v":1},{"$f":"'Turnierplan Eingabe Resultate'!R39","v":4}]
[null,null,null,null,null,null,null,null,null,null,null,null,null,null,null,null,null,null,null,null,null,null,null,null,null,null,null,null,null,null,null,null,null,null,null,null,null,null,null,null,null,null,null,null,null,null,null,null,null,null,null,null,null,null,null,null,{"$f":"'Turnierplan Eingabe Resultate'!L40","v":20},{"$f":"'Turnierplan Eingabe Resultate'!N40","v":16},{"$f":"'Turnierplan Eingabe Resultate'!P40","v":2},{"$f":"'Turnierplan Eingabe Resultate'!R40","v":6}]
[null,null,null,null,null,null,null,null,null,null,null,null,null,null,null,null,null,null,null,null,null,null,null,null,null,null,null,null,null,null,null,null,null,null,null,null,null,null,null,null,null,null,null,null,null,null,null,null,null,null,null,null,null,null,null,null,{"$f":"'Turnierplan Eingabe Resultate'!L47","v":"1.D2"},{"$f":"'Turnierplan Eingabe Resultate'!N47","v":"2.D2"},{"$f":"'Turnierplan Eingabe Resultate'!P47","v":4},{"$f":"'Turnierplan Eingabe Resultate'!R47","v":0}]
[null,null,null,null,null,null,null,null,null,null,null,null,null,null,null,null,null,null,null,null,null,null,null,null,null,null,null,null,null,null,null,null,null,null,null,null,null,null,null,null,null,null,null,null,null,null,null,null,null,null,null,null,null,null,null,null,{"$f":"'Turnierplan Eingabe Resultate'!#REF!","v":{"$error":"#REF!"}},{"$f":"'Turnierplan Eingabe Resultate'!#REF!","v":{"$error":"#REF!"}},{"$f":"'Turnierplan Eingabe Resultate'!#REF!","v":{"$error":"#REF!"}},{"$f":"'Turnierplan Eingabe Resultate'!#REF!","v":{"$error":"#REF!"}}]
[null,null,null,null,null,null,null,null,null,null,null,null,null,null,null,null,null,null,null,null,null,null,null,null,null,null,null,null,null,null,null,null,null,null,null,null,null,null,null,null,null,null,null,null,null,null,null,null,null,null,null,null,null,null,null,null,{"$f":"'Turnierplan Eingabe Resultate'!L48","v":"1.C"},{"$f":"'Turnierplan Eingabe Resultate'!N48","v":"2.C"},{"$f":"'Turnierplan Eingabe Resultate'!P48","v":4},{"$f":"'Turnierplan Eingabe Resultate'!R48","v":0}]
[null,null,null,null,null,null,null,null,null,null,null,null,null,null,null,null,null,null,null,null,null,null,null,null,null,null,null,null,null,null,null,null,null,null,null,null,null,null,null,null,null,null,null,null,null,null,null,null,null,null,null,null,null,null,null,null,{"$f":"'Turnierplan Eingabe Resultate'!L49","v":"1.D1"},{"$f":"'Turnierplan Eingabe Resultate'!N49","v":"2.D1"},{"$f":"'Turnierplan Eingabe Resultate'!P49","v":0},{"$f":"'Turnierplan Eingabe Resultate'!R49","v":1}]
[null,null,null,null,null,null,null,null,null,null,null,null,null,null,null,null,null,null,null,null,null,null,null,null,null,null,null,null,null,null,null,null,null,null,null,null,null,null,null,null,null,null,null,null,null,null,null,null,null,null,null,null,null,null,null,null,{"$f":"'Turnierplan Eingabe Resultate'!L50","v":0},{"$f":"'Turnierplan Eingabe Resultate'!N50","v":0},{"$f":"'Turnierplan Eingabe Resultate'!P50","v":0},{"$f":"'Turnierplan Eingabe Resultate'!R50","v":0}]
[null,null,null,null,null,null,null,null,null,null,null,null,null,null,null,null,null,null,null,null,null,null,null,null,null,null,null,null,null,null,null,null,null,null,null,null,null,null,null,null,null,null,null,null,null,null,null,null,null,null,null,null,null,null,null,null,{"$f":"'Turnierplan Eingabe Resultate'!#REF!","v":{"$error":"#REF!"}},{"$f":"'Turnierplan Eingabe Resultate'!#REF!","v":{"$error":"#REF!"}},{"$f":"'Turnierplan Eingabe Resultate'!#REF!","v":{"$error":"#REF!"}},{"$f":"'Turnierplan Eingabe Resultate'!#REF!","v":{"$error":"#REF!"}}]
[null,null,null,null,null,null,null,null,null,null,null,null,null,null,null,null,null,null,null,null,null,null,null,null,null,null,null,null,null,null,null,null,null,null,null,null,null,null,null,null,null,null,null,null,null,null,null,null,null,null,null,null,null,null,null,null,{"$f":"'Turnierplan Eingabe Resultate'!L51","v":0},{"$f":"'Turnierplan Eingabe Resultate'!N51","v":0},{"$f":"'Turnierplan Eingabe Resultate'!P51","v":0},{"$f":"'Turnierplan Eingabe Resultate'!R51","v":0}]
[null,null,null,null,null,null,null,null,null,null,null,null,null,null,null,null,null,null,null,null,null,null,null,null,null,null,null,null,null,null,null,null,null,null,null,null,null,null,null,null,null,null,null,null,null,null,null,null,null,null,null,null,null,null,null,null,{"$f":"'Turnierplan Eingabe Resultate'!S25","v":21},{"$f":"'Turnierplan Eingabe Resultate'!U25","v":22},{"$f":"'Turnierplan Eingabe Resultate'!W25","v":2},{"$f":"'Turnierplan Eingabe Resultate'!Y25","v":2}]
[null,null,null,null,null,null,null,null,null,null,null,null,null,null,null,null,null,null,null,null,null,null,null,null,null,null,null,null,null,null,null,null,null,null,null,null,null,null,null,null,null,null,null,null,null,null,null,null,null,null,null,null,null,null,null,null,{"$f":"'Turnierplan Eingabe Resultate'!S26","v":23},{"$f":"'Turnierplan Eingabe Resultate'!U26","v":24},{"$f":"'Turnierplan Eingabe Resultate'!W26","v":3},{"$f":"'Turnierplan Eingabe Resultate'!Y26","v":0}]
[null,null,null,null,null,null,null,null,null,null,null,null,null,null,null,null,null,null,null,null,null,null,null,null,null,null,null,null,null,null,null,null,null,null,null,null,null,null,null,null,null,null,null,null,null,null,null,null,null,null,null,null,null,null,null,null,{"$f":"'Turnierplan Eingabe Resultate'!S27","v":7},{"$f":"'Turnierplan Eingabe Resultate'!U27","v":8},{"$f":"'Turnierplan Eingabe Resultate'!W27","v":2},{"$f":"'Turnierplan Eingabe Resultate'!Y27","v":5}]
[null,null,null,null,null,null,null,null,null,null,null,null,null,null,null,null,null,null,null,null,null,null,null,null,null,null,null,null,null,null,null,null,null,null,null,null,null,null,null,null,null,null,null,null,null,null,null,null,null,null,null,null,null,null,null,null,{"$f":"'Turnierplan Eingabe Resultate'!S28","v":5},{"$f":"'Turnierplan Eingabe Resultate'!U28","v":6},{"$f":"'Turnierplan Eingabe Resultate'!W28","v":2},{"$f":"'Turnierplan Eingabe Resultate'!Y28","v":3}]
[null,null,null,null,null,null,null,null,null,null,null,null,null,null,null,null,null,null,null,null,null,null,null,null,null,null,null,null,null,null,null,null,null,null,null,null,null,null,null,null,null,null,null,null,null,null,null,null,null,null,null,null,null,null,null,null,{"$f":"'Turnierplan Eingabe Resultate'!S29","v":25},{"$f":"'Turnierplan Eingabe Resultate'!U29","v":21},{"$f":"'Turnierplan Eingabe Resultate'!W29","v":3},{"$f":"'Turnierplan Eingabe Resultate'!Y29","v":1}]
[null,null,null,null,null,null,null,null,null,null,null,null,null,null,null,null,null,null,null,null,null,null,null,null,null,null,null,null,null,null,null,null,null,null,null,null,null,null,null,null,null,null,null,null,null,null,null,null,null,null,null,null,null,null,null,null,{"$f":"'Turnierplan Eingabe Resultate'!S30","v":22},{"$f":"'Turnierplan Eingabe Resultate'!U30","v":23},{"$f":"'Turnierplan Eingabe Resultate'!W30","v":2},{"$f":"'Turnierplan Eingabe Resultate'!Y30","v":2}]
[null,null,null,null,null,null,null,null,null,null,null,null,null,null,null,null,null,null,null,null,null,null,null,null,null,null,null,null,null,null,null,null,null,null,null,null,null,null,null,null,null,null,null,null,null,null,null,null,null,null,null,null,null,null,null,null,{"$f":"'Turnierplan Eingabe Resultate'!S31","v":12},{"$f":"'Turnierplan Eingabe Resultate'!U31","v":14},{"$f":"'Turnierplan Eingabe Resultate'!W31","v":4},{"$f":"'Turnierplan Eingabe Resultate'!Y31","v":3}]
[null,null,null,null,null,null,null,null,null,null,null,null,null,null,null,null,null,null,null,null,null,null,null,null,null,null,null,null,null,null,null,null,null,null,null,null,null,null,null,null,null,null,null,null,null,null,null,null,null,null,null,null,null,null,null,null,{"$f":"'Turnierplan Eingabe Resultate'!S32","v":18},{"$f":"'Turnierplan Eingabe Resultate'!U32","v":20},{"$f":"'Turnierplan Eingabe Resultate'!W32","v":4},{"$f":"'Turnierplan Eingabe Resultate'!Y32","v":5}]
[null,null,null,null,null,null,null,null,null,null,null,null,null,null,null,null,null,null,null,null,null,null,null,null,null,null,null,null,null,null,null,null,null,null,null,null,null,null,null,null,null,null,null,null,null,null,null,null,null,null,null,null,null,null,null,null,{"$f":"'Turnierplan Eingabe Resultate'!S33","v":24},{"$f":"'Turnierplan Eingabe Resultate'!U33","v":25},{"$f":"'Turnierplan Eingabe Resultate'!W33","v":2},{"$f":"'Turnierplan Eingabe Resultate'!Y33","v":2}]
[null,null,null,null,null,null,null,null,null,null,null,null,null,null,null,null,null,null,null,null,null,null,null,null,null,null,null,null,null,null,null,null,null,null,null,null,null,null,null,null,null,null,null,null,null,null,null,null,null,null,null,null,null,null,null,null,{"$f":"'Turnierplan Eingabe Resultate'!S34","v":21},{"$f":"'Turnierplan Eingabe Resultate'!U34","v":23},{"$f":"'Turnierplan Eingabe Resultate'!W34","v":1},{"$f":"'Turnierplan Eingabe Resultate'!Y34","v":6}]
[null,null,null,null,null,null,null,null,null,null,null,null,null,null,null,null,null,null,null,null,null,null,null,null,null,null,null,null,null,null,null,null,null,null,null,null,null,null,null,null,null,null,null,null,null,null,null,null,null,null,null,null,null,null,null,null,{"$f":"'Turnierplan Eingabe Resultate'!S35","v":14},{"$f":"'Turnierplan Eingabe Resultate'!U35","v":11},{"$f":"'Turnierplan Eingabe Resultate'!W35","v":8},{"$f":"'Turnierplan Eingabe Resultate'!Y35","v":1}]
[null,null,null,null,null,null,null,null,null,null,null,null,null,null,null,null,null,null,null,null,null,null,null,null,null,null,null,null,null,null,null,null,null,null,null,null,null,null,null,null,null,null,null,null,null,null,null,null,null,null,null,null,null,null,null,null,{"$f":"'Turnierplan Eingabe Resultate'!S36","v":20},{"$f":"'Turnierplan Eingabe Resultate'!U36","v":17},{"$f":"'Turnierplan Eingabe Resultate'!W36","v":1},{"$f":"'Turnierplan Eingabe Resultate'!Y36","v":6}]
[null,null,null,null,null,null,null,null,null,null,null,null,null,null,null,null,null,null,null,null,null,null,null,null,null,null,null,null,null,null,null,null,null,null,null,null,null,null,null,null,null,null,null,null,null,null,null,null,null,null,null,null,null,null,null,null,{"$f":"'Turnierplan Eingabe Resultate'!S37","v":22},{"$f":"'Turnierplan Eingabe Resultate'!U37","v":24},{"$f":"'Turnierplan Eingabe Resultate'!W37","v":2},{"$f":"'Turnierplan Eingabe Resultate'!Y37","v":3}]
[null,null,null,null,null,null,null,null,null,null,null,null,null,null,null,null,null,null,null,null,null,null,null,null,null,null,null,null,null,null,null,null,null,null,null,null,null,null,null,null,null,null,null,null,null,null,null,null,null,null,null,null,null,null,null,null,{"$f":"'Turnierplan Eingabe Resultate'!S38","v":23},{"$f":"'Turnierplan Eingabe Resultate'!U38","v":25},{"$f":"'Turnierplan Eingabe Resultate'!W38","v":3},{"$f":"'Turnierplan Eingabe Resultate'!Y38","v":3}]
[null,null,null,null,null,null,null,null,null,null,null,null,null,null,null,null,null,null,null,null,null,null,null,null,null,null,null,null,null,null,null,null,null,null,null,null,null,null,null,null,null,null,null,null,null,null,null,null,null,null,null,null,null,null,null,null,{"$f":"'Turnierplan Eingabe Resultate'!#REF!","v":{"$error":"#REF!"}},{"$f":"'Turnierplan Eingabe Resultate'!#REF!","v":{"$error":"#REF!"}},{"$f":"'Turnierplan Eingabe Resultate'!#REF!","v":{"$error":"#REF!"}},{"$f":"'Turnierplan Eingabe Resultate'!#REF!","v":{"$error":"#REF!"}}]
[null,null,null,null,null,null,null,null,null,null,null,null,null,null,null,null,null,null,null,null,null,null,null,null,null,null,null,null,null,null,null,null,null,null,null,null,null,null,null,null,null,null,null,null,null,null,null,null,null,null,null,null,null,null,null,null,{"$f":"'Turnierplan Eingabe Resultate'!S39","v":11},{"$f":"'Turnierplan Eingabe Resultate'!U39","v":13},{"$f":"'Turnierplan Eingabe Resultate'!W39","v":0},{"$f":"'Turnierplan Eingabe Resultate'!Y39","v":6}]
[null,null,null,null,null,null,null,null,null,null,null,null,null,null,null,null,null,null,null,null,null,null,null,null,null,null,null,null,null,null,null,null,null,null,null,null,null,null,null,null,null,null,null,null,null,null,null,null,null,null,null,null,null,null,null,null,{"$f":"'Turnierplan Eingabe Resultate'!S40","v":17},{"$f":"'Turnierplan Eingabe Resultate'!U40","v":19},{"$f":"'Turnierplan Eingabe Resultate'!W40","v":5},{"$f":"'Turnierplan Eingabe Resultate'!Y40","v":0}]
[null,null,null,null,null,null,null,null,null,null,null,null,null,null,null,null,null,null,null,null,null,null,null,null,null,null,null,null,null,null,null,null,null,null,null,null,null,null,null,null,null,null,null,null,null,null,null,null,null,null,null,null,null,null,null,null,{"$f":"'Turnierplan Eingabe Resultate'!S47","v":7},{"$f":"'Turnierplan Eingabe Resultate'!U47","v":6},{"$f":"'Turnierplan Eingabe Resultate'!W47","v":0},{"$f":"'Turnierplan Eingabe Resultate'!Y47","v":6}]
[null,null,null,null,null,null,null,null,null,null,null,null,null,null,null,null,null,null,null,null,null,null,null,null,null,null,null,null,null,null,null,null,null,null,null,null,null,null,null,null,null,null,null,null,null,null,null,null,null,null,null,null,null,null,null,null,{"$f":"'Turnierplan Eingabe Resultate'!#REF!","v":{"$error":"#REF!"}},{"$f":"'Turnierplan Eingabe Resultate'!#REF!","v":{"$error":"#REF!"}},{"$f":"'Turnierplan Eingabe Resultate'!#REF!","v":{"$error":"#REF!"}},{"$f":"'Turnierplan Eingabe Resultate'!#REF!","v":{"$error":"#REF!"}}]
[null,null,null,null,null,null,null,null,null,null,null,null,null,null,null,null,null,null,null,null,null,null,null,null,null,null,null,null,null,null,null,null,null,null,null,null,null,null,null,null,null,null,null,null,null,null,null,null,null,null,null,null,null,null,null,null,{"$f":"'Turnierplan Eingabe Resultate'!S48","v":"5.C"},{"$f":"'Turnierplan Eingabe Resultate'!U48","v":"6.C"},{"$f":"'Turnierplan Eingabe Resultate'!W48","v":2},{"$f":"'Turnierplan Eingabe Resultate'!Y48","v":3}]

{"sheet":"Schiri-Zettel","index":2,"n_rows":51,"n_cols":38,"rows_kept":51,"cut":false,"hidden":false,"merged":[[2,4,2,10],[2,16,2,22],[2,28,2,34]]}
[]
[]
[null,null,null,null,{"$f":"'Turnierplan Eingabe Resultate'!E23","v":"Halle 1"},null,null,null,null,null,null,null,null,null,null,null,{"$f":"'Turnierplan Eingabe Resultate'!L23","v":"Halle 2"},null,null,null,null,null,null,null,null,null,null,null,{"$f":"'Turnierplan Eingabe Resultate'!S23","v":"Halle 3"}]
["Runde",null,{"$f":"'Turnierplan Eingabe Resultate'!C24","v":"Zeit"},null,null,{"$f":"'Turnierplan Eingabe Resultate'!F24","v":"Spiel"},null,null,null,{"$f":"'Turnierplan Eingabe Resultate'!J24","v":"Res."},null,null,{"$f":"A4","v":"Runde"},null,{"$f":"C4","v":"Zeit"},null,null,{"$f":"'Turnierplan Eingabe Resultate'!M24","v":"Spiel"},null,null,null,{"$f":"'Turnierplan Eingabe Resultate'!Q24","v":"Res."},null,null,{"$f":"A4","v":"Runde"},null,{"$f":"C4","v":"Zeit"},null,null,{"$f":"'Turnierplan Eingabe Resultate'!T24","v":"Spiel"},null,null,null,{"$f":"'Turnierplan Eingabe Resultate'!X24","v":"Res."}]
[{"$f":"'Turnierplan Eingabe Resultate'!A25","v":1},{"$f":"'Turnierplan Eingabe Resultate'!B25","v":"09:00:00"},{"$f":"'Turnierplan Eingabe Resultate'!C25","v":"-"},{"$f":"'Turnierplan Eingabe Resultate'!D25","v":"09:12:00"},{"$f":"'Turnierplan nur für Ausdruck'!E25","v":"Special Alligators 2"},{"$f":"'Turnierplan Eingabe Resultate'!F25","v":":"},{"$f":"'Turnierplan nur für Ausdruck'!H25","v":"btv chur unihockey 1"},null,null,{"$f":"'Turnierplan Eingabe Resultate'!J25","v":":"},null,{"$f":"E3","v":"Halle 1"},1,{"$f":"B5","v":"09:00:00"},"-",{"$f":"D5","v":"09:12:00"},{"$f":"'Turnierplan nur für Ausdruck'!N25","v":"Schulheim  Chur"},{"$f":"'Turnierplan Eingabe Resultate'!M25","v":":"},{"$f":"'Turnierplan nur für Ausdruck'!Q25","v":"FC Zürisee 2"},null,null,{"$f":"'Turnierplan Eingabe Resultate'!Q25","v":":"},null,{"$f":"Q3","v":"Halle 2"},1,{"$f":"B5","v":"09:00:00"},"-",{"$f":"D5","v":"09:12:00"},{"$f":"'Turnierplan nur für Ausdruck'!X25","v":"Insieme Rheintal Gators"},{"$f":"'Turnierplan Eingabe Resultate'!T25","v":":"},{"$f":"'Turnierplan nur für Ausdruck'!AA25","v":"btv chur unihockey 3"},null,null,{"$f":"'Turnierplan Eingabe Resultate'!X25","v":":"},null,{"$f":"AC3","v":"Halle 3"}]
[]
[{"$f":"'Turnierplan Eingabe Resultate'!A26","v":2},{"$f":"'Turnierplan Eingabe Resultate'!B26","v":"09:15:00"},{"$f":"'Turnierplan Eingabe Resultate'!C26","v":"-"},{"$f":"'Turnierplan Eingabe Resultate'!D26","v":"09:27:00"},{"$f":"'Turnierplan nur für Ausdruck'!E26","v":"Büspi Flyers 1"},{"$f":"'Turnierplan Eingabe Resultate'!F26","v":":"},{"$f":"'Turnierplan nur für Ausdruck'!H26","v":"Special Alligators 1"},null,null,{"$f":"'Turnierplan Eingabe Resultate'!J26","v":":"},null,{"$f":"L$5","v":"Halle 1"},2,"09:15:00","-","09:27:00",{"$f":"'Turnierplan nur für Ausdruck'!N26","v":"Vindonissa Tigers"},{"$f":"'Turnierplan Eingabe Resultate'!M26","v":":"},{"$f":"'Turnierplan nur für Ausdruck'!Q26","v":"FC Zürisee 1"},null,null,{"$f":"'Turnierplan Eingabe Resultate'!Q26","v":":"},null,{"$f":"X$5","v":"Halle 2"},2,"09:15:00","-","09:27:00",{"$f":"'Turnierplan nur für Ausdruck'!X26","v":"Vindonissa Panthers"},{"$f":"'Turnierplan Eingabe Resultate'!T26","v":":"},{"$f":"'Turnierplan nur für Ausdruck'!AA26","v":"Rappi Jona Flames 2"},null,null,{"$f":"'Turnierplan Eingabe Resultate'!X26","v":":"},null,{"$f":"AJ$5","v":"Halle 3"}]
[]
[{"$f":"'Turnierplan Eingabe Resultate'!A27","v":3},{"$f":"'Turnierplan Eingabe Resultate'!B27","v":"09:30:00"},{"$f":"'Turnierplan Eingabe Resultate'!C27","v":"-"},{"$f":"'Turnierplan Eingabe Resultate'!D27","v":"09:42:00"},{"$f":"'Turnierplan nur für Ausdruck'!E27","v":"UHC PSW"},{"$f":"'Turnierplan Eingabe Resultate'!F27","v":":"},{"$f":"'Turnierplan nur für Ausdruck'!H27","v":"btv chur unihockey 2"},null,null,{"$f":"'Turnierplan Eingabe Resultate'!J27","v":":"},null,{"$f":"L$5","v":"Halle 1"},3,"09:30:00","-","09:42:00",{"$f":"'Turnierplan nur für Ausdruck'!N27","v":"Black Panthers"},{"$f":"'Turnierplan Eingabe Resultate'!M27","v":":"},{"$f":"'Turnierplan nur für Ausdruck'!Q27","v":"Bünzgeister"},null,null,{"$f":"'Turnierplan Eingabe Resultate'!Q27","v":":"},null,{"$f":"X$5","v":"Halle 2"},3,"09:30:00","-","09:42:00",{"$f":"'Turnierplan nur für Ausdruck'!X27","v":"Altra Ducks"},{"$f":"'Turnierplan Eingabe Resultate'!T27","v":":"},{"$f":"'Turnierplan nur für Ausdruck'!AA27","v":"Junkihüpfer Wohlen"},null,null,{"$f":"'Turnierplan Eingabe Resultate'!X27","v":":"},null,{"$f":"AJ$5","v":"Halle 3"},{"$f":"'Turnierplan nur für Ausdruck'!AK9","v":1},{"$f":"'Turnierplan nur für Ausdruck'!AL9","v":"Büspi Flyers 1"}]
[null,null,null,null,null,null,null,null,null,null,null,null,null,null,null,null,null,null,null,null,null,null,null,null,null,null,null,null,null,null,null,null,null,null,null,null,{"$f":"'Turnierplan nur für Ausdruck'!AK10","v":2},{"$f":"'Turnierplan nur für Ausdruck'!AL10","v":"Special Alligators 1"}]
[{"$f":"'Turnierplan Eingabe Resultate'!A28","v":4},{"$f":"'Turnierplan Eingabe Resultate'!B28","v":"09:45:00"},{"$f":"'Turnierplan Eingabe Resultate'!C28","v":"-"},{"$f":"'Turnierplan Eingabe Resultate'!D28","v":"09:57:00"},{"$f":"'Turnierplan nur für Ausdruck'!E28","v":"Le Tigri 1"},{"$f":"'Turnierplan Eingabe Resultate'!F28","v":":"},{"$f":"'Turnierplan nur für Ausdruck'!H28","v":"Winti United 1"},null,null,{"$f":"'Turnierplan Eingabe Resultate'!J28","v":":"},null,{"$f":"L$5","v":"Halle 1"},4,"09:45:00","-","09:57:00",{"$f":"'Turnierplan nur für Ausdruck'!N28","v":"Le Tigri 2"},{"$f":"'Turnierplan Eingabe Resultate'!M28","v":":"},{"$f":"'Turnierplan nur für Ausdruck'!Q28","v":"La Branche"},null,null,{"$f":"'Turnierplan Eingabe Resultate'!Q28","v":":"},null,{"$f":"X$5","v":"Halle 2"},4,"09:45:00","-","09:57:00",{"$f":"'Turnierplan nur für Ausdruck'!X28","v":"Rappi Jona Flames 1"},{"$f":"'Turnierplan Eingabe Resultate'!T28","v":":"},{"$f":"'Turnierplan nur für Ausdruck'!AA28","v":"Bärau Tigers 1"},null,null,{"$f":"'Turnierplan Eingabe Resultate'!X28","v":":"},null,{"$f":"AJ$5","v":"Halle 3"},{"$f":"'Turnierplan nur für Ausdruck'!AK11","v":3},{"$f":"'Turnierplan nur für Ausdruck'!AL11","v":"Vindonissa Tigers"}]
[null,null,null,null,null,null,null,null,null,null,null,null,null,null,null,null,null,null,null,null,null,null,null,null,null,null,null,null,null,null,null,null,null,null,null,null,{"$f":"'Turnierplan nur für Ausdruck'!AK12","v":4},{"$f":"'Turnierplan nur für Ausdruck'!AL12","v":"FC Zürisee 1"}]
[{"$f":"'Turnierplan Eingabe Resultate'!A29","v":5},{"$f":"'Turnierplan Eingabe Resultate'!B29","v":"10:00:00"},{"$f":"'Turnierplan Eingabe Resultate'!C29","v":"-"},{"$f":"'Turnierplan Eingabe Resultate'!D29","v":"10:12:00"},{"$f":"'Turnierplan nur für Ausdruck'!E29","v":"Büspi Flyers 1"},{"$f":"'Turnierplan Eingabe Resultate'!F29","v":":"},{"$f":"'Turnierplan nur für Ausdruck'!H29","v":"Vindonissa Tigers"},null,null,{"$f":"'Turnierplan Eingabe Resultate'!J29","v":":"},null,{"$f":"L$5","v":"Halle 1"},5,"10:00:00","-","10:12:00",{"$f":"'Turnierplan nur für Ausdruck'!N29","v":"Special Alligators 1"},{"$f":"'Turnierplan Eingabe Resultate'!M29","v":":"},{"$f":"'Turnierplan nur für Ausdruck'!Q29","v":"FC Zürisee 1"},null,null,{"$f":"'Turnierplan Eingabe Resultate'!Q29","v":":"},null,{"$f":"X$5","v":"Halle 2"},5,"10:00:00","-","10:12:00",{"$f":"'Turnierplan nur für Ausdruck'!X29","v":"Winti United 2"},{"$f":"'Turnierplan Eingabe Resultate'!T29","v":":"},{"$f":"'Turnierplan nur für Ausdruck'!AA29","v":"Insieme Rheintal Gators"},null,null,{"$f":"'Turnierplan Eingabe Resultate'!X29","v":":"},null,{"$f":"AJ$5","v":"Halle 3"},{"$f":"'Turnierplan nur für Ausdruck'!AK13","v":5},{"$f":"'Turnierplan nur für Ausdruck'!AL13","v":"Rappi Jona Flames 1"}]
[null,null,null,null,null,null,null,null,null,null,null,null,null,null,null,null,null,null,null,null,null,null,null,null,null,null,null,null,null,null,null,null,null,null,null,null,{"$f":"'Turnierplan nur für Ausdruck'!AK14","v":6},{"$f":"'Turnierplan nur für Ausdruck'!AL14","v":"Bärau Tigers 1"}]
[{"$f":"'Turnierplan Eingabe Resultate'!A30","v":6},{"$f":"'Turnierplan Eingabe Resultate'!B30","v":"10:15:00"},{"$f":"'Turnierplan Eingabe Resultate'!C30","v":"-"},{"$f":"'Turnierplan Eingabe Resultate'!D30","v":"10:27:00"},{"$f":"'Turnierplan nur für Ausdruck'!E30","v":"Rappi Jona Flames 1"},{"$f":"'Turnierplan Eingabe Resultate'!F30","v":":"},{"$f":"'Turnierplan nur für Ausdruck'!H30","v":"Altra Ducks"},null,null,{"$f":"'Turnierplan Eingabe Resultate'!J30","v":":"},null,{"$f":"L$5","v":"Halle 1"},6,"10:15:00","-","10:27:00",{"$f":"'Turnierplan nur für Ausdruck'!N30","v":"Bärau Tigers 1"},{"$f":"'Turnierplan Eingabe Resultate'!M30","v":":"},{"$f":"'Turnierplan nur für Ausdruck'!Q30","v":"Junkihüpfer Wohlen"},null,null,{"$f":"'Turnierplan Eingabe Resultate'!Q30","v":":"},null,{"$f":"X$5","v":"Halle 2"},6,"10:15:00","-","10:27:00",{"$f":"'Turnierplan nur für Ausdruck'!X30","v":"btv chur unihockey 3"},{"$f":"'Turnierplan Eingabe Resultate'!T30","v":":"},{"$f":"'Turnierplan nur für Ausdruck'!AA30","v":"Vindonissa Panthers"},null,null,{"$f":"'Turnierplan Eingabe Resultate'!X30","v":":"},null,{"$f":"AJ$5","v":"Halle 3"},{"$f":"'Turnierplan nur für Ausdruck'!AK15","v":7},{"$f":"'Turnierplan nur für Ausdruck'!AL15","v":"Altra Ducks"}]
[null,null,null,null,null,null,null,null,null,null,null,null,null,null,null,null,null,null,null,null,null,null,null,null,0,null,null,null,null,null,null,null,null,null,null,null,{"$f":"'Turnierplan nur für Ausdruck'!AK16","v":8},{"$f":"'Turnierplan nur für Ausdruck'!AL16","v":"Junkihüpfer Wohlen"}]
[{"$f":"'Turnierplan Eingabe Resultate'!A31","v":7},{"$f":"'Turnierplan Eingabe Resultate'!B31","v":"10:30:00"},{"$f":"'Turnierplan Eingabe Resultate'!C31","v":"-"},{"$f":"'Turnierplan Eingabe Resultate'!D31","v":"10:42:00"},{"$f":"'Turnierplan nur für Ausdruck'!E31","v":"Schulheim  Chur"},{"$f":"'Turnierplan Eingabe Resultate'!F31","v":":"},{"$f":"'Turnierplan nur für Ausdruck'!H31","v":"btv chur unihockey 1"},null,null,{"$f":"'Turnierplan Eingabe Resultate'!J31","v":":"},null,{"$f":"L$5","v":"Halle 1"},7,"10:30:00","-","10:42:00",{"$f":"'Turnierplan nur für Ausdruck'!N31","v":"Special Alligators 2"},{"$f":"'Turnierplan Eingabe Resultate'!M31","v":":"},{"$f":"'Turnierplan nur für Ausdruck'!Q31","v":"Le Tigri 1"},null,null,{"$f":"'Turnierplan Eingabe Resultate'!Q31","v":":"},null,{"$f":"X$5","v":"Halle 2"},7,"10:30:00","-","10:42:00",{"$f":"'Turnierplan nur für Ausdruck'!X31","v":"FC Zürisee 2"},{"$f":"'Turnierplan Eingabe Resultate'!T31","v":":"},{"$f":"'Turnierplan nur für Ausdruck'!AA31","v":"Winti United 1"},null,null,{"$f":"'Turnierplan Eingabe Resultate'!X31","v":":"},null,{"$f":"AJ$5","v":"Halle 3"},{"$f":"'Turnierplan nur für Ausdruck'!AK17","v":9},{"$f":"'Turnierplan nur für Ausdruck'!AL17","v":"btv chur unihockey 1"}]
[null,null,null,null,null,null,null,null,null,null,null,null,null,null,null,null,null,null,null,null,null,null,null,null,null,null,null,null,null,null,null,null,null,null,null,null,{"$f":"'Turnierplan nur für Ausdruck'!AK18","v":10},{"$f":"'Turnierplan nur für Ausdruck'!AL18","v":"Special Alligators 2"}]
[{"$f":"'Turnierplan Eingabe Resultate'!A32","v":8},{"$f":"'Turnierplan Eingabe Resultate'!B32","v":"10:45:00"},{"$f":"'Turnierplan Eingabe Resultate'!C32","v":"-"},{"$f":"'Turnierplan Eingabe Resultate'!D32","v":"10:57:00"},{"$f":"'Turnierplan nur für Ausdruck'!E32","v":"UHC PSW"},{"$f":"'Turnierplan Eingabe Resultate'!F32","v":":"},{"$f":"'Turnierplan nur für Ausdruck'!H32","v":"Black Panthers"},null,null,{"$f":"'Turnierplan Eingabe Resultate'!J32","v":":"},null,{"$f":"L$5","v":"Halle 1"},8,"10:45:00","-","10:57:00",{"$f":"'Turnierplan nur für Ausdruck'!N32","v":"btv chur unihockey 2"},{"$f":"'Turnierplan Eingabe Resultate'!M32","v":":"},{"$f":"'Turnierplan nur für Ausdruck'!Q32","v":"Le Tigri 2"},null,null,{"$f":"'Turnierplan Eingabe Resultate'!Q32","v":":"},null,{"$f":"X$5","v":"Halle 2"},8,"10:45:00","-","10:57:00",{"$f":"'Turnierplan nur für Ausdruck'!X32","v":"Bünzgeister"},{"$f":"'Turnierplan Eingabe Resultate'!T32","v":":"},{"$f":"'Turnierplan nur für Ausdruck'!AA32","v":"La Branche"},null,null,{"$f":"'Turnierplan Eingabe Resultate'!X32","v":":"},null,{"$f":"AJ$5","v":"Halle 3"},{"$f":"'Turnierplan nur für Ausdruck'!AK19","v":11},{"$f":"'Turnierplan nur für Ausdruck'!AL19","v":"Schulheim  Chur"}]
[null,null,null,null,null,null,null,null,null,null,null,null,null,null,null,null,null,null,null,null,null,null,null,null,null,null,null,null,null,null,null,null,null,null,null,null,{"$f":"'Turnierplan nur für Ausdruck'!AK20","v":12},{"$f":"'Turnierplan nur für Ausdruck'!AL20","v":"FC Zürisee 2"}]
[{"$f":"'Turnierplan Eingabe Resultate'!A33","v":9},{"$f":"'Turnierplan Eingabe Resultate'!B33","v":"11:00:00"},{"$f":"'Turnierplan Eingabe Resultate'!C33","v":"-"},{"$f":"'Turnierplan Eingabe Resultate'!D33","v":"11:12:00"},{"$f":"'Turnierplan nur für Ausdruck'!E33","v":"Special Alligators 1"},{"$f":"'Turnierplan Eingabe Resultate'!F33","v":":"},{"$f":"'Turnierplan nur für Ausdruck'!H33","v":"Vindonissa Tigers"},null,null,{"$f":"'Turnierplan Eingabe Resultate'!J33","v":":"},null,{"$f":"L$5","v":"Halle 1"},9,"11:00:00","-","11:12:00",{"$f":"'Turnierplan nur für Ausdruck'!N33","v":"FC Zürisee 1"},{"$f":"'Turnierplan Eingabe Resultate'!M33","v":":"},{"$f":"'Turnierplan nur für Ausdruck'!Q33","v":"Büspi Flyers 1"},null,null,{"$f":"'Turnierplan Eingabe Resultate'!Q33","v":":"},null,{"$f":"X$5","v":"Halle 2"},9,"11:00:00","-","11:12:00",{"$f":"'Turnierplan nur für Ausdruck'!X33","v":"Rappi Jona Flames 2"},{"$f":"'Turnierplan Eingabe Resultate'!T33","v":":"},{"$f":"'Turnierplan nur für Ausdruck'!AA33","v":"Winti United 2"},null,null,{"$f":"'Turnierplan Eingabe Resultate'!X33","v":":"},null,{"$f":"AJ$5","v":"Halle 3"},{"$f":"'Turnierplan nur für Ausdruck'!AK21","v":13},{"$f":"'Turnierplan nur für Ausdruck'!AL21","v":"Le Tigri 1"}]
[null,null,null,null,null,null,null,null,null,null,null,null,null,null,null,null,null,null,null,null,null,null,null,null,null,null,null,null,null,null,null,null,null,null,null,null,{"$f":"'Turnierplan nur für Ausdruck'!AK22","v":14},{"$f":"'Turnierplan nur für Ausdruck'!AL22","v":"Winti United 1"}]
[{"$f":"'Turnierplan Eingabe Resultate'!A34","v":10},{"$f":"'Turnierplan Eingabe Resultate'!B34","v":"11:15:00"},{"$f":"'Turnierplan Eingabe Resultate'!C34","v":"-"},{"$f":"'Turnierplan Eingabe Resultate'!D34","v":"11:27:00"},{"$f":"'Turnierplan nur für Ausdruck'!E34","v":"Junkihüpfer Wohlen"},{"$f":"'Turnierplan Eingabe Resultate'!F34","v":":"},{"$f":"'Turnierplan nur für Ausdruck'!H34","v":"Rappi Jona Flames 1"},null,null,{"$f":"'Turnierplan Eingabe Resultate'!J34","v":":"},null,{"$f":"L$5","v":"Halle 1"},10,"11:15:00","-","11:27:00",{"$f":"'Turnierplan nur für Ausdruck'!N34","v":"Bärau Tigers 1"},{"$f":"'Turnierplan Eingabe Resultate'!M34","v":":"},{"$f":"'Turnierplan nur für Ausdruck'!Q34","v":"Altra Ducks"},null,null,{"$f":"'Turnierplan Eingabe Resultate'!Q34","v":":"},null,{"$f":"X$5","v":"Halle 2"},10,"11:15:00","-","11:27:00",{"$f":"'Turnierplan nur für Ausdruck'!X34","v":"Insieme Rheintal Gators"},{"$f":"'Turnierplan Eingabe Resultate'!T34","v":":"},{"$f":"'Turnierplan nur für Ausdruck'!AA34","v":"Vindonissa Panthers"},null,null,{"$f":"'Turnierplan Eingabe Resultate'!X34","v":":"},null,{"$f":"AJ$5","v":"Halle 3"},{"$f":"'Turnierplan nur für Ausdruck'!AK23","v":15},{"$f":"'Turnierplan nur für Ausdruck'!AL23","v":"UHC PSW"}]
[null,null,null,null,null,null,null,null,null,null,null,null,null,null,null,null,null,null,null,null,null,null,null,null,null,null,null,null,null,null,null,null,null,null,null,null,{"$f":"'Turnierplan nur für Ausdruck'!AK24","v":16},{"$f":"'Turnierplan nur für Ausdruck'!AL24","v":"btv chur unihockey 2"}]
[{"$f":"'Turnierplan Eingabe Resultate'!A35","v":11},{"$f":"'Turnierplan Eingabe Resultate'!B35","v":"11:30:00"},{"$f":"'Turnierplan Eingabe Resultate'!C35","v":"-"},{"$f":"'Turnierplan Eingabe Resultate'!D35","v":"11:42:00"},{"$f":"'Turnierplan nur für Ausdruck'!E35","v":"btv chur unihockey 1"},{"$f":"'Turnierplan Eingabe Resultate'!F35","v":":"},{"$f":"'Turnierplan nur für Ausdruck'!H35","v":"Le Tigri 1"},null,null,{"$f":"'Turnierplan Eingabe Resultate'!J35","v":":"},null,{"$f":"L$5","v":"Halle 1"},11,"11:30:00","-","11:42:00",{"$f":"'Turnierplan nur für Ausdruck'!N35","v":"Special Alligators 2"},{"$f":"'Turnierplan Eingabe Resultate'!M35","v":":"},{"$f":"'Turnierplan nur für Ausdruck'!Q35","v":"FC Zürisee 2"},null,null,{"$f":"'Turnierplan Eingabe Resultate'!Q35","v":":"},null,{"$f":"X$5","v":"Halle 2"},11,"11:30:00","-","11:42:00",{"$f":"'Turnierplan nur für Ausdruck'!X35","v":"Winti United 1"},{"$f":"'Turnierplan Eingabe Resultate'!T35","v":":"},{"$f":"'Turnierplan nur für Ausdruck'!AA35","v":"Schulheim  Chur"},null,null,{"$f":"'Turnierplan Eingabe Resultate'!X35","v":":"},null,{"$f":"AJ$5","v":"Halle 3"},{"$f":"'Turnierplan nur für Ausdruck'!AK25","v":17},{"$f":"'Turnierplan nur für Ausdruck'!AL25","v":"Black Panthers"}]
[null,null,null,null,null,null,null,null,null,null,null,null,null,null,null,null,null,null,null,null,null,null,null,null,null,null,null,null,null,null,null,null,null,null,null,null,{"$f":"'Turnierplan nur für Ausdruck'!AK26","v":18},{"$f":"'Turnierplan nur für Ausdruck'!AL26","v":"Bünzgeister"}]
[{"$f":"'Turnierplan Eingabe Resultate'!A36","v":12},{"$f":"'Turnierplan Eingabe Resultate'!B36","v":"11:45:00"},{"$f":"'Turnierplan Eingabe Resultate'!C36","v":"-"},{"$f":"'Turnierplan Eingabe Resultate'!D36","v":"11:57:00"},{"$f":"'Turnierplan nur für Ausdruck'!E37","v":"Special Alligators 1"},{"$f":"'Turnierplan Eingabe Resultate'!F36","v":":"},{"$f":"'Turnierplan nur für Ausdruck'!H36","v":"Le Tigri 2"},null,null,{"$f":"'Turnierplan Eingabe Resultate'!J36","v":":"},null,{"$f":"L$5","v":"Halle 1"},12,"11:45:00","-","11:57:00",{"$f":"'Turnierplan nur für Ausdruck'!N37","v":"FC Zürisee 1"},{"$f":"'Turnierplan Eingabe Resultate'!M36","v":":"},{"$f":"'Turnierplan nur für Ausdruck'!Q36","v":"Bünzgeister"},null,null,{"$f":"'Turnierplan Eingabe Resultate'!Q36","v":":"},null,{"$f":"X$5","v":"Halle 2"},12,"11:45:00","-","11:57:00",{"$f":"'Turnierplan nur für Ausdruck'!X37","v":"btv chur unihockey 3"},{"$f":"'Turnierplan Eingabe Resultate'!T36","v":":"},{"$f":"'Turnierplan nur für Ausdruck'!AA36","v":"Black Panthers"},null,null,{"$f":"'Turnierplan Eingabe Resultate'!X36","v":":"},null,{"$f":"AJ$5","v":"Halle 3"},{"$f":"'Turnierplan nur für Ausdruck'!AK27","v":19},{"$f":"'Turnierplan nur für Ausdruck'!AL27","v":"Le Tigri 2"}]
[null,null,null,null,null,null,null,null,null,null,null,null,null,null,null,null,null,null,null,null,null,null,null,null,null,null,null,null,null,null,null,null,null,null,null,null,{"$f":"'Turnierplan nur für Ausdruck'!AK28","v":20},{"$f":"'Turnierplan nur für Ausdruck'!AL28","v":"La Branche"}]
[{"$f":"'Turnierplan Eingabe Resultate'!A37","v":13},{"$f":"'Turnierplan Eingabe Resultate'!B37","v":"12:00:00"},{"$f":"'Turnierplan Eingabe Resultate'!C37","v":"-"},{"$f":"'Turnierplan Eingabe Resultate'!D37","v":"12:12:00"},{"$f":"'Turnierplan nur für Ausdruck'!E39","v":"FC Zürisee 2"},{"$f":"'Turnierplan Eingabe Resultate'!F37","v":":"},{"$f":"'Turnierplan nur für Ausdruck'!H37","v":"Büspi Flyers 1"},null,null,{"$f":"'Turnierplan Eingabe Resultate'!J37","v":":"},null,{"$f":"L$5","v":"Halle 1"},13,"12:00:00","-","12:12:00",{"$f":"'Turnierplan nur für Ausdruck'!N39","v":"Winti United 1"},{"$f":"'Turnierplan Eingabe Resultate'!M37","v":":"},{"$f":"'Turnierplan nur für Ausdruck'!Q37","v":"Vindonissa Tigers"},null,null,{"$f":"'Turnierplan Eingabe Resultate'!Q37","v":":"},null,{"$f":"X$5","v":"Halle 2"},13,"12:00:00","-","12:12:00",{"$f":"'Turnierplan nur für Ausdruck'!X39","v":"Schulheim  Chur"},{"$f":"'Turnierplan Eingabe Resultate'!T37","v":":"},{"$f":"'Turnierplan nur für Ausdruck'!AA37","v":"Rappi Jona Flames 2"},null,null,{"$f":"'Turnierplan Eingabe Resultate'!X37","v":":"},null,{"$f":"AJ$5","v":"Halle 3"},{"$f":"'Turnierplan nur für Ausdruck'!AK29","v":21},{"$f":"'Turnierplan nur für Ausdruck'!AL29","v":"Insieme Rheintal Gators"}]
[null,null,null,null,null,null,null,null,null,null,null,null,null,null,null,null,null,null,null,null,null,null,null,null,null,null,null,null,null,null,null,null,null,null,null,null,{"$f":"'Turnierplan nur für Ausdruck'!AK30","v":22},{"$f":"'Turnierplan nur für Ausdruck'!AL30","v":"btv chur unihockey 3"}]
[{"$f":"'Turnierplan Eingabe Resultate'!A38","v":14},{"$f":"'Turnierplan Eingabe Resultate'!B38","v":"12:15:00"},{"$f":"'Turnierplan Eingabe Resultate'!C38","v":"-"},{"$f":"'Turnierplan Eingabe Resultate'!D38","v":"12:27:00"},{"$f":"'Turnierplan nur für Ausdruck'!E38","v":"Junkihüpfer Wohlen"},{"$f":"'Turnierplan Eingabe Resultate'!F38","v":":"},{"$f":"'Turnierplan nur für Ausdruck'!H38","v":"Altra Ducks"},null,null,{"$f":"'Turnierplan Eingabe Resultate'!J38","v":":"},null,{"$f":"L$5","v":"Halle 1"},14,"12:15:00","-","12:27:00",{"$f":"'Turnierplan nur für Ausdruck'!N38","v":"Bärau Tigers 1"},{"$f":"'Turnierplan Eingabe Resultate'!M38","v":":"},{"$f":"'Turnierplan nur für Ausdruck'!Q38","v":"Rappi Jona Flames 1"},null,null,{"$f":"'Turnierplan Eingabe Resultate'!Q38","v":":"},null,{"$f":"X$5","v":"Halle 2"},14,"12:15:00","-","12:27:00",{"$f":"'Turnierplan nur für Ausdruck'!X38","v":"Vindonissa Panthers"},{"$f":"'Turnierplan Eingabe Resultate'!T38","v":":"},{"$f":"'Turnierplan nur für Ausdruck'!AA38","v":"Winti United 2"},null,null,{"$f":"'Turnierplan Eingabe Resultate'!X38","v":":"},null,{"$f":"AJ$5","v":"Halle 3"},{"$f":"'Turnierplan nur für Ausdruck'!AK31","v":23},{"$f":"'Turnierplan nur für Ausdruck'!AL31","v":"Vindonissa Panthers"}]
[null,null,null,null,null,null,null,null,null,null,null,null,null,null,null,null,null,null,null,null,null,null,null,null,null,null,null,null,null,null,null,null,null,null,null,null,{"$f":"'Turnierplan nur für Ausdruck'!AK32","v":24},{"$f":"'Turnierplan nur für Ausdruck'!AL32","v":"Rappi Jona Flames 2"}]
[{"$f":"'Turnierplan Eingabe Resultate'!A39","v":15},{"$f":"'Turnierplan Eingabe Resultate'!B39","v":"12:30:00"},{"$f":"'Turnierplan Eingabe Resultate'!C39","v":"-"},{"$f":"'Turnierplan Eingabe Resultate'!D39","v":"12:42:00"},{"$f":"'Turnierplan nur für Ausdruck'!E39","v":"FC Zürisee 2"},{"$f":"'Turnierplan Eingabe Resultate'!F39","v":":"},{"$f":"'Turnierplan nur für Ausdruck'!H39","v":"btv chur unihockey 1"},null,null,{"$f":"'Turnierplan Eingabe Resultate'!J39","v":":"},null,{"$f":"L$5","v":"Halle 1"},15,"12:30:00","-","12:42:00",{"$f":"'Turnierplan nur für Ausdruck'!N39","v":"Winti United 1"},{"$f":"'Turnierplan Eingabe Resultate'!M39","v":":"},{"$f":"'Turnierplan nur für Ausdruck'!Q39","v":"Special Alligators 2"},null,null,{"$f":"'Turnierplan Eingabe Resultate'!Q39","v":":"},null,{"$f":"X$5","v":"Halle 2"},15,"12:30:00","-","12:42:00",{"$f":"'Turnierplan nur für Ausdruck'!X39","v":"Schulheim  Chur"},{"$f":"'Turnierplan Eingabe Resultate'!T39","v":":"},{"$f":"'Turnierplan nur für Ausdruck'!AA39","v":"Le Tigri 1"},null,null,{"$f":"'Turnierplan Eingabe Resultate'!X39","v":":"},null,{"$f":"AJ$5","v":"Halle 3"},{"$f":"'Turnierplan nur für Ausdruck'!AK33","v":25},{"$f":"'Turnierplan nur für Ausdruck'!AL33","v":"Winti United 2"}]
[]
[{"$f":"'Turnierplan Eingabe Resultate'!A40","v":16},{"$f":"'Turnierplan Eingabe Resultate'!B40","v":"12:45:00"},{"$f":"'Turnierplan Eingabe Resultate'!C40","v":"-"},{"$f":"'Turnierplan Eingabe Resultate'!D40","v":"12:57:00"},{"$f":"'Turnierplan nur für Ausdruck'!E40","v":"Bünzgeister"},{"$f":"'Turnierplan Eingabe Resultate'!F40","v":":"},{"$f":"'Turnierplan nur für Ausdruck'!H40","v":"UHC PSW"},null,null,{"$f":"'Turnierplan Eingabe Resultate'!J40","v":":"},null,{"$f":"L$5","v":"Halle 1"},16,"12:45:00","-","12:57:00",{"$f":"'Turnierplan nur für Ausdruck'!N40","v":"La Branche"},{"$f":"'Turnierplan Eingabe Resultate'!M40","v":":"},{"$f":"'Turnierplan nur für Ausdruck'!Q40","v":"btv chur unihockey 2"},null,null,{"$f":"'Turnierplan Eingabe Resultate'!Q40","v":":"},null,{"$f":"X$5","v":"Halle 2"},16,"12:45:00","-","12:57:00",{"$f":"'Turnierplan nur für Ausdruck'!X40","v":"Black Panthers"},{"$f":"'Turnierplan Eingabe Resultate'!T40","v":":"},{"$f":"'Turnierplan nur für Ausdruck'!AA40","v":"Le Tigri 2"},null,null,{"$f":"'Turnierplan Eingabe Resultate'!X40","v":":"},null,{"$f":"AJ$5","v":"Halle 3"}]
[]
[{"$f":"'Turnierplan Eingabe Resultate'!A42","v":17},{"$f":"'Turnierplan Eingabe Resultate'!B42","v":"14:00:00"},{"$f":"'Turnierplan Eingabe Resultate'!C42","v":"-"},{"$f":"'Turnierplan Eingabe Resultate'!D42","v":"14:12:00"},{"$f":"'Turnierplan nur für Ausdruck'!E42","v":"Vindonissa Tigers"},{"$f":"'Turnierplan Eingabe Resultate'!F42","v":":"},{"$f":"'Turnierplan nur für Ausdruck'!H42","v":"Büspi Flyers 1"},null,null,{"$f":"'Turnierplan Eingabe Resultate'!J42","v":":"},null,{"$f":"L$5","v":"Halle 1"},{"$f":"A37","v":17},{"$f":"B37","v":"14:00:00"},{"$f":"C37","v":"-"},{"$f":"D37","v":"14:12:00"},{"$f":"'Turnierplan nur für Ausdruck'!N42","v":"FC Zürisee 1"},{"$f":"'Turnierplan Eingabe Resultate'!M42","v":":"},{"$f":"'Turnierplan nur für Ausdruck'!Q42","v":"Special Alligators 1"},null,null,{"$f":"'Turnierplan Eingabe Resultate'!Q42","v":":"},null,{"$f":"X$5","v":"Halle 2"},{"$f":"A37","v":17},{"$f":"B37","v":"14:00:00"},{"$f":"C37","v":"-"},{"$f":"D37","v":"14:12:00"},{"$f":"'Turnierplan nur für Ausdruck'!X42","v":"Rappi Jona Flames 2"},{"$f":"'Turnierplan Eingabe Resultate'!T42","v":":"},{"$f":"'Turnierplan nur für Ausdruck'!AA42","v":"Insieme Rheintal Gators"},null,null,{"$f":"'Turnierplan Eingabe Resultate'!X42","v":":"},null,{"$f":"AJ$5","v":"Halle 3"}]
[]
[{"$f":"'Turnierplan Eingabe Resultate'!A43","v":18},{"$f":"'Turnierplan Eingabe Resultate'!B43","v":"14:15:00"},{"$f":"'Turnierplan Eingabe Resultate'!C43","v":"-"},{"$f":"'Turnierplan Eingabe Resultate'!D43","v":"14:27:00"},{"$f":"'Turnierplan nur für Ausdruck'!E43","v":"Altra Ducks"},{"$f":"'Turnierplan Eingabe Resultate'!F43","v":":"},{"$f":"'Turnierplan nur für Ausdruck'!H43","v":"Rappi Jona Flames 1"},null,null,{"$f":"'Turnierplan Eingabe Resultate'!J43","v":":"},null,"Halle 1",18,"14:15:00","-","14:27:00",{"$f":"'Turnierplan nur für Ausdruck'!N43","v":"Junkihüpfer Wohlen"},{"$f":"'Turnierplan Eingabe Resultate'!M43","v":":"},{"$f":"'Turnierplan nur für Ausdruck'!Q43","v":"Bärau Tigers 1"},null,null,{"$f":"'Turnierplan Eingabe Resultate'!Q43","v":":"},null,"Halle 2",18,"14:15:00","-","14:27:00",{"$f":"'Turnierplan nur für Ausdruck'!X43","v":"Winti United 2"},{"$f":"'Turnierplan Eingabe Resultate'!T43","v":":"},{"$f":"'Turnierplan nur für Ausdruck'!AA43","v":"btv chur unihockey 3"},null,null,{"$f":"'Turnierplan Eingabe Resultate'!X43","v":":"},null,"Halle 3"]
[]
[{"$f":"'Turnierplan Eingabe Resultate'!A44","v":19},{"$f":"'Turnierplan Eingabe Resultate'!B44","v":"14:30:00"},{"$f":"'Turnierplan Eingabe Resultate'!C44","v":"-"},{"$f":"'Turnierplan Eingabe Resultate'!D44","v":"14:42:00"},{"$f":"'Turnierplan nur für Ausdruck'!E44","v":"Winti United 1"},{"$f":"'Turnierplan Eingabe Resultate'!F44","v":":"},{"$f":"'Turnierplan nur für Ausdruck'!H44","v":"btv chur unihockey 1"},null,null,{"$f":"'Turnierplan Eingabe Resultate'!J44","v":":"},null,"Halle 1",19,"14:30:00","-","14:42:00",{"$f":"'Turnierplan nur für Ausdruck'!N44","v":"Special Alligators 2"},{"$f":"'Turnierplan Eingabe Resultate'!M44","v":":"},{"$f":"'Turnierplan nur für Ausdruck'!Q44","v":"Schulheim  Chur"},null,null,{"$f":"'Turnierplan Eingabe Resultate'!Q44","v":":"},null,"Halle 2",19,"14:30:00","-","14:42:00",{"$f":"'Turnierplan nur für Ausdruck'!X44","v":"Le Tigri 1"},{"$f":"'Turnierplan Eingabe Resultate'!T44","v":":"},{"$f":"'Turnierplan nur für Ausdruck'!AA44","v":"FC Zürisee 2"},null,null,{"$f":"'Turnierplan Eingabe Resultate'!X44","v":":"},null,"Halle 3"]
[]
[{"$f":"'Turnierplan Eingabe Resultate'!A45","v":20},{"$f":"'Turnierplan Eingabe Resultate'!B45","v":"14:45:00"},{"$f":"'Turnierplan Eingabe Resultate'!C45","v":"-"},{"$f":"'Turnierplan Eingabe Resultate'!D45","v":"14:57:00"},{"$f":"'Turnierplan nur für Ausdruck'!E45","v":"La Branche"},{"$f":"'Turnierplan Eingabe Resultate'!F45","v":":"},{"$f":"'Turnierplan nur für Ausdruck'!H45","v":"UHC PSW"},null,null,{"$f":"'Turnierplan Eingabe Resultate'!J45","v":":"},null,"Halle 1",20,"14:45:00","-","14:57:00",{"$f":"'Turnierplan nur für Ausdruck'!N45","v":"btv chur unihockey 2"},{"$f":"'Turnierplan Eingabe Resultate'!M45","v":":"},{"$f":"'Turnierplan nur für Ausdruck'!Q45","v":"Black Panthers"},null,null,{"$f":"'Turnierplan Eingabe Resultate'!Q45","v":":"},null,"Halle 2",20,"14:45:00","-","14:57:00",{"$f":"'Turnierplan nur für Ausdruck'!X45","v":"Le Tigri 2"},{"$f":"'Turnierplan Eingabe Resultate'!T45","v":":"},{"$f":"'Turnierplan nur für Ausdruck'!AA45","v":"Bünzgeister"},null,null,{"$f":"'Turnierplan Eingabe Resultate'!X45","v":":"},null,"Halle 3"]
[]
[{"$f":"'Turnierplan Eingabe Resultate'!A46","v":21},{"$f":"'Turnierplan Eingabe Resultate'!B46","v":"15:00:00"},{"$f":"'Turnierplan Eingabe Resultate'!C46","v":"-"},{"$f":"'Turnierplan Eingabe Resultate'!D46","v":"15:12:00"},{"$f":"'Turnierplan nur für Ausdruck'!E46","v":"Vindonissa Tigers"},{"$f":"'Turnierplan Eingabe Resultate'!F46","v":":"},{"$f":"'Turnierplan nur für Ausdruck'!H46","v":"Special Alligators 1"},null,null,{"$f":"'Turnierplan Eingabe Resultate'!J46","v":":"},null,"Halle 1",21,"15:00:00","-","15:12:00",{"$f":"'Turnierplan nur für Ausdruck'!N46","v":"btv chur unihockey 3"},{"$f":"'Turnierplan Eingabe Resultate'!M46","v":":"},{"$f":"'Turnierplan nur für Ausdruck'!Q46","v":"Winti United 2"},null,null,{"$f":"'Turnierplan Eingabe Resultate'!Q46","v":":"},null,"Halle 2",21,"15:00:00","-","15:12:00",{"$f":"'Turnierplan nur für Ausdruck'!X46","v":"Büspi Flyers 1"},{"$f":"'Turnierplan Eingabe Resultate'!T46","v":":"},{"$f":"'Turnierplan nur für Ausdruck'!AA46","v":"FC Zürisee 1"},null,null,{"$f":"'Turnierplan Eingabe Resultate'!X46","v":":"},null,"Halle 3"]
[]
[{"$f":"'Turnierplan Eingabe Resultate'!A47","v":22},{"$f":"'Turnierplan Eingabe Resultate'!B47","v":"15:15:00"},{"$f":"'Turnierplan Eingabe Resultate'!C47","v":"-"},{"$f":"'Turnierplan Eingabe Resultate'!D47","v":"15:27:00"},{"$f":"'Turnierplan nur für Ausdruck'!E47","v":"Rappi Jona Flames 1"},{"$f":"'Turnierplan Eingabe Resultate'!F47","v":":"},{"$f":"'Turnierplan nur für Ausdruck'!H47","v":"Junkihüpfer Wohlen"},null,null,{"$f":"'Turnierplan Eingabe Resultate'!J47","v":":"},null,"Halle 1",22,"15:15:00","-","15:27:00",{"$f":"'Turnierplan nur für Ausdruck'!N47","v":"Vindonissa Panthers"},{"$f":"'Turnierplan Eingabe Resultate'!M47","v":":"},{"$f":"'Turnierplan nur für Ausdruck'!Q47","v":"Rappi Jona Flames 2"},null,null,{"$f":"'Turnierplan Eingabe Resultate'!Q47","v":":"},null,"Halle 2",22,"15:15:00","-","15:27:00",{"$f":"'Turnierplan nur für Ausdruck'!X47","v":"Altra Ducks"},{"$f":"'Turnierplan Eingabe Resultate'!T47","v":":"},{"$f":"'Turnierplan nur für Ausdruck'!AA47","v":"Bärau Tigers 1"},null,null,{"$f":"'Turnierplan Eingabe Resultate'!X47","v":":"},null,"Halle 3"]
[]
[{"$f":"'Turnierplan Eingabe Resultate'!A48","v":23},{"$f":"'Turnierplan Eingabe Resultate'!B48","v":"15:30:00"},{"$f":"'Turnierplan Eingabe Resultate'!C48","v":"-"},{"$f":"'Turnierplan Eingabe Resultate'!D48","v":"15:42:00"},{"$f":"'Turnierplan nur für Ausdruck'!E48","v":"btv chur unihockey 1"},{"$f":"'Turnierplan Eingabe Resultate'!F48","v":":"},{"$f":"'Turnierplan nur für Ausdruck'!H48","v":"Le Tigri 1"},null,null,{"$f":"'Turnierplan Eingabe Resultate'!J48","v":":"},null,"Halle 1",23,"15:30:00","-","15:42:00",{"$f":"'Turnierplan nur für Ausdruck'!N48","v":"Special Alligators 2"},{"$f":"'Turnierplan Eingabe Resultate'!M48","v":":"},{"$f":"'Turnierplan nur für Ausdruck'!Q48","v":"FC Zürisee 2"},null,null,{"$f":"'Turnierplan Eingabe Resultate'!Q48","v":":"},null,"Halle 2",23,"15:30:00","-","15:42:00",{"$f":"'Turnierplan nur für Ausdruck'!X48","v":"Winti United 1"},{"$f":"'Turnierplan Eingabe Resultate'!T48","v":":"},{"$f":"'Turnierplan nur für Ausdruck'!AA48","v":"Schulheim  Chur"},null,null,{"$f":"'Turnierplan Eingabe Resultate'!X48","v":":"},null,"Halle 3"]
[]
[{"$f":"'Turnierplan Eingabe Resultate'!A49","v":24},{"$f":"'Turnierplan Eingabe Resultate'!B49","v":"15:45:00"},{"$f":"'Turnierplan Eingabe Resultate'!C49","v":"-"},{"$f":"'Turnierplan Eingabe Resultate'!D49","v":"15:57:00"},{"$f":"'Turnierplan nur für Ausdruck'!E49","v":"btv chur unihockey 2"},{"$f":"'Turnierplan Eingabe Resultate'!F49","v":":"},{"$f":"'Turnierplan nur für Ausdruck'!H49","v":"Bünzgeister"},null,null,{"$f":"'Turnierplan Eingabe Resultate'!J49","v":":"},null,"Halle 1",24,"15:45:00","-","15:57:00",{"$f":"'Turnierplan nur für Ausdruck'!N49","v":"Black Panthers"},{"$f":"'Turnierplan Eingabe Resultate'!M49","v":":"},{"$f":"'Turnierplan nur für Ausdruck'!Q49","v":"UHC PSW"},null,null,{"$f":"'Turnierplan Eingabe Resultate'!Q49","v":":"},null,"Halle 2",24,"15:45:00","-","15:57:00",{"$f":"'Turnierplan nur für Ausdruck'!X49","v":"La Branche"},{"$f":"'Turnierplan Eingabe Resultate'!T49","v":":"},{"$f":"'Turnierplan nur für Ausdruck'!AA49","v":"Le Tigri 2"},null,null,{"$f":"'Turnierplan Eingabe Resultate'!X49","v":":"},null,"Halle 3"]

{"sheet":"Turnierplan nur für Ausdruck","index":3,"n_rows":51,"n_cols":38,"rows_kept":51,"cut":false,"hidden":false,"merged":[[50,0,50,31],[40,0,40,31],[25,4,25,5],[25,13,25,14],[28,4,28,5],[24,7,24,9],[0,13,0,22],[2,9,5,23],[22,4,22,12],[22,13,22,22],[22,23,22,31],[9,15,9,16],[10,15,10,16],[11,15,11,16],[12,15,12,16],[13,15,13,16],[14,15,14,16],[26,4,26,5],[26,13,26,14],[26,23,26,24],[25,7,25,9],[26,7,26,9],[26,16,26,19],[25,16,25,19],[28,7,28,9],[29,4,29,5],[29,7,29,9],[30,7,30,9],[31,7,31,9],[30,4,30,5],[31,4,31,5],[24,23,24,24],[24,4,24,5],[24,13,24,14],[27,4,27,5],[27,13,27,14],[25,23,25,24],[27,7,27,9],[27,16,27,19],[27,23,27,24],[28,23,28,24],[29,23,29,24],[30,23,30,24],[31,23,31,24],[24,16,24,19],[24,26,24,28],[25,26,25,28],[26,26,26,28],[27,26,27,28],[28,13,28,14],[29,13,29,14],[30,13,30,14],[31,13,31,14],[28,16,28,19],[29,16,29,19],[30,16,30,19],[31,16,31,19],[28,26,28,28],[29,26,29,28],[30,26,30,28],[31,26,31,28],[32,26,32,28],[33,4,33,5],[33,7,33,9],[33,13,33,14],[33,16,33,19],[33,23,33,24],[33,26,33,28],[32,4,32,5],[32,7,32,9],[32,13,32,14],[32,16,32,19],[32,23,32,24],[34,26,34,28],[35,4,35,5],[35,7,35,9],[35,13,35,14],[35,16,35,19],[35,23,35,24],[35,26,35,28],[34,4,34,5],[34,7,34,9],[34,13,34,14],[34,16,34,19],[34,23,34,24],[36,26,36,28],[37,4,37,5],[37,7,37,9],[37,13,37,14],[37,16,37,19],[37,23,37,24],[37,26,37,28],[36,4,36,5],[36,7,36,9],[36,13,36,14],[36,16,36,19],[36,23,36,24],[38,26,38,28],[39,4,39,5],[39,7,39,9],[39,13,39,14],[39,16,39,19],[39,23,39,24],[39,26,39,28],[38,4,38,5],[38,7,38,9],[38,13,38,14],[38,16,38,19],[38,23,38,24],[41,26,41,28],[42,4,42,5],[42,7,42,9],[42,13,42,14],[42,16,42,19],[42,23,42,24],[41,4,41,5],[41,7,41,9],[41,13,41,14],[41,16,41,19],[41,23,41,24],[43,26,43,28],[42,26,42,28],[44,4,44,5],[44,7,44,9],[44,13,44,14],[44,16,44,19],[44,23,44,24],[44,26,44,28],[43,4,43,5],[43,7,43,9],[43,13,43,14],[43,16,43,19],[43,23,43,24],[45,26,45,28],[46,4,46,5],[46,7,46,9],[46,13,46,14],[46,16,46,19],[46,23,46,24],[46,26,46,28],[45,4,45,5],[45,7,45,9],[45,13,45,14],[45,16,45,19],[45,23,45,24],[47,26,47,28],[48,4,48,5],[48,7,48,9],[48,13,48,14],[48,16,48,19],[48,23,48,24],[48,26,48,28],[47,4,47,5],[47,7,47,9],[47,13,47,14],[47,16,47,19],[47,23,47,24]]}
[null,null,null,null,null,null,null,null,null,null,null,null,null,{"$f":"'Turnierplan Eingabe Resultate'!N1","v":"2018-06-09"}]
[]
[null,null,null,null,null,null,null,null,null,{"$f":"'Turnierplan Eingabe Resultate'!N3","v":"10. Unihockey Turnier"}]
[]
[]
[]
[{"$f":"'Turnierplan Eingabe Resultate'!A7","v":"Turnierplan"}]
[]
[{"$f":"'Turnierplan Eingabe Resultate'!A9","v":"Gruppe A"},null,null,null,null,null,null,{"$f":"'Turnierplan Eingabe Resultate'!N9","v":"Gruppe B"},null,null,null,null,null,null,null,{"$f":"'Turnierplan Eingabe Resultate'!Y9","v":"Gruppe C"},null,null,null,null,null,null,null,null,{"$f":"'Turnierplan Eingabe Resultate'!AI9","v":"Gruppe D1"},null,null,null,null,null,null,null,{"$f":"'Turnierplan Eingabe Resultate'!AI19","v":"Gruppe D2"},null,null,null,1,{"$f":"'Turnierplan Eingabe Resultate'!C10","v":"Büspi Flyers 1"}]
[{"$f":"'Turnierplan Eingabe Resultate'!A10","v":1},"=",{"$f":"'Turnierplan Eingabe Resultate'!C10","v":"Büspi Flyers 1"},null,null,null,null,{"$f":"'Turnierplan Eingabe Resultate'!N10","v":5},"=",{"$f":"'Turnierplan Eingabe Resultate'!P10","v":"Rappi Jona Flames 1"},null,null,null,null,null,{"$f":"'Turnierplan Eingabe Resultate'!Y10","v":9},null,"=",{"$f":"'Turnierplan Eingabe Resultate'!AA10","v":"btv chur unihockey 1"},null,null,null,null,null,{"$f":"'Turnierplan Eingabe Resultate'!AI10","v":15},"=",{"$f":"'Turnierplan Eingabe Resultate'!AK10","v":"UHC PSW"},null,null,null,null,null,{"$f":"'Turnierplan Eingabe Resultate'!AI20","v":21},"=",{"$f":"'Turnierplan Eingabe Resultate'!AK20","v":"Insieme Rheintal Gators"},null,2,{"$f":"'Turnierplan Eingabe Resultate'!C11","v":"Special Alligators 1"}]
[{"$f":"'Turnierplan Eingabe Resultate'!A11","v":2},"=",{"$f":"'Turnierplan Eingabe Resultate'!C11","v":"Special Alligators 1"},null,null,null,null,{"$f":"'Turnierplan Eingabe Resultate'!N11","v":6},"=",{"$f":"'Turnierplan Eingabe Resultate'!P11","v":"Bärau Tigers 1"},null,null,null,null,null,{"$f":"'Turnierplan Eingabe Resultate'!Y11","v":10},null,"=",{"$f":"'Turnierplan Eingabe Resultate'!AA11","v":"Special Alligators 2"},null,null,null,null,null,{"$f":"'Turnierplan Eingabe Resultate'!AI11","v":16},"=",{"$f":"'Turnierplan Eingabe Resultate'!AK11","v":"btv chur unihockey 2"},null,null,null,null,null,{"$f":"'Turnierplan Eingabe Resultate'!AI21","v":22},"=",{"$f":"'Turnierplan Eingabe Resultate'!AK21","v":"btv chur unihockey 3"},null,3,{"$f":"'Turnierplan Eingabe Resultate'!C12","v":"Vindonissa Tigers"}]
[{"$f":"'Turnierplan Eingabe Resultate'!A12","v":3},"=",{"$f":"'Turnierplan Eingabe Resultate'!C12","v":"Vindonissa Tigers"},null,null,null,null,{"$f":"'Turnierplan Eingabe Resultate'!N12","v":7},"=",{"$f":"'Turnierplan Eingabe Resultate'!P12","v":"Altra Ducks"},null,null,null,null,null,{"$f":"'Turnierplan Eingabe Resultate'!Y12","v":11},null,"=",{"$f":"'Turnierplan Eingabe Resultate'!AA12","v":"Schulheim  Chur"},null,null,null,null,null,{"$f":"'Turnierplan Eingabe Resultate'!AI12","v":17},"=",{"$f":"'Turnierplan Eingabe Resultate'!AK12","v":"Black Panthers"},null,null,null,null,null,{"$f":"'Turnierplan Eingabe Resultate'!AI22","v":23},"=",{"$f":"'Turnierplan Eingabe Resultate'!AK22","v":"Vindonissa Panthers"},null,4,{"$f":"'Turnierplan Eingabe Resultate'!C13","v":"FC Zürisee 1"}]
[{"$f":"'Turnierplan Eingabe Resultate'!A13","v":4},"=",{"$f":"'Turnierplan Eingabe Resultate'!C13","v":"FC Zürisee 1"},null,null,null,null,{"$f":"'Turnierplan Eingabe Resultate'!N13","v":8},"=",{"$f":"'Turnierplan Eingabe Resultate'!P13","v":"Junkihüpfer Wohlen"},null,null,null,null,null,{"$f":"'Turnierplan Eingabe Resultate'!Y13","v":12},null,"=",{"$f":"'Turnierplan Eingabe Resultate'!AA13","v":"FC Zürisee 2"},null,null,null,null,null,{"$f":"'Turnierplan Eingabe Resultate'!AI13","v":18},"=",{"$f":"'Turnierplan Eingabe Resultate'!AK13","v":"Bünzgeister"},null,null,null,null,null,{"$f":"'Turnierplan Eingabe Resultate'!AI23","v":24},"=",{"$f":"'Turnierplan Eingabe Resultate'!AK23","v":"Rappi Jona Flames 2"},null,5,{"$f":"'Turnierplan Eingabe Resultate'!P10","v":"Rappi Jona Flames 1"}]
[null,null,null,null,null,null,null,null,null,null,null,null,null,null,null,{"$f":"'Turnierplan Eingabe Resultate'!Y14","v":13},null,"=",{"$f":"'Turnierplan Eingabe Resultate'!AA14","v":"Le Tigri 1"},null,null,null,null,null,{"$f":"'Turnierplan Eingabe Resultate'!AI14","v":19},"=",{"$f":"'Turnierplan Eingabe Resultate'!AK14","v":"Le Tigri 2"},null,null,null,null,null,{"$f":"'Turnierplan Eingabe Resultate'!AI24","v":25},"=",{"$f":"'Turnierplan Eingabe Resultate'!AK24","v":"Winti United 2"},null,6,{"$f":"'Turnierplan Eingabe Resultate'!P11","v":"Bärau Tigers 1"}]
[null,null,null,null,null,null,null,null,null,null,null,null,null,null,null,{"$f":"'Turnierplan Eingabe Resultate'!Y15","v":14},null,"=",{"$f":"'Turnierplan Eingabe Resultate'!AA15","v":"Winti United 1"},null,null,null,null,null,{"$f":"'Turnierplan Eingabe Resultate'!AI15","v":20},"=",{"$f":"'Turnierplan Eingabe Resultate'!AK15","v":"La Branche"},null,null,null,null,null,null,null,null,null,7,{"$f":"'Turnierplan Eingabe Resultate'!P12","v":"Altra Ducks"}]
[null,null,null,null,null,null,null,null,null,null,null,null,null,null,null,null,null,null,null,null,null,null,null,null,null,null,null,null,null,null,null,null,null,null,null,null,8,{"$f":"'Turnierplan Eingabe Resultate'!P13","v":"Junkihüpfer Wohlen"}]
[null,null,null,null,null,null,null,null,null,null,null,null,null,null,null,null,null,null,null,null,null,null,null,null,null,null,null,null,null,null,null,null,null,null,null,null,9,{"$f":"'Turnierplan Eingabe Resultate'!AA10","v":"btv chur unihockey 1"}]
[null,null,null,null,null,null,null,null,null,null,null,null,null,null,null,null,null,null,null,null,null,null,null,null,null,null,null,null,null,null,null,null,null,null,null,null,10,{"$f":"'Turnierplan Eingabe Resultate'!AA11","v":"Special Alligators 2"}]
[null,null,null,null,null,null,null,null,null,null,null,null,null,null,null,null,null,null,null,null,null,null,null,null,null,null,null,null,null,null,null,null,null,null,null,null,11,{"$f":"'Turnierplan Eingabe Resultate'!AA12","v":"Schulheim  Chur"}]
[null,null,null,null,null,null,null,null,null,null,null,null,null,null,null,null,null,null,null,null,null,null,null,null,null,null,null,null,null,null,null,null,null,null,null,null,12,{"$f":"'Turnierplan Eingabe Resultate'!AA13","v":"FC Zürisee 2"}]
[null,null,null,null,null,null,null,null,null,null,null,null,null,null,null,null,null,null,null,null,null,null,null,null,null,null,null,null,null,null,null,null,null,null,null,null,13,{"$f":"'Turnierplan Eingabe Resultate'!AA14","v":"Le Tigri 1"}]
[null,null,null,null,null,null,null,null,null,null,null,null,null,null,null,null,null,null,null,null,null,null,null,null,null,null,null,null,null,null,null,null,null,null,null,null,14,{"$f":"'Turnierplan Eingabe Resultate'!AA15","v":"Winti United 1"}]
[null,null,null,null,"Halle 1",null,null,null,null,null,null,null,null,"Halle 2",null,null,null,null,null,null,null,null,null,"Halle 3",null,null,null,null,null,null,null,null,null,null,null,null,15,{"$f":"'Turnierplan Eingabe Resultate'!AK10","v":"UHC PSW"}]
["Rn",null,"Zeit",null,null,null,"Spiel",null,null,null,null,"Res.",null,null,null,"Spiel",null,null,null,null,null,"Res.",null,null,null,"Spiel",null,null,null,null,"Res.",null,null,null,null,null,16,{"$f":"'Turnierplan Eingabe Resultate'!AK11","v":"btv chur unihockey 2"}]
[{"$f":"'Turnierplan Eingabe Resultate'!A25","v":1},{"$f":"'Turnierplan Eingabe Resultate'!B25","v":"09:00:00"},"-",{"$f":"'Turnierplan Eingabe Resultate'!D25","v":"09:12:00"},{"$f":"VLOOKUP('Turnierplan Eingabe Resultate'!E25,'Turnierplan nur für Ausdruck'!$AK$9:$AL$33,2)","v":"Special Alligators 2"},null,":",{"$f":"VLOOKUP('Turnierplan Eingabe Resultate'!G25,'Turnierplan nur für Ausdruck'!$AK$9:$AL$33,2)","v":"btv chur unihockey 1"},null,null,{"$f":"IF('Turnierplan Eingabe Resultate'!I25=\"\",\"\",'Turnierplan Eingabe Resultate'!I25)","v":3},":",{"$f":"IF('Turnierplan Eingabe Resultate'!K25=\"\",\"\",'Turnierplan Eingabe Resultate'!K25)","v":2},{"$f":"VLOOKUP('Turnierplan Eingabe Resultate'!L25,'Turnierplan nur für Ausdruck'!$AK$9:$AL$33,2)","v":"Schulheim  Chur"},null,":",{"$f":"VLOOKUP('Turnierplan Eingabe Resultate'!N25,'Turnierplan nur für Ausdruck'!$AK$9:$AL$33,2)","v":"FC Zürisee 2"},null,null,null,{"$f":"IF('Turnierplan Eingabe Resultate'!P25=\"\",\"\",'Turnierplan Eingabe Resultate'!P25)","v":1},":",{"$f":"IF('Turnierplan Eingabe Resultate'!R25=\"\",\"\",'Turnierplan Eingabe Resultate'!R25)","v":9},{"$f":"VLOOKUP('Turnierplan Eingabe Resultate'!S25,'Turnierplan nur für Ausdruck'!$AK$9:$AL$33,2)","v":"Insieme Rheintal Gators"},null,":",{"$f":"VLOOKUP('Turnierplan Eingabe Resultate'!U25,'Turnierplan nur für Ausdruck'!$AK$9:$AL$33,2)","v":"btv chur unihockey 3"},null,null,{"$f":"IF('Turnierplan Eingabe Resultate'!W25=\"\",\"\",'Turnierplan Eingabe Resultate'!W25)","v":2},":",{"$f":"IF('Turnierplan Eingabe Resultate'!Y25=\"\",\"\",'Turnierplan Eingabe Resultate'!Y25)","v":2},null,null,null,null,17,{"$f":"'Turnierplan Eingabe Resultate'!AK12","v":"Black Panthers"}]
[{"$f":"'Turnierplan Eingabe Resultate'!A26","v":2},{"$f":"'Turnierplan Eingabe Resultate'!B26","v":"09:15:00"},"-",{"$f":"'Turnierplan Eingabe Resultate'!D26","v":"09:27:00"},{"$f":"VLOOKUP('Turnierplan Eingabe Resultate'!E26,'Turnierplan nur für Ausdruck'!$AK$9:$AL$33,2)","v":"Büspi Flyers 1"},null,":",{"$f":"VLOOKUP('Turnierplan Eingabe Resultate'!G26,'Turnierplan nur für Ausdruck'!$AK$9:$AL$33,2)","v":"Special Alligators 1"},null,null,{"$f":"IF('Turnierplan Eingabe Resultate'!I26=\"\",\"\",'Turnierplan Eingabe Resultate'!I26)","v":7},":",{"$f":"IF('Turnierplan Eingabe Resultate'!K26=\"\",\"\",'Turnierplan Eingabe Resultate'!K26)","v":2},{"$f":"VLOOKUP('Turnierplan Eingabe Resultate'!L26,'Turnierplan nur für Ausdruck'!$AK$9:$AL$33,2)","v":"Vindonissa Tigers"},null,":",{"$f":"VLOOKUP('Turnierplan Eingabe Resultate'!N26,'Turnierplan nur für Ausdruck'!$AK$9:$AL$33,2)","v":"FC Zürisee 1"},null,null,null,{"$f":"IF('Turnierplan Eingabe Resultate'!P26=\"\",\"\",'Turnierplan Eingabe Resultate'!P26)","v":1},":",{"$f":"IF('Turnierplan Eingabe Resultate'!R26=\"\",\"\",'Turnierplan Eingabe Resultate'!R26)","v":4},{"$f":"VLOOKUP('Turnierplan Eingabe Resultate'!S26,'Turnierplan nur für Ausdruck'!$AK$9:$AL$33,2)","v":"Vindonissa Panthers"},null,":",{"$f":"VLOOKUP('Turnierplan Eingabe Resultate'!U26,'Turnierplan nur für Ausdruck'!$AK$9:$AL$33,2)","v":"Rappi Jona Flames 2"},null,null,{"$f":"IF('Turnierplan Eingabe Resultate'!W26=\"\",\"\",'Turnierplan Eingabe Resultate'!W26)","v":3},":",{"$f":"IF('Turnierplan Eingabe Resultate'!Y26=\"\",\"\",'Turnierplan Eingabe Resultate'!Y26)","v":0},null,null,null,null,18,{"$f":"'Turnierplan Eingabe Resultate'!AK13","v":"Bünzgeister"}]
[{"$f":"'Turnierplan Eingabe Resultate'!A27","v":3},{"$f":"'Turnierplan Eingabe Resultate'!B27","v":"09:30:00"},"-",{"$f":"'Turnierplan Eingabe Resultate'!D27","v":"09:42:00"},{"$f":"VLOOKUP('Turnierplan Eingabe Resultate'!E27,'Turnierplan nur für Ausdruck'!$AK$9:$AL$33,2)","v":"UHC PSW"},null,":",{"$f":"VLOOKUP('Turnierplan Eingabe Resultate'!G27,'Turnierplan nur für Ausdruck'!$AK$9:$AL$33,2)","v":"btv chur unihockey 2"},null,null,{"$f":"IF('Turnierplan Eingabe Resultate'!I27=\"\",\"\",'Turnierplan Eingabe Resultate'!I27)","v":5},":",{"$f":"IF('Turnierplan Eingabe Resultate'!K27=\"\",\"\",'Turnierplan Eingabe Resultate'!K27)","v":2},{"$f":"VLOOKUP('Turnierplan Eingabe Resultate'!L27,'Turnierplan nur für Ausdruck'!$AK$9:$AL$33,2)","v":"Black Panthers"},null,":",{"$f":"VLOOKUP('Turnierplan Eingabe Resultate'!N27,'Turnierplan nur für Ausdruck'!$AK$9:$AL$33,2)","v":"Bünzgeister"},null,null,null,{"$f":"IF('Turnierplan Eingabe Resultate'!P27=\"\",\"\",'Turnierplan Eingabe Resultate'!P27)","v":1},":",{"$f":"IF('Turnierplan Eingabe Resultate'!R27=\"\",\"\",'Turnierplan Eingabe Resultate'!R27)","v":3},{"$f":"VLOOKUP('Turnierplan Eingabe Resultate'!S27,'Turnierplan nur für Ausdruck'!$AK$9:$AL$33,2)","v":"Altra Ducks"},null,":",{"$f":"VLOOKUP('Turnierplan Eingabe Resultate'!U27,'Turnierplan nur für Ausdruck'!$AK$9:$AL$33,2)","v":"Junkihüpfer Wohlen"},null,null,{"$f":"IF('Turnierplan Eingabe Resultate'!W27=\"\",\"\",'Turnierplan Eingabe Resultate'!W27)","v":2},":",{"$f":"IF('Turnierplan Eingabe Resultate'!Y27=\"\",\"\",'Turnierplan Eingabe Resultate'!Y27)","v":5},null,null,null,null,19,{"$f":"'Turnierplan Eingabe Resultate'!AK14","v":"Le Tigri 2"}]
[{"$f":"'Turnierplan Eingabe Resultate'!A28","v":4},{"$f":"'Turnierplan Eingabe Resultate'!B28","v":"09:45:00"},"-",{"$f":"'Turnierplan Eingabe Resultate'!D28","v":"09:57:00"},{"$f":"VLOOKUP('Turnierplan Eingabe Resultate'!E28,'Turnierplan nur für Ausdruck'!$AK$9:$AL$33,2)","v":"Le Tigri 1"},null,":",{"$f":"VLOOKUP('Turnierplan Eingabe Resultate'!G28,'Turnierplan nur für Ausdruck'!$AK$9:$AL$33,2)","v":"Winti United 1"},null,null,{"$f":"IF('Turnierplan Eingabe Resultate'!I28=\"\",\"\",'Turnierplan Eingabe Resultate'!I28)","v":3},":",{"$f":"IF('Turnierplan Eingabe Resultate'!K28=\"\",\"\",'Turnierplan Eingabe Resultate'!K28)","v":2},{"$f":"VLOOKUP('Turnierplan Eingabe Resultate'!L28,'Turnierplan nur für Ausdruck'!$AK$9:$AL$33,2)","v":"Le Tigri 2"},null,":",{"$f":"VLOOKUP('Turnierplan Eingabe Resultate'!N28,'Turnierplan nur für Ausdruck'!$AK$9:$AL$33,2)","v":"La Branche"},null,null,null,{"$f":"IF('Turnierplan Eingabe Resultate'!P28=\"\",\"\",'Turnierplan Eingabe Resultate'!P28)","v":1},":",{"$f":"IF('Turnierplan Eingabe Resultate'!R28=\"\",\"\",'Turnierplan Eingabe Resultate'!R28)","v":5},{"$f":"VLOOKUP('Turnierplan Eingabe Resultate'!S28,'Turnierplan nur für Ausdruck'!$AK$9:$AL$33,2)","v":"Rappi Jona Flames 1"},null,":",{"$f":"VLOOKUP('Turnierplan Eingabe Resultate'!U28,'Turnierplan nur für Ausdruck'!$AK$9:$AL$33,2)","v":"Bärau Tigers 1"},null,null,{"$f":"IF('Turnierplan Eingabe Resultate'!W28=\"\",\"\",'Turnierplan Eingabe Resultate'!W28)","v":2},":",{"$f":"IF('Turnierplan Eingabe Resultate'!Y28=\"\",\"\",'Turnierplan Eingabe Resultate'!Y28)","v":3},null,null,null,null,20,{"$f":"'Turnierplan Eingabe Resultate'!AK15","v":"La Branche"}]
[{"$f":"'Turnierplan Eingabe Resultate'!A29","v":5},{"$f":"'Turnierplan Eingabe Resultate'!B29","v":"10:00:00"},"-",{"$f":"'Turnierplan Eingabe Resultate'!D29","v":"10:12:00"},{"$f":"VLOOKUP('Turnierplan Eingabe Resultate'!E29,'Turnierplan nur für Ausdruck'!$AK$9:$AL$33,2)","v":"Büspi Flyers 1"},null,":",{"$f":"VLOOKUP('Turnierplan Eingabe Resultate'!G29,'Turnierplan nur für Ausdruck'!$AK$9:$AL$33,2)","v":"Vindonissa Tigers"},null,null,{"$f":"IF('Turnierplan Eingabe Resultate'!I29=\"\",\"\",'Turnierplan Eingabe Resultate'!I29)","v":4},":",{"$f":"IF('Turnierplan Eingabe Resultate'!K29=\"\",\"\",'Turnierplan Eingabe Resultate'!K29)","v":1},{"$f":"VLOOKUP('Turnierplan Eingabe Resultate'!L29,'Turnierplan nur für Ausdruck'!$AK$9:$AL$33,2)","v":"Special Alligators 1"},null,":",{"$f":"VLOOKUP('Turnierplan Eingabe Resultate'!N29,'Turnierplan nur für Ausdruck'!$AK$9:$AL$33,2)","v":"FC Zürisee 1"},null,null,null,{"$f":"IF('Turnierplan Eingabe Resultate'!P29=\"\",\"\",'Turnierplan Eingabe Resultate'!P29)","v":3},":",{"$f":"IF('Turnierplan Eingabe Resultate'!R29=\"\",\"\",'Turnierplan Eingabe Resultate'!R29)","v":2},{"$f":"VLOOKUP('Turnierplan Eingabe Resultate'!S29,'Turnierplan nur für Ausdruck'!$AK$9:$AL$33,2)","v":"Winti United 2"},null,":",{"$f":"VLOOKUP('Turnierplan Eingabe Resultate'!U29,'Turnierplan nur für Ausdruck'!$AK$9:$AL$33,2)","v":"Insieme Rheintal Gators"},null,null,{"$f":"IF('Turnierplan Eingabe Resultate'!W29=\"\",\"\",'Turnierplan Eingabe Resultate'!W29)","v":3},":",{"$f":"IF('Turnierplan Eingabe Resultate'!Y29=\"\",\"\",'Turnierplan Eingabe Resultate'!Y29)","v":1},null,null,null,null,21,{"$f":"'Turnierplan Eingabe Resultate'!AK20","v":"Insieme Rheintal Gators"}]
[{"$f":"'Turnierplan Eingabe Resultate'!A30","v":6},{"$f":"'Turnierplan Eingabe Resultate'!B30","v":"10:15:00"},"-",{"$f":"'Turnierplan Eingabe Resultate'!D30","v":"10:27:00"},{"$f":"VLOOKUP('Turnierplan Eingabe Resultate'!E30,'Turnierplan nur für Ausdruck'!$AK$9:$AL$33,2)","v":"Rappi Jona Flames 1"},null,":",{"$f":"VLOOKUP('Turnierplan Eingabe Resultate'!G30,'Turnierplan nur für Ausdruck'!$AK$9:$AL$33,2)","v":"Altra Ducks"},null,null,{"$f":"IF('Turnierplan Eingabe Resultate'!I30=\"\",\"\",'Turnierplan Eingabe Resultate'!I30)","v":6},":",{"$f":"IF('Turnierplan Eingabe Resultate'!K30=\"\",\"\",'Turnierplan Eingabe Resultate'!K30)","v":4},{"$f":"VLOOKUP('Turnierplan Eingabe Resultate'!L30,'Turnierplan nur für Ausdruck'!$AK$9:$AL$33,2)","v":"Bärau Tigers 1"},null,":",{"$f":"VLOOKUP('Turnierplan Eingabe Resultate'!N30,'Turnierplan nur für Ausdruck'!$AK$9:$AL$33,2)","v":"Junkihüpfer Wohlen"},null,null,null,{"$f":"IF('Turnierplan Eingabe Resultate'!P30=\"\",\"\",'Turnierplan Eingabe Resultate'!P30)","v":0},":",{"$f":"IF('Turnierplan Eingabe Resultate'!R30=\"\",\"\",'Turnierplan Eingabe Resultate'!R30)","v":8},{"$f":"VLOOKUP('Turnierplan Eingabe Resultate'!S30,'Turnierplan nur für Ausdruck'!$AK$9:$AL$33,2)","v":"btv chur unihockey 3"},null,":",{"$f":"VLOOKUP('Turnierplan Eingabe Resultate'!U30,'Turnierplan nur für Ausdruck'!$AK$9:$AL$33,2)","v":"Vindonissa Panthers"},null,null,{"$f":"IF('Turnierplan Eingabe Resultate'!W30=\"\",\"\",'Turnierplan Eingabe Resultate'!W30)","v":2},":",{"$f":"IF('Turnierplan Eingabe Resultate'!Y30=\"\",\"\",'Turnierplan Eingabe Resultate'!Y30)","v":2},null,null,null,null,22,{"$f":"'Turnierplan Eingabe Resultate'!AK21","v":"btv chur unihockey 3"}]
[{"$f":"'Turnierplan Eingabe Resultate'!A31","v":7},{"$f":"'Turnierplan Eingabe Resultate'!B31","v":"10:30:00"},"-",{"$f":"'Turnierplan Eingabe Resultate'!D31","v":"10:42:00"},{"$f":"VLOOKUP('Turnierplan Eingabe Resultate'!E31,'Turnierplan nur für Ausdruck'!$AK$9:$AL$33,2)","v":"Schulheim  Chur"},null,":",{"$f":"VLOOKUP('Turnierplan Eingabe Resultate'!G31,'Turnierplan nur für Ausdruck'!$AK$9:$AL$33,2)","v":"btv chur unihockey 1"},null,null,{"$f":"IF('Turnierplan Eingabe Resultate'!I31=\"\",\"\",'Turnierplan Eingabe Resultate'!I31)","v":2},":",{"$f":"IF('Turnierplan Eingabe Resultate'!K31=\"\",\"\",'Turnierplan Eingabe Resultate'!K31)","v":6},{"$f":"VLOOKUP('Turnierplan Eingabe Resultate'!L31,'Turnierplan nur für Ausdruck'!$AK$9:$AL$33,2)","v":"Special Alligators 2"},null,":",{"$f":"VLOOKUP('Turnierplan Eingabe Resultate'!N31,'Turnierplan nur für Ausdruck'!$AK$9:$AL$33,2)","v":"Le Tigri 1"},null,null,null,{"$f":"IF('Turnierplan Eingabe Resultate'!P31=\"\",\"\",'Turnierplan Eingabe Resultate'!P31)","v":0},":",{"$f":"IF('Turnierplan Eingabe Resultate'!R31=\"\",\"\",'Turnierplan Eingabe Resultate'!R31)","v":4},{"$f":"VLOOKUP('Turnierplan Eingabe Resultate'!S31,'Turnierplan nur für Ausdruck'!$AK$9:$AL$33,2)","v":"FC Zürisee 2"},null,":",{"$f":"VLOOKUP('Turnierplan Eingabe Resultate'!U31,'Turnierplan nur für Ausdruck'!$AK$9:$AL$33,2)","v":"Winti United 1"},null,null,{"$f":"IF('Turnierplan Eingabe Resultate'!W31=\"\",\"\",'Turnierplan Eingabe Resultate'!W31)","v":4},":",{"$f":"IF('Turnierplan Eingabe Resultate'!Y31=\"\",\"\",'Turnierplan Eingabe Resultate'!Y31)","v":3},null,null,null,null,23,{"$f":"'Turnierplan Eingabe Resultate'!AK22","v":"Vindonissa Panthers"}]
[{"$f":"'Turnierplan Eingabe Resultate'!A32","v":8},{"$f":"'Turnierplan Eingabe Resultate'!B32","v":"10:45:00"},"-",{"$f":"'Turnierplan Eingabe Resultate'!D32","v":"10:57:00"},{"$f":"VLOOKUP('Turnierplan Eingabe Resultate'!E32,'Turnierplan nur für Ausdruck'!$AK$9:$AL$33,2)","v":"UHC PSW"},null,":",{"$f":"VLOOKUP('Turnierplan Eingabe Resultate'!G32,'Turnierplan nur für Ausdruck'!$AK$9:$AL$33,2)","v":"Black Panthers"},null,null,{"$f":"IF('Turnierplan Eingabe Resultate'!I32=\"\",\"\",'Turnierplan Eingabe Resultate'!I32)","v":0},":",{"$f":"IF('Turnierplan Eingabe Resultate'!K32=\"\",\"\",'Turnierplan Eingabe Resultate'!K32)","v":2},{"$f":"VLOOKUP('Turnierplan Eingabe Resultate'!L32,'Turnierplan nur für Ausdruck'!$AK$9:$AL$33,2)","v":"btv chur unihockey 2"},null,":",{"$f":"VLOOKUP('Turnierplan Eingabe Resultate'!N32,'Turnierplan nur für Ausdruck'!$AK$9:$AL$33,2)","v":"Le Tigri 2"},null,null,null,{"$f":"IF('Turnierplan Eingabe Resultate'!P32=\"\",\"\",'Turnierplan Eingabe Resultate'!P32)","v":6},":",{"$f":"IF('Turnierplan Eingabe Resultate'!R32=\"\",\"\",'Turnierplan Eingabe Resultate'!R32)","v":0},{"$f":"VLOOKUP('Turnierplan Eingabe Resultate'!S32,'Turnierplan nur für Ausdruck'!$AK$9:$AL$33,2)","v":"Bünzgeister"},null,":",{"$f":"VLOOKUP('Turnierplan Eingabe Resultate'!U32,'Turnierplan nur für Ausdruck'!$AK$9:$AL$33,2)","v":"La Branche"},null,null,{"$f":"IF('Turnierplan Eingabe Resultate'!W32=\"\",\"\",'Turnierplan Eingabe Resultate'!W32)","v":4},":",{"$f":"IF('Turnierplan Eingabe Resultate'!Y32=\"\",\"\",'Turnierplan Eingabe Resultate'!Y32)","v":5},null,null,null,null,24,{"$f":"'Turnierplan Eingabe Resultate'!AK23","v":"Rappi Jona Flames 2"}]
[{"$f":"'Turnierplan Eingabe Resultate'!A33","v":9},{"$f":"'Turnierplan Eingabe Resultate'!B33","v":"11:00:00"},"-",{"$f":"'Turnierplan Eingabe Resultate'!D33","v":"11:12:00"},{"$f":"VLOOKUP('Turnierplan Eingabe Resultate'!E33,'Turnierplan nur für Ausdruck'!$AK$9:$AL$33,2)","v":"Special Alligators 1"},null,":",{"$f":"VLOOKUP('Turnierplan Eingabe Resultate'!G33,'Turnierplan nur für Ausdruck'!$AK$9:$AL$33,2)","v":"Vindonissa Tigers"},null,null,{"$f":"IF('Turnierplan Eingabe Resultate'!I33=\"\",\"\",'Turnierplan Eingabe Resultate'!I33)","v":4},":",{"$f":"IF('Turnierplan Eingabe Resultate'!K33=\"\",\"\",'Turnierplan Eingabe Resultate'!K33)","v":1},{"$f":"VLOOKUP('Turnierplan Eingabe Resultate'!L33,'Turnierplan nur für Ausdruck'!$AK$9:$AL$33,2)","v":"FC Zürisee 1"},null,":",{"$f":"VLOOKUP('Turnierplan Eingabe Resultate'!N33,'Turnierplan nur für Ausdruck'!$AK$9:$AL$33,2)","v":"Büspi Flyers 1"},null,null,null,{"$f":"IF('Turnierplan Eingabe Resultate'!P33=\"\",\"\",'Turnierplan Eingabe Resultate'!P33)","v":3},":",{"$f":"IF('Turnierplan Eingabe Resultate'!R33=\"\",\"\",'Turnierplan Eingabe Resultate'!R33)","v":3},{"$f":"VLOOKUP('Turnierplan Eingabe Resultate'!S33,'Turnierplan nur für Ausdruck'!$AK$9:$AL$33,2)","v":"Rappi Jona Flames 2"},null,":",{"$f":"VLOOKUP('Turnierplan Eingabe Resultate'!U33,'Turnierplan nur für Ausdruck'!$AK$9:$AL$33,2)","v":"Winti United 2"},null,null,{"$f":"IF('Turnierplan Eingabe Resultate'!W33=\"\",\"\",'Turnierplan Eingabe Resultate'!W33)","v":2},":",{"$f":"IF('Turnierplan Eingabe Resultate'!Y33=\"\",\"\",'Turnierplan Eingabe Resultate'!Y33)","v":2},null,null,null,null,25,{"$f":"'Turnierplan Eingabe Resultate'!AK24","v":"Winti United 2"}]
[{"$f":"'Turnierplan Eingabe Resultate'!A34","v":10},{"$f":"'Turnierplan Eingabe Resultate'!B34","v":"11:15:00"},"-",{"$f":"'Turnierplan Eingabe Resultate'!D34","v":"11:27:00"},{"$f":"VLOOKUP('Turnierplan Eingabe Resultate'!E34,'Turnierplan nur für Ausdruck'!$AK$9:$AL$33,2)","v":"Junkihüpfer Wohlen"},null,":",{"$f":"VLOOKUP('Turnierplan Eingabe Resultate'!G34,'Turnierplan nur für Ausdruck'!$AK$9:$AL$33,2)","v":"Rappi Jona Flames 1"},null,null,{"$f":"IF('Turnierplan Eingabe Resultate'!I34=\"\",\"\",'Turnierplan Eingabe Resultate'!I34)","v":4},":",{"$f":"IF('Turnierplan Eingabe Resultate'!K34=\"\",\"\",'Turnierplan Eingabe Resultate'!K34)","v":2},{"$f":"VLOOKUP('Turnierplan Eingabe Resultate'!L34,'Turnierplan nur für Ausdruck'!$AK$9:$AL$33,2)","v":"Bärau Tigers 1"},null,":",{"$f":"VLOOKUP('Turnierplan Eingabe Resultate'!N34,'Turnierplan nur für Ausdruck'!$AK$9:$AL$33,2)","v":"Altra Ducks"},null,null,null,{"$f":"IF('Turnierplan Eingabe Resultate'!P34=\"\",\"\",'Turnierplan Eingabe Resultate'!P34)","v":5},":",{"$f":"IF('Turnierplan Eingabe Resultate'!R34=\"\",\"\",'Turnierplan Eingabe Resultate'!R34)","v":2},{"$f":"VLOOKUP('Turnierplan Eingabe Resultate'!S34,'Turnierplan nur für Ausdruck'!$AK$9:$AL$33,2)","v":"Insieme Rheintal Gators"},null,":",{"$f":"VLOOKUP('Turnierplan Eingabe Resultate'!U34,'Turnierplan nur für Ausdruck'!$AK$9:$AL$33,2)","v":"Vindonissa Panthers"},null,null,{"$f":"IF('Turnierplan Eingabe Resultate'!W34=\"\",\"\",'Turnierplan Eingabe Resultate'!W34)","v":1},":",{"$f":"IF('Turnierplan Eingabe Resultate'!Y34=\"\",\"\",'Turnierplan Eingabe Resultate'!Y34)","v":6}]
[{"$f":"'Turnierplan Eingabe Resultate'!A35","v":11},{"$f":"'Turnierplan Eingabe Resultate'!B35","v":"11:30:00"},"-",{"$f":"'Turnierplan Eingabe Resultate'!D35","v":"11:42:00"},{"$f":"VLOOKUP('Turnierplan Eingabe Resultate'!E35,'Turnierplan nur für Ausdruck'!$AK$9:$AL$33,2)","v":"btv chur unihockey 1"},null,":",{"$f":"VLOOKUP('Turnierplan Eingabe Resultate'!G35,'Turnierplan nur für Ausdruck'!$AK$9:$AL$33,2)","v":"Le Tigri 1"},null,null,{"$f":"IF('Turnierplan Eingabe Resultate'!I35=\"\",\"\",'Turnierplan Eingabe Resultate'!I35)","v":2},":",{"$f":"IF('Turnierplan Eingabe Resultate'!K35=\"\",\"\",'Turnierplan Eingabe Resultate'!K35)","v":1},{"$f":"VLOOKUP('Turnierplan Eingabe Resultate'!L35,'Turnierplan nur für Ausdruck'!$AK$9:$AL$33,2)","v":"Special Alligators 2"},null,":",{"$f":"VLOOKUP('Turnierplan Eingabe Resultate'!N35,'Turnierplan nur für Ausdruck'!$AK$9:$AL$33,2)","v":"FC Zürisee 2"},null,null,null,{"$f":"IF('Turnierplan Eingabe Resultate'!P35=\"\",\"\",'Turnierplan Eingabe Resultate'!P35)","v":3},":",{"$f":"IF('Turnierplan Eingabe Resultate'!R35=\"\",\"\",'Turnierplan Eingabe Resultate'!R35)","v":2},{"$f":"VLOOKUP('Turnierplan Eingabe Resultate'!S35,'Turnierplan nur für Ausdruck'!$AK$9:$AL$33,2)","v":"Winti United 1"},null,":",{"$f":"VLOOKUP('Turnierplan Eingabe Resultate'!U35,'Turnierplan nur für Ausdruck'!$AK$9:$AL$33,2)","v":"Schulheim  Chur"},null,null,{"$f":"IF('Turnierplan Eingabe Resultate'!W35=\"\",\"\",'Turnierplan Eingabe Resultate'!W35)","v":8},":",{"$f":"IF('Turnierplan Eingabe Resultate'!Y35=\"\",\"\",'Turnierplan Eingabe Resultate'!Y35)","v":1}]
[{"$f":"'Turnierplan Eingabe Resultate'!A36","v":12},{"$f":"'Turnierplan Eingabe Resultate'!B36","v":"11:45:00"},"-",{"$f":"'Turnierplan Eingabe Resultate'!D36","v":"11:57:00"},{"$f":"VLOOKUP('Turnierplan Eingabe Resultate'!E36,'Turnierplan nur für Ausdruck'!$AK$9:$AL$33,2)","v":"UHC PSW"},null,":",{"$f":"VLOOKUP('Turnierplan Eingabe Resultate'!G36,'Turnierplan nur für Ausdruck'!$AK$9:$AL$33,2)","v":"Le Tigri 2"},null,null,{"$f":"IF('Turnierplan Eingabe Resultate'!I36=\"\",\"\",'Turnierplan Eingabe Resultate'!I36)","v":6},":",{"$f":"IF('Turnierplan Eingabe Resultate'!K36=\"\",\"\",'Turnierplan Eingabe Resultate'!K36)","v":1},{"$f":"VLOOKUP('Turnierplan Eingabe Resultate'!L36,'Turnierplan nur für Ausdruck'!$AK$9:$AL$33,2)","v":"btv chur unihockey 2"},null,":",{"$f":"VLOOKUP('Turnierplan Eingabe Resultate'!N36,'Turnierplan nur für Ausdruck'!$AK$9:$AL$33,2)","v":"Bünzgeister"},null,null,null,{"$f":"IF('Turnierplan Eingabe Resultate'!P36=\"\",\"\",'Turnierplan Eingabe Resultate'!P36)","v":1},":",{"$f":"IF('Turnierplan Eingabe Resultate'!R36=\"\",\"\",'Turnierplan Eingabe Resultate'!R36)","v":1},{"$f":"VLOOKUP('Turnierplan Eingabe Resultate'!S36,'Turnierplan nur für Ausdruck'!$AK$9:$AL$33,2)","v":"La Branche"},null,":",{"$f":"VLOOKUP('Turnierplan Eingabe Resultate'!U36,'Turnierplan nur für Ausdruck'!$AK$9:$AL$33,2)","v":"Black Panthers"},null,null,{"$f":"IF('Turnierplan Eingabe Resultate'!W36=\"\",\"\",'Turnierplan Eingabe Resultate'!W36)","v":1},":",{"$f":"IF('Turnierplan Eingabe Resultate'!Y36=\"\",\"\",'Turnierplan Eingabe Resultate'!Y36)","v":6}]
[{"$f":"'Turnierplan Eingabe Resultate'!A37","v":13},{"$f":"'Turnierplan Eingabe Resultate'!B37","v":"12:00:00"},"-",{"$f":"'Turnierplan Eingabe Resultate'!D37","v":"12:12:00"},{"$f":"VLOOKUP('Turnierplan Eingabe Resultate'!E37,'Turnierplan nur für Ausdruck'!$AK$9:$AL$33,2)","v":"Special Alligators 1"},null,":",{"$f":"VLOOKUP('Turnierplan Eingabe Resultate'!G37,'Turnierplan nur für Ausdruck'!$AK$9:$AL$33,2)","v":"Büspi Flyers 1"},null,null,{"$f":"IF('Turnierplan Eingabe Resultate'!I37=\"\",\"\",'Turnierplan Eingabe Resultate'!I37)","v":3},":",{"$f":"IF('Turnierplan Eingabe Resultate'!K37=\"\",\"\",'Turnierplan Eingabe Resultate'!K37)","v":3},{"$f":"VLOOKUP('Turnierplan Eingabe Resultate'!L37,'Turnierplan nur für Ausdruck'!$AK$9:$AL$33,2)","v":"FC Zürisee 1"},null,":",{"$f":"VLOOKUP('Turnierplan Eingabe Resultate'!N37,'Turnierplan nur für Ausdruck'!$AK$9:$AL$33,2)","v":"Vindonissa Tigers"},null,null,null,{"$f":"IF('Turnierplan Eingabe Resultate'!P37=\"\",\"\",'Turnierplan Eingabe Resultate'!P37)","v":5},":",{"$f":"IF('Turnierplan Eingabe Resultate'!R37=\"\",\"\",'Turnierplan Eingabe Resultate'!R37)","v":0},{"$f":"VLOOKUP('Turnierplan Eingabe Resultate'!S37,'Turnierplan nur für Ausdruck'!$AK$9:$AL$33,2)","v":"btv chur unihockey 3"},null,":",{"$f":"VLOOKUP('Turnierplan Eingabe Resultate'!U37,'Turnierplan nur für Ausdruck'!$AK$9:$AL$33,2)","v":"Rappi Jona Flames 2"},null,null,{"$f":"IF('Turnierplan Eingabe Resultate'!W37=\"\",\"\",'Turnierplan Eingabe Resultate'!W37)","v":2},":",{"$f":"IF('Turnierplan Eingabe Resultate'!Y37=\"\",\"\",'Turnierplan Eingabe Resultate'!Y37)","v":3}]
[{"$f":"'Turnierplan Eingabe Resultate'!A38","v":14},{"$f":"'Turnierplan Eingabe Resultate'!B38","v":"12:15:00"},"-",{"$f":"'Turnierplan Eingabe Resultate'!D38","v":"12:27:00"},{"$f":"VLOOKUP('Turnierplan Eingabe Resultate'!E38,'Turnierplan nur für Ausdruck'!$AK$9:$AL$33,2)","v":"Junkihüpfer Wohlen"},null,":",{"$f":"VLOOKUP('Turnierplan Eingabe Resultate'!G38,'Turnierplan nur für Ausdruck'!$AK$9:$AL$33,2)","v":"Altra Ducks"},null,null,{"$f":"IF('Turnierplan Eingabe Resultate'!I38=\"\",\"\",'Turnierplan Eingabe Resultate'!I38)","v":3},":",{"$f":"IF('Turnierplan Eingabe Resultate'!K38=\"\",\"\",'Turnierplan Eingabe Resultate'!K38)","v":2},{"$f":"VLOOKUP('Turnierplan Eingabe Resultate'!L38,'Turnierplan nur für Ausdruck'!$AK$9:$AL$33,2)","v":"Bärau Tigers 1"},null,":",{"$f":"VLOOKUP('Turnierplan Eingabe Resultate'!N38,'Turnierplan nur für Ausdruck'!$AK$9:$AL$33,2)","v":"Rappi Jona Flames 1"},null,null,null,{"$f":"IF('Turnierplan Eingabe Resultate'!P38=\"\",\"\",'Turnierplan Eingabe Resultate'!P38)","v":2},":",{"$f":"IF('Turnierplan Eingabe Resultate'!R38=\"\",\"\",'Turnierplan Eingabe Resultate'!R38)","v":1},{"$f":"VLOOKUP('Turnierplan Eingabe Resultate'!S38,'Turnierplan nur für Ausdruck'!$AK$9:$AL$33,2)","v":"Vindonissa Panthers"},null,":",{"$f":"VLOOKUP('Turnierplan Eingabe Resultate'!U38,'Turnierplan nur für Ausdruck'!$AK$9:$AL$33,2)","v":"Winti United 2"},null,null,{"$f":"IF('Turnierplan Eingabe Resultate'!W38=\"\",\"\",'Turnierplan Eingabe Resultate'!W38)","v":3},":",{"$f":"IF('Turnierplan Eingabe Resultate'!Y38=\"\",\"\",'Turnierplan Eingabe Resultate'!Y38)","v":3}]
[{"$f":"'Turnierplan Eingabe Resultate'!A39","v":15},{"$f":"'Turnierplan Eingabe Resultate'!B39","v":"12:30:00"},"-",{"$f":"'Turnierplan Eingabe Resultate'!D39","v":"12:42:00"},{"$f":"VLOOKUP('Turnierplan Eingabe Resultate'!E39,'Turnierplan nur für Ausdruck'!$AK$9:$AL$33,2)","v":"FC Zürisee 2"},null,":",{"$f":"VLOOKUP('Turnierplan Eingabe Resultate'!G39,'Turnierplan nur für Ausdruck'!$AK$9:$AL$33,2)","v":"btv chur unihockey 1"},null,null,{"$f":"IF('Turnierplan Eingabe Resultate'!I39=\"\",\"\",'Turnierplan Eingabe Resultate'!I39)","v":2},":",{"$f":"IF('Turnierplan Eingabe Resultate'!K39=\"\",\"\",'Turnierplan Eingabe Resultate'!K39)","v":2},{"$f":"VLOOKUP('Turnierplan Eingabe Resultate'!L39,'Turnierplan nur für Ausdruck'!$AK$9:$AL$33,2)","v":"Winti United 1"},null,":",{"$f":"VLOOKUP('Turnierplan Eingabe Resultate'!N39,'Turnierplan nur für Ausdruck'!$AK$9:$AL$33,2)","v":"Special Alligators 2"},null,null,null,{"$f":"IF('Turnierplan Eingabe Resultate'!P39=\"\",\"\",'Turnierplan Eingabe Resultate'!P39)","v":1},":",{"$f":"IF('Turnierplan Eingabe Resultate'!R39=\"\",\"\",'Turnierplan Eingabe Resultate'!R39)","v":4},{"$f":"VLOOKUP('Turnierplan Eingabe Resultate'!S39,'Turnierplan nur für Ausdruck'!$AK$9:$AL$33,2)","v":"Schulheim  Chur"},null,":",{"$f":"VLOOKUP('Turnierplan Eingabe Resultate'!U39,'Turnierplan nur für Ausdruck'!$AK$9:$AL$33,2)","v":"Le Tigri 1"},null,null,{"$f":"IF('Turnierplan Eingabe Resultate'!W39=\"\",\"\",'Turnierplan Eingabe Resultate'!W39)","v":0},":",{"$f":"IF('Turnierplan Eingabe Resultate'!Y39=\"\",\"\",'Turnierplan Eingabe Resultate'!Y39)","v":6}]
[{"$f":"'Turnierplan Eingabe Resultate'!A40","v":16},{"$f":"'Turnierplan Eingabe Resultate'!B40","v":"12:45:00"},"-",{"$f":"'Turnierplan Eingabe Resultate'!D40","v":"12:57:00"},{"$f":"VLOOKUP('Turnierplan Eingabe Resultate'!E40,'Turnierplan nur für Ausdruck'!$AK$9:$AL$33,2)","v":"Bünzgeister"},null,":",{"$f":"VLOOKUP('Turnierplan Eingabe Resultate'!G40,'Turnierplan nur für Ausdruck'!$AK$9:$AL$33,2)","v":"UHC PSW"},null,null,{"$f":"IF('Turnierplan Eingabe Resultate'!I40=\"\",\"\",'Turnierplan Eingabe Resultate'!I40)","v":0},":",{"$f":"IF('Turnierplan Eingabe Resultate'!K40=\"\",\"\",'Turnierplan Eingabe Resultate'!K40)","v":7},{"$f":"VLOOKUP('Turnierplan Eingabe Resultate'!L40,'Turnierplan nur für Ausdruck'!$AK$9:$AL$33,2)","v":"La Branche"},null,":",{"$f":"VLOOKUP('Turnierplan Eingabe Resultate'!N40,'Turnierplan nur für Ausdruck'!$AK$9:$AL$33,2)","v":"btv chur unihockey 2"},null,null,null,{"$f":"IF('Turnierplan Eingabe Resultate'!P40=\"\",\"\",'Turnierplan Eingabe Resultate'!P40)","v":2},":",{"$f":"IF('Turnierplan Eingabe Resultate'!R40=\"\",\"\",'Turnierplan Eingabe Resultate'!R40)","v":6},{"$f":"VLOOKUP('Turnierplan Eingabe Resultate'!S40,'Turnierplan nur für Ausdruck'!$AK$9:$AL$33,2)","v":"Black Panthers"},null,":",{"$f":"VLOOKUP('Turnierplan Eingabe Resultate'!U40,'Turnierplan nur für Ausdruck'!$AK$9:$AL$33,2)","v":"Le Tigri 2"},null,null,{"$f":"IF('Turnierplan Eingabe Resultate'!W40=\"\",\"\",'Turnierplan Eingabe Resultate'!W40)","v":5},":",{"$f":"IF('Turnierplan Eingabe Resultate'!Y40=\"\",\"\",'Turnierplan Eingabe Resultate'!Y40)","v":0}]
[{"$f":"'Turnierplan Eingabe Resultate'!A41","v":"13:30 Uhr Begrüssung und Teampräsentation"}]
[{"$f":"'Turnierplan Eingabe Resultate'!A42","v":17},{"$f":"'Turnierplan Eingabe Resultate'!B42","v":"14:00:00"},{"$f":"'Turnierplan Eingabe Resultate'!C42","v":"-"},{"$f":"'Turnierplan Eingabe Resultate'!D42","v":"14:12:00"},{"$f":"VLOOKUP('Turnierplan Eingabe Resultate'!E42,'Turnierplan nur für Ausdruck'!$AK$9:$AL$33,2)","v":"Vindonissa Tigers"},null,{"$f":"'Turnierplan Eingabe Resultate'!F42","v":":"},{"$f":"VLOOKUP('Turnierplan Eingabe Resultate'!G42,'Turnierplan nur für Ausdruck'!$AK$9:$AL$33,2)","v":"Büspi Flyers 1"},null,null,{"$f":"IF('Turnierplan Eingabe Resultate'!I42=\"\",\"\",'Turnierplan Eingabe Resultate'!I42)","v":0},{"$f":"'Turnierplan Eingabe Resultate'!J42","v":":"},{"$f":"IF('Turnierplan Eingabe Resultate'!K42=\"\",\"\",'Turnierplan Eingabe Resultate'!K42)","v":3},{"$f":"VLOOKUP('Turnierplan Eingabe Resultate'!L42,'Turnierplan nur für Ausdruck'!$AK$9:$AL$33,2)","v":"FC Zürisee 1"},null,{"$f":"'Turnierplan Eingabe Resultate'!M42","v":":"},{"$f":"VLOOKUP('Turnierplan Eingabe Resultate'!N42,'Turnierplan nur für Ausdruck'!$AK$9:$AL$33,2)","v":"Special Alligators 1"},null,null,null,{"$f":"IF('Turnierplan Eingabe Resultate'!P42=\"\",\"\",'Turnierplan Eingabe Resultate'!P42)","v":4},{"$f":"'Turnierplan Eingabe Resultate'!Q42","v":":"},{"$f":"IF('Turnierplan Eingabe Resultate'!R42=\"\",\"\",'Turnierplan Eingabe Resultate'!R42)","v":3},{"$f":"VLOOKUP('Turnierplan Eingabe Resultate'!S42,'Turnierplan nur für Ausdruck'!$AK$9:$AL$33,2)","v":"Rappi Jona Flames 2"},null,{"$f":"'Turnierplan Eingabe Resultate'!T42","v":":"},{"$f":"VLOOKUP('Turnierplan Eingabe Resultate'!U42,'Turnierplan nur für Ausdruck'!$AK$9:$AL$33,2)","v":"Insieme Rheintal Gators"},null,null,{"$f":"IF('Turnierplan Eingabe Resultate'!W42=\"\",\"\",'Turnierplan Eingabe Resultate'!W42)","v":4},{"$f":"'Turnierplan Eingabe Resultate'!X42","v":":"},{"$f":"IF('Turnierplan Eingabe Resultate'!Y42=\"\",\"\",'Turnierplan Eingabe Resultate'!Y42)","v":0}]
[{"$f":"'Turnierplan Eingabe Resultate'!A43","v":18},{"$f":"'Turnierplan Eingabe Resultate'!B43","v":"14:15:00"},{"$f":"'Turnierplan Eingabe Resultate'!C43","v":"-"},{"$f":"'Turnierplan Eingabe Resultate'!D43","v":"14:27:00"},{"$f":"VLOOKUP('Turnierplan Eingabe Resultate'!E43,'Turnierplan nur für Ausdruck'!$AK$9:$AL$33,2)","v":"Altra Ducks"},null,{"$f":"'Turnierplan Eingabe Resultate'!F43","v":":"},{"$f":"VLOOKUP('Turnierplan Eingabe Resultate'!G43,'Turnierplan nur für Ausdruck'!$AK$9:$AL$33,2)","v":"Rappi Jona Flames 1"},null,null,{"$f":"IF('Turnierplan Eingabe Resultate'!I43=\"\",\"\",'Turnierplan Eingabe Resultate'!I43)","v":2},{"$f":"'Turnierplan Eingabe Resultate'!J43","v":":"},{"$f":"IF('Turnierplan Eingabe Resultate'!K43=\"\",\"\",'Turnierplan Eingabe Resultate'!K43)","v":3},{"$f":"VLOOKUP('Turnierplan Eingabe Resultate'!L43,'Turnierplan nur für Ausdruck'!$AK$9:$AL$33,2)","v":"Junkihüpfer Wohlen"},null,{"$f":"'Turnierplan Eingabe Resultate'!M43","v":":"},{"$f":"VLOOKUP('Turnierplan Eingabe Resultate'!N43,'Turnierplan nur für Ausdruck'!$AK$9:$AL$33,2)","v":"Bärau Tigers 1"},null,null,null,{"$f":"IF('Turnierplan Eingabe Resultate'!P43=\"\",\"\",'Turnierplan Eingabe Resultate'!P43)","v":4},{"$f":"'Turnierplan Eingabe Resultate'!Q43","v":":"},{"$f":"IF('Turnierplan Eingabe Resultate'!R43=\"\",\"\",'Turnierplan Eingabe Resultate'!R43)","v":2},{"$f":"VLOOKUP('Turnierplan Eingabe Resultate'!S43,'Turnierplan nur für Ausdruck'!$AK$9:$AL$33,2)","v":"Winti United 2"},null,{"$f":"'Turnierplan Eingabe Resultate'!T43","v":":"},{"$f":"VLOOKUP('Turnierplan Eingabe Resultate'!U43,'Turnierplan nur für Ausdruck'!$AK$9:$AL$33,2)","v":"btv chur unihockey 3"},null,null,{"$f":"IF('Turnierplan Eingabe Resultate'!W43=\"\",\"\",'Turnierplan Eingabe Resultate'!W43)","v":1},{"$f":"'Turnierplan Eingabe Resultate'!X43","v":":"},{"$f":"IF('Turnierplan Eingabe Resultate'!Y43=\"\",\"\",'Turnierplan Eingabe Resultate'!Y43)","v":6}]
[{"$f":"'Turnierplan Eingabe Resultate'!A44","v":19},{"$f":"'Turnierplan Eingabe Resultate'!B44","v":"14:30:00"},{"$f":"'Turnierplan Eingabe Resultate'!C44","v":"-"},{"$f":"'Turnierplan Eingabe Resultate'!D44","v":"14:42:00"},{"$f":"VLOOKUP('Turnierplan Eingabe Resultate'!E44,'Turnierplan nur für Ausdruck'!$AK$9:$AL$33,2)","v":"Winti United 1"},null,{"$f":"'Turnierplan Eingabe Resultate'!F44","v":":"},{"$f":"VLOOKUP('Turnierplan Eingabe Resultate'!G44,'Turnierplan nur für Ausdruck'!$AK$9:$AL$33,2)","v":"btv chur unihockey 1"},null,null,{"$f":"IF('Turnierplan Eingabe Resultate'!I44=\"\",\"\",'Turnierplan Eingabe Resultate'!I44)","v":2},{"$f":"'Turnierplan Eingabe Resultate'!J44","v":":"},{"$f":"IF('Turnierplan Eingabe Resultate'!K44=\"\",\"\",'Turnierplan Eingabe Resultate'!K44)","v":3},{"$f":"VLOOKUP('Turnierplan Eingabe Resultate'!L44,'Turnierplan nur für Ausdruck'!$AK$9:$AL$33,2)","v":"Special Alligators 2"},null,{"$f":"'Turnierplan Eingabe Resultate'!M44","v":":"},{"$f":"VLOOKUP('Turnierplan Eingabe Resultate'!N44,'Turnierplan nur für Ausdruck'!$AK$9:$AL$33,2)","v":"Schulheim  Chur"},null,null,null,{"$f":"IF('Turnierplan Eingabe Resultate'!P44=\"\",\"\",'Turnierplan Eingabe Resultate'!P44)","v":5},{"$f":"'Turnierplan Eingabe Resultate'!Q44","v":":"},{"$f":"IF('Turnierplan Eingabe Resultate'!R44=\"\",\"\",'Turnierplan Eingabe Resultate'!R44)","v":0},{"$f":"VLOOKUP('Turnierplan Eingabe Resultate'!S44,'Turnierplan nur für Ausdruck'!$AK$9:$AL$33,2)","v":"Le Tigri 1"},null,{"$f":"'Turnierplan Eingabe Resultate'!T44","v":":"},{"$f":"VLOOKUP('Turnierplan Eingabe Resultate'!U44,'Turnierplan nur für Ausdruck'!$AK$9:$AL$33,2)","v":"FC Zürisee 2"},null,null,{"$f":"IF('Turnierplan Eingabe Resultate'!W44=\"\",\"\",'Turnierplan Eingabe Resultate'!W44)","v":3},{"$f":"'Turnierplan Eingabe Resultate'!X44","v":":"},{"$f":"IF('Turnierplan Eingabe Resultate'!Y44=\"\",\"\",'Turnierplan Eingabe Resultate'!Y44)","v":5}]
[{"$f":"'Turnierplan Eingabe Resultate'!A45","v":20},{"$f":"'Turnierplan Eingabe Resultate'!B45","v":"14:45:00"},{"$f":"'Turnierplan Eingabe Resultate'!C45","v":"-"},{"$f":"'Turnierplan Eingabe Resultate'!D45","v":"14:57:00"},{"$f":"VLOOKUP('Turnierplan Eingabe Resultate'!E45,'Turnierplan nur für Ausdruck'!$AK$9:$AL$33,2)","v":"La Branche"},null,{"$f":"'Turnierplan Eingabe Resultate'!F45","v":":"},{"$f":"VLOOKUP('Turnierplan Eingabe Resultate'!G45,'Turnierplan nur für Ausdruck'!$AK$9:$AL$33,2)","v":"UHC PSW"},null,null,{"$f":"IF('Turnierplan Eingabe Resultate'!I45=\"\",\"\",'Turnierplan Eingabe Resultate'!I45)","v":2},{"$f":"'Turnierplan Eingabe Resultate'!J45","v":":"},{"$f":"IF('Turnierplan Eingabe Resultate'!K45=\"\",\"\",'Turnierplan Eingabe Resultate'!K45)","v":3},{"$f":"VLOOKUP('Turnierplan Eingabe Resultate'!L45,'Turnierplan nur für Ausdruck'!$AK$9:$AL$33,2)","v":"btv chur unihockey 2"},null,{"$f":"'Turnierplan Eingabe Resultate'!M45","v":":"},{"$f":"VLOOKUP('Turnierplan Eingabe Resultate'!N45,'Turnierplan nur für Ausdruck'!$AK$9:$AL$33,2)","v":"Black Panthers"},null,null,null,{"$f":"IF('Turnierplan Eingabe Resultate'!P45=\"\",\"\",'Turnierplan Eingabe Resultate'!P45)","v":1},{"$f":"'Turnierplan Eingabe Resultate'!Q45","v":":"},{"$f":"IF('Turnierplan Eingabe Resultate'!R45=\"\",\"\",'Turnierplan Eingabe Resultate'!R45)","v":3},{"$f":"VLOOKUP('Turnierplan Eingabe Resultate'!S45,'Turnierplan nur für Ausdruck'!$AK$9:$AL$33,2)","v":"Le Tigri 2"},null,{"$f":"'Turnierplan Eingabe Resultate'!T45","v":":"},{"$f":"VLOOKUP('Turnierplan Eingabe Resultate'!U45,'Turnierplan nur für Ausdruck'!$AK$9:$AL$33,2)","v":"Bünzgeister"},null,null,{"$f":"IF('Turnierplan Eingabe Resultate'!W45=\"\",\"\",'Turnierplan Eingabe Resultate'!W45)","v":2},{"$f":"'Turnierplan Eingabe Resultate'!X45","v":":"},{"$f":"IF('Turnierplan Eingabe Resultate'!Y45=\"\",\"\",'Turnierplan Eingabe Resultate'!Y45)","v":5}]
[{"$f":"'Turnierplan Eingabe Resultate'!A46","v":21},{"$f":"'Turnierplan Eingabe Resultate'!B46","v":"15:00:00"},{"$f":"'Turnierplan Eingabe Resultate'!C46","v":"-"},{"$f":"'Turnierplan Eingabe Resultate'!D46","v":"15:12:00"},{"$f":"VLOOKUP('Turnierplan Eingabe Resultate'!E46,'Turnierplan nur für Ausdruck'!$AK$9:$AL$33,2)","v":"Vindonissa Tigers"},null,{"$f":"'Turnierplan Eingabe Resultate'!F46","v":":"},{"$f":"VLOOKUP('Turnierplan Eingabe Resultate'!G46,'Turnierplan nur für Ausdruck'!$AK$9:$AL$33,2)","v":"Special Alligators 1"},null,null,{"$f":"IF('Turnierplan Eingabe Resultate'!I46=\"\",\"\",'Turnierplan Eingabe Resultate'!I46)","v":1},{"$f":"'Turnierplan Eingabe Resultate'!J46","v":":"},{"$f":"IF('Turnierplan Eingabe Resultate'!K46=\"\",\"\",'Turnierplan Eingabe Resultate'!K46)","v":3},{"$f":"IF('AUSWERTUNG VORRUNDE'!$AY54<>\"\",'AUSWERTUNG VORRUNDE'!$AY54,'Turnierplan Eingabe Resultate'!L46)","v":"btv chur unihockey 3"},{"$f":"IF('[1]AUSWERTUNG VORRUNDE'!BI20<>\"\",'[1]AUSWERTUNG VORRUNDE'!BI20,'[1]Turnierplan Eingabe Resultate'!O46)","v":0},{"$f":"'Turnierplan Eingabe Resultate'!M46","v":":"},{"$f":"IF('AUSWERTUNG VORRUNDE'!$AY55<>\"\",'AUSWERTUNG VORRUNDE'!$AY55,'Turnierplan Eingabe Resultate'!N46)","v":"Winti United 2"},{"$f":"IF('[1]AUSWERTUNG VORRUNDE'!BL20<>\"\",'[1]AUSWERTUNG VORRUNDE'!BL20,'[1]Turnierplan Eingabe Resultate'!R46)","v":1},{"$f":"IF('AUSWERTUNG VORRUNDE'!$AY54<>\"\",'AUSWERTUNG VORRUNDE'!$AY54,'Turnierplan Eingabe Resultate'!Q46)","v":"btv chur unihockey 3"},{"$f":"IF('[1]AUSWERTUNG VORRUNDE'!BN20<>\"\",'[1]AUSWERTUNG VORRUNDE'!BN20,'[1]Turnierplan Eingabe Resultate'!T46)","v":0},{"$f":"IF('Turnierplan Eingabe Resultate'!P46=\"\",\"\",'Turnierplan Eingabe Resultate'!P46)","v":0},{"$f":"'Turnierplan Eingabe Resultate'!Q46","v":":"},{"$f":"IF('Turnierplan Eingabe Resultate'!R46=\"\",\"\",'Turnierplan Eingabe Resultate'!R46)","v":1},{"$f":"VLOOKUP('Turnierplan Eingabe Resultate'!S46,'Turnierplan nur für Ausdruck'!$AK$9:$AL$33,2)","v":"Büspi Flyers 1"},null,{"$f":"'Turnierplan Eingabe Resultate'!T46","v":":"},{"$f":"VLOOKUP('Turnierplan Eingabe Resultate'!U46,'Turnierplan nur für Ausdruck'!$AK$9:$AL$33,2)","v":"FC Zürisee 1"},null,null,{"$f":"IF('Turnierplan Eingabe Resultate'!W46=\"\",\"\",'Turnierplan Eingabe Resultate'!W46)","v":4},{"$f":"'Turnierplan Eingabe Resultate'!X46","v":":"},{"$f":"IF('Turnierplan Eingabe Resultate'!Y46=\"\",\"\",'Turnierplan Eingabe Resultate'!Y46)","v":2}]
[{"$f":"'Turnierplan Eingabe Resultate'!A47","v":22},{"$f":"'Turnierplan Eingabe Resultate'!B47","v":"15:15:00"},{"$f":"'Turnierplan Eingabe Resultate'!C47","v":"-"},{"$f":"'Turnierplan Eingabe Resultate'!D47","v":"15:27:00"},{"$f":"VLOOKUP('Turnierplan Eingabe Resultate'!E47,'Turnierplan nur für Ausdruck'!$AK$9:$AL$33,2)","v":"Rappi Jona Flames 1"},null,{"$f":"'Turnierplan Eingabe Resultate'!F47","v":":"},{"$f":"VLOOKUP('Turnierplan Eingabe Resultate'!G47,'Turnierplan nur für Ausdruck'!$AK$9:$AL$33,2)","v":"Junkihüpfer Wohlen"},null,null,{"$f":"IF('Turnierplan Eingabe Resultate'!I47=\"\",\"\",'Turnierplan Eingabe Resultate'!I47)","v":2},{"$f":"'Turnierplan Eingabe Resultate'!J47","v":":"},{"$f":"IF('Turnierplan Eingabe Resultate'!K47=\"\",\"\",'Turnierplan Eingabe Resultate'!K47)","v":3},{"$f":"IF('AUSWERTUNG VORRUNDE'!$AY52<>\"\",'AUSWERTUNG VORRUNDE'!$AY52,'Turnierplan Eingabe Resultate'!L47)","v":"Vindonissa Panthers"},{"$f":"IF('[1]AUSWERTUNG VORRUNDE'!BI21<>\"\",'[1]AUSWERTUNG VORRUNDE'!BI21,'[1]Turnierplan Eingabe Resultate'!O47)","v":0},{"$f":"'Turnierplan Eingabe Resultate'!M47","v":":"},{"$f":"IF('AUSWERTUNG VORRUNDE'!$AY53<>\"\",'AUSWERTUNG VORRUNDE'!$AY53,'Turnierplan Eingabe Resultate'!N47)","v":"Rappi Jona Flames 2"},{"$f":"IF('[1]AUSWERTUNG VORRUNDE'!BL21<>\"\",'[1]AUSWERTUNG VORRUNDE'!BL21,'[1]Turnierplan Eingabe Resultate'!R47)","v":0},{"$f":"IF('AUSWERTUNG VORRUNDE'!$AY55<>\"\",'AUSWERTUNG VORRUNDE'!$AY55,'Turnierplan Eingabe Resultate'!Q47)","v":"Winti United 2"},{"$f":"IF('[1]AUSWERTUNG VORRUNDE'!BN21<>\"\",'[1]AUSWERTUNG VORRUNDE'!BN21,'[1]Turnierplan Eingabe Resultate'!T47)","v":0},{"$f":"IF('Turnierplan Eingabe Resultate'!P47=\"\",\"\",'Turnierplan Eingabe Resultate'!P47)","v":4},{"$f":"'Turnierplan Eingabe Resultate'!Q47","v":":"},{"$f":"IF('Turnierplan Eingabe Resultate'!R47=\"\",\"\",'Turnierplan Eingabe Resultate'!R47)","v":0},{"$f":"VLOOKUP('Turnierplan Eingabe Resultate'!S47,'Turnierplan nur für Ausdruck'!$AK$9:$AL$33,2)","v":"Altra Ducks"},null,{"$f":"'Turnierplan Eingabe Resultate'!T47","v":":"},{"$f":"VLOOKUP('Turnierplan Eingabe Resultate'!U47,'Turnierplan nur für Ausdruck'!$AK$9:$AL$33,2)","v":"Bärau Tigers 1"},null,null,{"$f":"IF('Turnierplan Eingabe Resultate'!W47=\"\",\"\",'Turnierplan Eingabe Resultate'!W47)","v":0},{"$f":"'Turnierplan Eingabe Resultate'!X47","v":":"},{"$f":"IF('Turnierplan Eingabe Resultate'!Y47=\"\",\"\",'Turnierplan Eingabe Resultate'!Y47)","v":6}]
[{"$f":"'Turnierplan Eingabe Resultate'!A48","v":23},{"$f":"'Turnierplan Eingabe Resultate'!B48","v":"15:30:00"},{"$f":"'Turnierplan Eingabe Resultate'!C48","v":"-"},{"$f":"'Turnierplan Eingabe Resultate'!D48","v":"15:42:00"},{"$f":"IF('AUSWERTUNG VORRUNDE'!AY32<>\"\",'AUSWERTUNG VORRUNDE'!AY32,'Turnierplan Eingabe Resultate'!E48)","v":"btv chur unihockey 1"},{"$f":"IF('[1]AUSWERTUNG VORRUNDE'!AZ22<>\"\",'[1]AUSWERTUNG VORRUNDE'!AZ22,'[1]Turnierplan Eingabe Resultate'!F48)","v":-1},{"$f":"'Turnierplan Eingabe Resultate'!F48","v":":"},{"$f":"IF('AUSWERTUNG VORRUNDE'!AY33<>\"\",'AUSWERTUNG VORRUNDE'!AY33,'Turnierplan Eingabe Resultate'!G48)","v":"Le Tigri 1"},null,null,{"$f":"IF('Turnierplan Eingabe Resultate'!I48=\"\",\"\",'Turnierplan Eingabe Resultate'!I48)","v":1},{"$f":"'Turnierplan Eingabe Resultate'!J48","v":":"},{"$f":"IF('Turnierplan Eingabe Resultate'!K48=\"\",\"\",'Turnierplan Eingabe Resultate'!K48)","v":2},{"$f":"IF('AUSWERTUNG VORRUNDE'!$AY30<>\"\",'AUSWERTUNG VORRUNDE'!$AY30,'Turnierplan Eingabe Resultate'!L48)","v":"Special Alligators 2"},{"$f":"IF('[1]AUSWERTUNG VORRUNDE'!BI22<>\"\",'[1]AUSWERTUNG VORRUNDE'!BI22,'[1]Turnierplan Eingabe Resultate'!O48)","v":0},{"$f":"'Turnierplan Eingabe Resultate'!M48","v":":"},{"$f":"IF('AUSWERTUNG VORRUNDE'!$AY31<>\"\",'AUSWERTUNG VORRUNDE'!$AY31,'Turnierplan Eingabe Resultate'!N48)","v":"FC Zürisee 2"},{"$f":"IF('[1]AUSWERTUNG VORRUNDE'!BL22<>\"\",'[1]AUSWERTUNG VORRUNDE'!BL22,'[1]Turnierplan Eingabe Resultate'!R48)","v":0},{"$f":"IF('AUSWERTUNG VORRUNDE'!$AY30<>\"\",'AUSWERTUNG VORRUNDE'!$AY30,'Turnierplan Eingabe Resultate'!Q48)","v":"Special Alligators 2"},{"$f":"IF('[1]AUSWERTUNG VORRUNDE'!BN22<>\"\",'[1]AUSWERTUNG VORRUNDE'!BN22,'[1]Turnierplan Eingabe Resultate'!T48)","v":0},{"$f":"IF('Turnierplan Eingabe Resultate'!P48=\"\",\"\",'Turnierplan Eingabe Resultate'!P48)","v":4},{"$f":"'Turnierplan Eingabe Resultate'!Q48","v":":"},{"$f":"IF('Turnierplan Eingabe Resultate'!R48=\"\",\"\",'Turnierplan Eingabe Resultate'!R48)","v":0},{"$f":"IF('AUSWERTUNG VORRUNDE'!$AY34<>\"\",'AUSWERTUNG VORRUNDE'!$AY34,'Turnierplan Eingabe Resultate'!S48)","v":"Winti United 1"},{"$f":"IF('[1]AUSWERTUNG VORRUNDE'!BS22<>\"\",'[1]AUSWERTUNG VORRUNDE'!BS22,'[1]Turnierplan Eingabe Resultate'!Y48)","v":0},{"$f":"'Turnierplan Eingabe Resultate'!T48","v":":"},{"$f":"IF('AUSWERTUNG VORRUNDE'!$AY35<>\"\",'AUSWERTUNG VORRUNDE'!$AY35,'Turnierplan Eingabe Resultate'!U48)","v":"Schulheim  Chur"},null,null,{"$f":"IF('Turnierplan Eingabe Resultate'!W48=\"\",\"\",'Turnierplan Eingabe Resultate'!W48)","v":2},{"$f":"'Turnierplan Eingabe Resultate'!X48","v":":"},{"$f":"IF('Turnierplan Eingabe Resultate'!Y48=\"\",\"\",'Turnierplan Eingabe Resultate'!Y48)","v":3}]
[{"$f":"'Turnierplan Eingabe Resultate'!A49","v":24},{"$f":"'Turnierplan Eingabe Resultate'!B49","v":"15:45:00"},{"$f":"'Turnierplan Eingabe Resultate'!C49","v":"-"},{"$f":"'Turnierplan Eingabe Resultate'!D49","v":"15:57:00"},{"$f":"IF('AUSWERTUNG VORRUNDE'!AY43<>\"\",'AUSWERTUNG VORRUNDE'!AY43,'Turnierplan Eingabe Resultate'!E49)","v":"btv chur unihockey 2"},{"$f":"IF('[1]AUSWERTUNG VORRUNDE'!AZ23<>\"\",'[1]AUSWERTUNG VORRUNDE'!AZ23,'[1]Turnierplan Eingabe Resultate'!F49)","v":-8},{"$f":"'Turnierplan Eingabe Resultate'!F49","v":":"},{"$f":"IF('AUSWERTUNG VORRUNDE'!AY44<>\"\",'AUSWERTUNG VORRUNDE'!AY44,'Turnierplan Eingabe Resultate'!G49)","v":"Bünzgeister"},null,null,{"$f":"IF('Turnierplan Eingabe Resultate'!I49=\"\",\"\",'Turnierplan Eingabe Resultate'!I49)","v":3},{"$f":"'Turnierplan Eingabe Resultate'!J49","v":":"},{"$f":"IF('Turnierplan Eingabe Resultate'!K49=\"\",\"\",'Turnierplan Eingabe Resultate'!K49)","v":2},{"$f":"IF('AUSWERTUNG VORRUNDE'!$AY41<>\"\",'AUSWERTUNG VORRUNDE'!$AY41,'Turnierplan Eingabe Resultate'!L49)","v":"Black Panthers"},{"$f":"IF('[1]AUSWERTUNG VORRUNDE'!BI23<>\"\",'[1]AUSWERTUNG VORRUNDE'!BI23,'[1]Turnierplan Eingabe Resultate'!O49)","v":0},{"$f":"'Turnierplan Eingabe Resultate'!M49","v":":"},{"$f":"IF('AUSWERTUNG VORRUNDE'!$AY42<>\"\",'AUSWERTUNG VORRUNDE'!$AY42,'Turnierplan Eingabe Resultate'!N49)","v":"UHC PSW"},{"$f":"IF('[1]AUSWERTUNG VORRUNDE'!BL23<>\"\",'[1]AUSWERTUNG VORRUNDE'!BL23,'[1]Turnierplan Eingabe Resultate'!R49)","v":0},{"$f":"IF('AUSWERTUNG VORRUNDE'!$AY31<>\"\",'AUSWERTUNG VORRUNDE'!$AY31,'Turnierplan Eingabe Resultate'!Q49)","v":"FC Zürisee 2"},{"$f":"IF('[1]AUSWERTUNG VORRUNDE'!BN23<>\"\",'[1]AUSWERTUNG VORRUNDE'!BN23,'[1]Turnierplan Eingabe Resultate'!T49)","v":0},{"$f":"IF('Turnierplan Eingabe Resultate'!P49=\"\",\"\",'Turnierplan Eingabe Resultate'!P49)","v":0},{"$f":"'Turnierplan Eingabe Resultate'!Q49","v":":"},{"$f":"IF('Turnierplan Eingabe Resultate'!R49=\"\",\"\",'Turnierplan Eingabe Resultate'!R49)","v":1},{"$f":"IF('AUSWERTUNG VORRUNDE'!$AY45<>\"\",'AUSWERTUNG VORRUNDE'!$AY45,'Turnierplan Eingabe Resultate'!S49)","v":"La Branche"},{"$f":"IF('[1]AUSWERTUNG VORRUNDE'!BS23<>\"\",'[1]AUSWERTUNG VORRUNDE'!BS23,'[1]Turnierplan Eingabe Resultate'!Y49)","v":0},{"$f":"'Turnierplan Eingabe Resultate'!T49","v":":"},{"$f":"IF('AUSWERTUNG VORRUNDE'!$AY46<>\"\",'AUSWERTUNG VORRUNDE'!$AY46,'Turnierplan Eingabe Resultate'!U49)","v":"Le Tigri 2"},null,null,{"$f":"IF('Turnierplan Eingabe Resultate'!W49=\"\",\"\",'Turnierplan Eingabe Resultate'!W49)","v":4},{"$f":"'Turnierplan Eingabe Resultate'!X49","v":":"},{"$f":"IF('Turnierplan Eingabe Resultate'!Y49=\"\",\"\",'Turnierplan Eingabe Resultate'!Y49)","v":3}]
[]
[{"$f":"'Turnierplan Eingabe Resultate'!A51:Y51","v":"ca. 16.15 Uhr Rangverkündigung mit Medaillenübergabe"}]

{"sheet":"Ranglisten","index":4,"n_rows":42,"n_cols":2,"rows_kept":42,"cut":false,"hidden":false,"merged":[]}
["Gruppe A"]
["1. Rang",{"$f":"IF('AUSWERTUNG VORRUNDE'!AY6=\"\",\"\",'AUSWERTUNG VORRUNDE'!AY6)","v":"Büspi Flyers 1"}]
["2. Rang",{"$f":"IF('AUSWERTUNG VORRUNDE'!AY7=\"\",\"\",'AUSWERTUNG VORRUNDE'!AY7)","v":"FC Zürisee 1"}]
["3. Rang",{"$f":"IF('AUSWERTUNG VORRUNDE'!AY8=\"\",\"\",'AUSWERTUNG VORRUNDE'!AY8)","v":"Special Alligators 1"}]
["4. Rang",{"$f":"IF('AUSWERTUNG VORRUNDE'!AY9=\"\",\"\",'AUSWERTUNG VORRUNDE'!AY9)","v":"Vindonissa Tigers"}]
[]
[]
[]
["Gruppe B"]
["1. Rang",{"$f":"IF('AUSWERTUNG VORRUNDE'!AY19=\"\",\"\",'AUSWERTUNG VORRUNDE'!AY19)","v":"Junkihüpfer Wohlen"}]
["2. Rang",{"$f":"IF('AUSWERTUNG VORRUNDE'!AY20=\"\",\"\",'AUSWERTUNG VORRUNDE'!AY20)","v":"Bärau Tigers 1"}]
["3. Rang",{"$f":"IF('AUSWERTUNG VORRUNDE'!AY21=\"\",\"\",'AUSWERTUNG VORRUNDE'!AY21)","v":"Rappi Jona Flames 1"}]
["4. Rang",{"$f":"IF('AUSWERTUNG VORRUNDE'!AY22=\"\",\"\",'AUSWERTUNG VORRUNDE'!AY22)","v":"Altra Ducks"}]
[]
[]
[]
["Gruppe C"]
["1. Rang",{"$f":"IF('Turnierplan Eingabe Resultate'!P$48=\"\",\"\",IF('Turnierplan Eingabe Resultate'!P$48>'Turnierplan Eingabe Resultate'!R$48,'Turnierplan nur für Ausdruck'!N$48,'Turnierplan nur für Ausdruck'!Q$48))","v":"Special Alligators 2"}]
["2. Rang",{"$f":"IF('Turnierplan Eingabe Resultate'!P$48=\"\",\"\",IF('Turnierplan Eingabe Resultate'!P$48>'Turnierplan Eingabe Resultate'!R$48,'Turnierplan nur für Ausdruck'!Q$48,'Turnierplan nur für Ausdruck'!N$48))","v":"FC Zürisee 2"}]
["3. Rang",{"$f":"IF('Turnierplan Eingabe Resultate'!I$48=\"\",\"\",IF('Turnierplan Eingabe Resultate'!I$48>'Turnierplan Eingabe Resultate'!K$48,'Turnierplan nur für Ausdruck'!E$48,'Turnierplan nur für Ausdruck'!H$48))","v":"Le Tigri 1"}]
["4. Rang",{"$f":"IF('Turnierplan Eingabe Resultate'!I$48=\"\",\"\",IF('Turnierplan Eingabe Resultate'!I$48>'Turnierplan Eingabe Resultate'!K$48,'Turnierplan nur für Ausdruck'!H$48,'Turnierplan nur für Ausdruck'!E$48))","v":"btv chur unihockey 1"}]
["5. Rang",{"$f":"IF('Turnierplan Eingabe Resultate'!W$48=\"\",\"\",IF('Turnierplan Eingabe Resultate'!W$48>'Turnierplan Eingabe Resultate'!Y$48,'Turnierplan nur für Ausdruck'!X$48,'Turnierplan nur für Ausdruck'!AA$48))","v":"Schulheim  Chur"}]
["6. Rang",{"$f":"IF('Turnierplan Eingabe Resultate'!W$48=\"\",\"\",IF('Turnierplan Eingabe Resultate'!W$48>'Turnierplan Eingabe Resultate'!Y$48,'Turnierplan nur für Ausdruck'!AA$48,'Turnierplan nur für Ausdruck'!X$48))","v":"Winti United 1"}]
[]
[]
[]
["Gruppe D1"]
["1. Rang",{"$f":"IF('Turnierplan Eingabe Resultate'!P$49=\"\",\"\",IF('Turnierplan Eingabe Resultate'!P$49>'Turnierplan Eingabe Resultate'!R$49,'Turnierplan nur für Ausdruck'!N$49,'Turnierplan nur für Ausdruck'!Q$49))","v":"UHC PSW"}]
["2. Rang",{"$f":"IF('Turnierplan Eingabe Resultate'!P$49=\"\",\"\",IF('Turnierplan Eingabe Resultate'!P$49>'Turnierplan Eingabe Resultate'!R$49,'Turnierplan nur für Ausdruck'!Q$49,'Turnierplan nur für Ausdruck'!N$49))","v":"Black Panthers"}]
["3. Rang",{"$f":"IF('Turnierplan Eingabe Resultate'!I$49=\"\",\"\",IF('Turnierplan Eingabe Resultate'!I$49>'Turnierplan Eingabe Resultate'!K$49,'Turnierplan nur für Ausdruck'!E$49,'Turnierplan nur für Ausdruck'!H$49))","v":"btv chur unihockey 2"}]
["4. Rang",{"$f":"IF('Turnierplan Eingabe Resultate'!I$49=\"\",\"\",IF('Turnierplan Eingabe Resultate'!I$49>'Turnierplan Eingabe Resultate'!K$49,'Turnierplan nur für Ausdruck'!H$49,'Turnierplan nur für Ausdruck'!E$49))","v":"Bünzgeister"}]
["5. Rang",{"$f":"IF('Turnierplan Eingabe Resultate'!W$49=\"\",\"\",IF('Turnierplan Eingabe Resultate'!W$49>'Turnierplan Eingabe Resultate'!Y$49,'Turnierplan nur für Ausdruck'!X$49,'Turnierplan nur für Ausdruck'!AA$49))","v":"La Branche"}]
["6. Rang",{"$f":"IF('Turnierplan Eingabe Resultate'!W$49=\"\",\"\",IF('Turnierplan Eingabe Resultate'!W$49>'Turnierplan Eingabe Resultate'!Y$49,'Turnierplan nur für Ausdruck'!AA$49,'Turnierplan nur für Ausdruck'!X$49))","v":"Le Tigri 2"}]
[]
[]
[]
["Gruppe D2"]
["1. Rang",{"$f":"IF('Turnierplan Eingabe Resultate'!P$47=\"\",\"\",IF('Turnierplan Eingabe Resultate'!P$47>'Turnierplan Eingabe Resultate'!R$47,'Turnierplan nur für Ausdruck'!N$47,'Turnierplan nur für Ausdruck'!Q$47))","v":"Vindonissa Panthers"}]
["2. Rang",{"$f":"IF('Turnierplan Eingabe Resultate'!P$47=\"\",\"\",IF('Turnierplan Eingabe Resultate'!P$47>'Turnierplan Eingabe Resultate'!R$47,'Turnierplan nur für Ausdruck'!Q$47,'Turnierplan nur für Ausdruck'!N$47))","v":"Rappi Jona Flames 2"}]
["3. Rang",{"$f":"IF('Turnierplan Eingabe Resultate'!P$46=\"\",\"\",IF('Turnierplan Eingabe Resultate'!P$46>'Turnierplan Eingabe Resultate'!R$46,'Turnierplan nur für Ausdruck'!N$46,'Turnierplan nur für Ausdruck'!Q$46))","v":"Winti United 2"}]
["4. Rang",{"$f":"IF('Turnierplan Eingabe Resultate'!P$46=\"\",\"\",IF('Turnierplan Eingabe Resultate'!P$46>'Turnierplan Eingabe Resultate'!R$46,'Turnierplan nur für Ausdruck'!Q$46,'Turnierplan nur für Ausdruck'!N$46))","v":"btv chur unihockey 3"}]
["5. Rang",{"$f":"IF('AUSWERTUNG VORRUNDE'!AY56=\"\",\"\",'AUSWERTUNG VORRUNDE'!AY56)","v":"Insieme Rheintal Gators"}]

{"sheet":"Hilfstabelle","index":5,"n_rows":90,"n_cols":5,"rows_kept":90,"cut":false,"hidden":true,"merged":[]}
[]
[null,"gruppe1","gruppe2","resultat1","resultat2"]
[{"$f":"B3&\"-\"&C3","v":"10-9"},{"$f":"'Turnierplan Eingabe Resultate'!E25","v":10},{"$f":"'Turnierplan Eingabe Resultate'!G25","v":9},{"$f":"IF('Turnierplan Eingabe Resultate'!I25=\"\",\"\",'Turnierplan Eingabe Resultate'!I25)","v":3},{"$f":"IF('Turnierplan Eingabe Resultate'!K25=\"\",\"\",'Turnierplan Eingabe Resultate'!K25)","v":2}]
[{"$f":"B4&\"-\"&C4","v":"1-2"},{"$f":"'Turnierplan Eingabe Resultate'!E26","v":1},{"$f":"'Turnierplan Eingabe Resultate'!G26","v":2},{"$f":"IF('Turnierplan Eingabe Resultate'!I26=\"\",\"\",'Turnierplan Eingabe Resultate'!I26)","v":7},{"$f":"IF('Turnierplan Eingabe Resultate'!K26=\"\",\"\",'Turnierplan Eingabe Resultate'!K26)","v":2}]
["15-16",{"$f":"'Turnierplan Eingabe Resultate'!E27","v":15},{"$f":"'Turnierplan Eingabe Resultate'!G27","v":16},{"$f":"IF('Turnierplan Eingabe Resultate'!I27=\"\",\"\",'Turnierplan Eingabe Resultate'!I27)","v":5},{"$f":"IF('Turnierplan Eingabe Resultate'!K27=\"\",\"\",'Turnierplan Eingabe Resultate'!K27)","v":2}]
["13-14",{"$f":"'Turnierplan Eingabe Resultate'!E28","v":13},{"$f":"'Turnierplan Eingabe Resultate'!G28","v":14},{"$f":"IF('Turnierplan Eingabe Resultate'!I28=\"\",\"\",'Turnierplan Eingabe Resultate'!I28)","v":3},{"$f":"IF('Turnierplan Eingabe Resultate'!K28=\"\",\"\",'Turnierplan Eingabe Resultate'!K28)","v":2}]
["1-3",{"$f":"'Turnierplan Eingabe Resultate'!E29","v":1},{"$f":"'Turnierplan Eingabe Resultate'!G29","v":3},{"$f":"IF('Turnierplan Eingabe Resultate'!I29=\"\",\"\",'Turnierplan Eingabe Resultate'!I29)","v":4},{"$f":"IF('Turnierplan Eingabe Resultate'!K29=\"\",\"\",'Turnierplan Eingabe Resultate'!K29)","v":1}]
["5-7",{"$f":"'Turnierplan Eingabe Resultate'!E30","v":5},{"$f":"'Turnierplan Eingabe Resultate'!G30","v":7},{"$f":"IF('Turnierplan Eingabe Resultate'!I30=\"\",\"\",'Turnierplan Eingabe Resultate'!I30)","v":6},{"$f":"IF('Turnierplan Eingabe Resultate'!K30=\"\",\"\",'Turnierplan Eingabe Resultate'!K30)","v":4}]
["11-9",{"$f":"'Turnierplan Eingabe Resultate'!E31","v":11},{"$f":"'Turnierplan Eingabe Resultate'!G31","v":9},{"$f":"IF('Turnierplan Eingabe Resultate'!I31=\"\",\"\",'Turnierplan Eingabe Resultate'!I31)","v":2},{"$f":"IF('Turnierplan Eingabe Resultate'!K31=\"\",\"\",'Turnierplan Eingabe Resultate'!K31)","v":6}]
["15-17",{"$f":"'Turnierplan Eingabe Resultate'!E32","v":15},{"$f":"'Turnierplan Eingabe Resultate'!G32","v":17},{"$f":"IF('Turnierplan Eingabe Resultate'!I32=\"\",\"\",'Turnierplan Eingabe Resultate'!I32)","v":0},{"$f":"IF('Turnierplan Eingabe Resultate'!K32=\"\",\"\",'Turnierplan Eingabe Resultate'!K32)","v":2}]
["2-3",{"$f":"'Turnierplan Eingabe Resultate'!E33","v":2},{"$f":"'Turnierplan Eingabe Resultate'!G33","v":3},{"$f":"IF('Turnierplan Eingabe Resultate'!I33=\"\",\"\",'Turnierplan Eingabe Resultate'!I33)","v":4},{"$f":"IF('Turnierplan Eingabe Resultate'!K33=\"\",\"\",'Turnierplan Eingabe Resultate'!K33)","v":1}]
["8-5",{"$f":"'Turnierplan Eingabe Resultate'!E34","v":8},{"$f":"'Turnierplan Eingabe Resultate'!G34","v":5},{"$f":"IF('Turnierplan Eingabe Resultate'!I34=\"\",\"\",'Turnierplan Eingabe Resultate'!I34)","v":4},{"$f":"IF('Turnierplan Eingabe Resultate'!K34=\"\",\"\",'Turnierplan Eingabe Resultate'!K34)","v":2}]
["9-13",{"$f":"'Turnierplan Eingabe Resultate'!E35","v":9},{"$f":"'Turnierplan Eingabe Resultate'!G35","v":13},{"$f":"IF('Turnierplan Eingabe Resultate'!I35=\"\",\"\",'Turnierplan Eingabe Resultate'!I35)","v":2},{"$f":"IF('Turnierplan Eingabe Resultate'!K35=\"\",\"\",'Turnierplan Eingabe Resultate'!K35)","v":1}]
["15-19",{"$f":"'Turnierplan Eingabe Resultate'!E36","v":15},{"$f":"'Turnierplan Eingabe Resultate'!G36","v":19},{"$f":"IF('Turnierplan Eingabe Resultate'!I36=\"\",\"\",'Turnierplan Eingabe Resultate'!I36)","v":6},{"$f":"IF('Turnierplan Eingabe Resultate'!K36=\"\",\"\",'Turnierplan Eingabe Resultate'!K36)","v":1}]
["2-1",{"$f":"'Turnierplan Eingabe Resultate'!E37","v":2},{"$f":"'Turnierplan Eingabe Resultate'!G37","v":1},{"$f":"IF('Turnierplan Eingabe Resultate'!I37=\"\",\"\",'Turnierplan Eingabe Resultate'!I37)","v":3},{"$f":"IF('Turnierplan Eingabe Resultate'!K37=\"\",\"\",'Turnierplan Eingabe Resultate'!K37)","v":3}]
["8-7",{"$f":"'Turnierplan Eingabe Resultate'!E38","v":8},{"$f":"'Turnierplan Eingabe Resultate'!G38","v":7},{"$f":"IF('Turnierplan Eingabe Resultate'!I38=\"\",\"\",'Turnierplan Eingabe Resultate'!I38)","v":3},{"$f":"IF('Turnierplan Eingabe Resultate'!K38=\"\",\"\",'Turnierplan Eingabe Resultate'!K38)","v":2}]
["12-9",{"$f":"'Turnierplan Eingabe Resultate'!E39","v":12},{"$f":"'Turnierplan Eingabe Resultate'!G39","v":9},{"$f":"IF('Turnierplan Eingabe Resultate'!I39=\"\",\"\",'Turnierplan Eingabe Resultate'!I39)","v":2},{"$f":"IF('Turnierplan Eingabe Resultate'!K39=\"\",\"\",'Turnierplan Eingabe Resultate'!K39)","v":2}]
["18-15",{"$f":"'Turnierplan Eingabe Resultate'!E40","v":18},{"$f":"'Turnierplan Eingabe Resultate'!G40","v":15},{"$f":"IF('Turnierplan Eingabe Resultate'!I40=\"\",\"\",'Turnierplan Eingabe Resultate'!I40)","v":0},{"$f":"IF('Turnierplan Eingabe Resultate'!K40=\"\",\"\",'Turnierplan Eingabe Resultate'!K40)","v":7}]
["3-1",{"$f":"'Turnierplan Eingabe Resultate'!E42","v":3},{"$f":"'Turnierplan Eingabe Resultate'!G42","v":1},{"$f":"IF('Turnierplan Eingabe Resultate'!I42=\"\",\"\",'Turnierplan Eingabe Resultate'!I42)","v":0},{"$f":"IF('Turnierplan Eingabe Resultate'!K42=\"\",\"\",'Turnierplan Eingabe Resultate'!K42)","v":3}]
["7-5",{"$f":"'Turnierplan Eingabe Resultate'!E43","v":7},{"$f":"'Turnierplan Eingabe Resultate'!G43","v":5},{"$f":"IF('Turnierplan Eingabe Resultate'!I43=\"\",\"\",'Turnierplan Eingabe Resultate'!I43)","v":2},{"$f":"IF('Turnierplan Eingabe Resultate'!K43=\"\",\"\",'Turnierplan Eingabe Resultate'!K43)","v":3}]
["14-9",{"$f":"'Turnierplan Eingabe Resultate'!E44","v":14},{"$f":"'Turnierplan Eingabe Resultate'!G44","v":9},{"$f":"IF('Turnierplan Eingabe Resultate'!I44=\"\",\"\",'Turnierplan Eingabe Resultate'!I44)","v":2},{"$f":"IF('Turnierplan Eingabe Resultate'!K44=\"\",\"\",'Turnierplan Eingabe Resultate'!K44)","v":3}]
["20-15",{"$f":"'Turnierplan Eingabe Resultate'!E45","v":20},{"$f":"'Turnierplan Eingabe Resultate'!G45","v":15},{"$f":"IF('Turnierplan Eingabe Resultate'!I45=\"\",\"\",'Turnierplan Eingabe Resultate'!I45)","v":2},{"$f":"IF('Turnierplan Eingabe Resultate'!K45=\"\",\"\",'Turnierplan Eingabe Resultate'!K45)","v":3}]
["3-2",{"$f":"'Turnierplan Eingabe Resultate'!E46","v":3},{"$f":"'Turnierplan Eingabe Resultate'!G46","v":2},{"$f":"IF('Turnierplan Eingabe Resultate'!I46=\"\",\"\",'Turnierplan Eingabe Resultate'!I46)","v":1},{"$f":"IF('Turnierplan Eingabe Resultate'!K46=\"\",\"\",'Turnierplan Eingabe Resultate'!K46)","v":3}]
["5-8",{"$f":"'Turnierplan Eingabe Resultate'!E47","v":5},{"$f":"'Turnierplan Eingabe Resultate'!G47","v":8},{"$f":"IF('Turnierplan Eingabe Resultate'!I47=\"\",\"\",'Turnierplan Eingabe Resultate'!I47)","v":2},{"$f":"IF('Turnierplan Eingabe Resultate'!K47=\"\",\"\",'Turnierplan Eingabe Resultate'!K47)","v":3}]
["3.C-4.C",{"$f":"'Turnierplan Eingabe Resultate'!E48","v":"3.C"},{"$f":"'Turnierplan Eingabe Resultate'!G48","v":"4.C"},{"$f":"IF('Turnierplan Eingabe Resultate'!I48=\"\",\"\",'Turnierplan Eingabe Resultate'!I48)","v":1},{"$f":"IF('Turnierplan Eingabe Resultate'!K48=\"\",\"\",'Turnierplan Eingabe Resultate'!K48)","v":2}]
["3.D1-4.D1",{"$f":"'Turnierplan Eingabe Resultate'!E49","v":"3.D1"},{"$f":"'Turnierplan Eingabe Resultate'!G49","v":"4.D1"},{"$f":"IF('Turnierplan Eingabe Resultate'!I49=\"\",\"\",'Turnierplan Eingabe Resultate'!I49)","v":3},{"$f":"IF('Turnierplan Eingabe Resultate'!K49=\"\",\"\",'Turnierplan Eingabe Resultate'!K49)","v":2}]
["0-0",{"$f":"'Turnierplan Eingabe Resultate'!E50","v":0},{"$f":"'Turnierplan Eingabe Resultate'!G50","v":0},{"$f":"IF('Turnierplan Eingabe Resultate'!I50=\"\",\"\",'Turnierplan Eingabe Resultate'!I50)","v":""},{"$f":"IF('Turnierplan Eingabe Resultate'!K50=\"\",\"\",'Turnierplan Eingabe Resultate'!K50)","v":""}]
["0-0",{"$f":"'Turnierplan Eingabe Resultate'!E51","v":0},{"$f":"'Turnierplan Eingabe Resultate'!G51","v":0},{"$f":"IF('Turnierplan Eingabe Resultate'!I51=\"\",\"\",'Turnierplan Eingabe Resultate'!I51)","v":""},{"$f":"IF('Turnierplan Eingabe Resultate'!K51=\"\",\"\",'Turnierplan Eingabe Resultate'!K51)","v":""}]
["0-0",{"$f":"'Turnierplan Eingabe Resultate'!E52","v":0},{"$f":"'Turnierplan Eingabe Resultate'!G52","v":0},{"$f":"IF('Turnierplan Eingabe Resultate'!I52=\"\",\"\",'Turnierplan Eingabe Resultate'!I52)","v":""},{"$f":"IF('Turnierplan Eingabe Resultate'!K52=\"\",\"\",'Turnierplan Eingabe Resultate'!K52)","v":""}]
["0-0",{"$f":"'Turnierplan Eingabe Resultate'!E53","v":0},{"$f":"'Turnierplan Eingabe Resultate'!G53","v":0},{"$f":"IF('Turnierplan Eingabe Resultate'!I53=\"\",\"\",'Turnierplan Eingabe Resultate'!I53)","v":""},{"$f":"IF('Turnierplan Eingabe Resultate'!K53=\"\",\"\",'Turnierplan Eingabe Resultate'!K53)","v":""}]
["11-12",{"$f":"'Turnierplan Eingabe Resultate'!L25","v":11},{"$f":"'Turnierplan Eingabe Resultate'!N25","v":12},{"$f":"IF('Turnierplan Eingabe Resultate'!P25=\"\",\"\",'Turnierplan Eingabe Resultate'!P25)","v":1},{"$f":"IF('Turnierplan Eingabe Resultate'!R25=\"\",\"\",'Turnierplan Eingabe Resultate'!R25)","v":9}]
["3-4",{"$f":"'Turnierplan Eingabe Resultate'!L26","v":3},{"$f":"'Turnierplan Eingabe Resultate'!N26","v":4},{"$f":"IF('Turnierplan Eingabe Resultate'!P26=\"\",\"\",'Turnierplan Eingabe Resultate'!P26)","v":1},{"$f":"IF('Turnierplan Eingabe Resultate'!R26=\"\",\"\",'Turnierplan Eingabe Resultate'!R26)","v":4}]
["17-18",{"$f":"'Turnierplan Eingabe Resultate'!L27","v":17},{"$f":"'Turnierplan Eingabe Resultate'!N27","v":18},{"$f":"IF('Turnierplan Eingabe Resultate'!P27=\"\",\"\",'Turnierplan Eingabe Resultate'!P27)","v":1},{"$f":"IF('Turnierplan Eingabe Resultate'!R27=\"\",\"\",'Turnierplan Eingabe Resultate'!R27)","v":3}]
["19-20",{"$f":"'Turnierplan Eingabe Resultate'!L28","v":19},{"$f":"'Turnierplan Eingabe Resultate'!N28","v":20},{"$f":"IF('Turnierplan Eingabe Resultate'!P28=\"\",\"\",'Turnierplan Eingabe Resultate'!P28)","v":1},{"$f":"IF('Turnierplan Eingabe Resultate'!R28=\"\",\"\",'Turnierplan Eingabe Resultate'!R28)","v":5}]
["2-4",{"$f":"'Turnierplan Eingabe Resultate'!L29","v":2},{"$f":"'Turnierplan Eingabe Resultate'!N29","v":4},{"$f":"IF('Turnierplan Eingabe Resultate'!P29=\"\",\"\",'Turnierplan Eingabe Resultate'!P29)","v":3},{"$f":"IF('Turnierplan Eingabe Resultate'!R29=\"\",\"\",'Turnierplan Eingabe Resultate'!R29)","v":2}]
["6-8",{"$f":"'Turnierplan Eingabe Resultate'!L30","v":6},{"$f":"'Turnierplan Eingabe Resultate'!N30","v":8},{"$f":"IF('Turnierplan Eingabe Resultate'!P30=\"\",\"\",'Turnierplan Eingabe Resultate'!P30)","v":0},{"$f":"IF('Turnierplan Eingabe Resultate'!R30=\"\",\"\",'Turnierplan Eingabe Resultate'!R30)","v":8}]
["10-13",{"$f":"'Turnierplan Eingabe Resultate'!L31","v":10},{"$f":"'Turnierplan Eingabe Resultate'!N31","v":13},{"$f":"IF('Turnierplan Eingabe Resultate'!P31=\"\",\"\",'Turnierplan Eingabe Resultate'!P31)","v":0},{"$f":"IF('Turnierplan Eingabe Resultate'!R31=\"\",\"\",'Turnierplan Eingabe Resultate'!R31)","v":4}]
["16-19",{"$f":"'Turnierplan Eingabe Resultate'!L32","v":16},{"$f":"'Turnierplan Eingabe Resultate'!N32","v":19},{"$f":"IF('Turnierplan Eingabe Resultate'!P32=\"\",\"\",'Turnierplan Eingabe Resultate'!P32)","v":6},{"$f":"IF('Turnierplan Eingabe Resultate'!R32=\"\",\"\",'Turnierplan Eingabe Resultate'!R32)","v":0}]
["4-1",{"$f":"'Turnierplan Eingabe Resultate'!L33","v":4},{"$f":"'Turnierplan Eingabe Resultate'!N33","v":1},{"$f":"IF('Turnierplan Eingabe Resultate'!P33=\"\",\"\",'Turnierplan Eingabe Resultate'!P33)","v":3},{"$f":"IF('Turnierplan Eingabe Resultate'!R33=\"\",\"\",'Turnierplan Eingabe Resultate'!R33)","v":3}]
["6-7",{"$f":"'Turnierplan Eingabe Resultate'!L34","v":6},{"$f":"'Turnierplan Eingabe Resultate'!N34","v":7},{"$f":"IF('Turnierplan Eingabe Resultate'!P34=\"\",\"\",'Turnierplan Eingabe Resultate'!P34)","v":5},{"$f":"IF('Turnierplan Eingabe Resultate'!R34=\"\",\"\",'Turnierplan Eingabe Resultate'!R34)","v":2}]
["10-12",{"$f":"'Turnierplan Eingabe Resultate'!L35","v":10},{"$f":"'Turnierplan Eingabe Resultate'!N35","v":12},{"$f":"IF('Turnierplan Eingabe Resultate'!P35=\"\",\"\",'Turnierplan Eingabe Resultate'!P35)","v":3},{"$f":"IF('Turnierplan Eingabe Resultate'!R35=\"\",\"\",'Turnierplan Eingabe Resultate'!R35)","v":2}]
["16-18",{"$f":"'Turnierplan Eingabe Resultate'!L36","v":16},{"$f":"'Turnierplan Eingabe Resultate'!N36","v":18},{"$f":"IF('Turnierplan Eingabe Resultate'!P36=\"\",\"\",'Turnierplan Eingabe Resultate'!P36)","v":1},{"$f":"IF('Turnierplan Eingabe Resultate'!R36=\"\",\"\",'Turnierplan Eingabe Resultate'!R36)","v":1}]
["4-3",{"$f":"'Turnierplan Eingabe Resultate'!L37","v":4},{"$f":"'Turnierplan Eingabe Resultate'!N37","v":3},{"$f":"IF('Turnierplan Eingabe Resultate'!P37=\"\",\"\",'Turnierplan Eingabe Resultate'!P37)","v":5},{"$f":"IF('Turnierplan Eingabe Resultate'!R37=\"\",\"\",'Turnierplan Eingabe Resultate'!R37)","v":0}]
["6-5",{"$f":"'Turnierplan Eingabe Resultate'!L38","v":6},{"$f":"'Turnierplan Eingabe Resultate'!N38","v":5},{"$f":"IF('Turnierplan Eingabe Resultate'!P38=\"\",\"\",'Turnierplan Eingabe Resultate'!P38)","v":2},{"$f":"IF('Turnierplan Eingabe Resultate'!R38=\"\",\"\",'Turnierplan Eingabe Resultate'!R38)","v":1}]
["14-10",{"$f":"'Turnierplan Eingabe Resultate'!L39","v":14},{"$f":"'Turnierplan Eingabe Resultate'!N39","v":10},{"$f":"IF('Turnierplan Eingabe Resultate'!P39=\"\",\"\",'Turnierplan Eingabe Resultate'!P39)","v":1},{"$f":"IF('Turnierplan Eingabe Resultate'!R39=\"\",\"\",'Turnierplan Eingabe Resultate'!R39)","v":4}]
["20-16",{"$f":"'Turnierplan Eingabe Resultate'!L40","v":20},{"$f":"'Turnierplan Eingabe Resultate'!N40","v":16},{"$f":"IF('Turnierplan Eingabe Resultate'!P40=\"\",\"\",'Turnierplan Eingabe Resultate'!P40)","v":2},{"$f":"IF('Turnierplan Eingabe Resultate'!R40=\"\",\"\",'Turnierplan Eingabe Resultate'!R40)","v":6}]
["4-2",{"$f":"'Turnierplan Eingabe Resultate'!L42","v":4},{"$f":"'Turnierplan Eingabe Resultate'!N42","v":2},{"$f":"IF('Turnierplan Eingabe Resultate'!P42=\"\",\"\",'Turnierplan Eingabe Resultate'!P42)","v":4},{"$f":"IF('Turnierplan Eingabe Resultate'!R42=\"\",\"\",'Turnierplan Eingabe Resultate'!R42)","v":3}]
["8-6",{"$f":"'Turnierplan Eingabe Resultate'!L43","v":8},{"$f":"'Turnierplan Eingabe Resultate'!N43","v":6},{"$f":"IF('Turnierplan Eingabe Resultate'!P43=\"\",\"\",'Turnierplan Eingabe Resultate'!P43)","v":4},{"$f":"IF('Turnierplan Eingabe Resultate'!R43=\"\",\"\",'Turnierplan Eingabe Resultate'!R43)","v":2}]
["10-11",{"$f":"'Turnierplan Eingabe Resultate'!L44","v":10},{"$f":"'Turnierplan Eingabe Resultate'!N44","v":11},{"$f":"IF('Turnierplan Eingabe Resultate'!P44=\"\",\"\",'Turnierplan Eingabe Resultate'!P44)","v":5},{"$f":"IF('Turnierplan Eingabe Resultate'!R44=\"\",\"\",'Turnierplan Eingabe Resultate'!R44)","v":0}]
["16-17",{"$f":"'Turnierplan Eingabe Resultate'!L45","v":16},{"$f":"'Turnierplan Eingabe Resultate'!N45","v":17},{"$f":"IF('Turnierplan Eingabe Resultate'!P45=\"\",\"\",'Turnierplan Eingabe Resultate'!P45)","v":1},{"$f":"IF('Turnierplan Eingabe Resultate'!R45=\"\",\"\",'Turnierplan Eingabe Resultate'!R45)","v":3}]
["3.D2-4.D2",{"$f":"'Turnierplan Eingabe Resultate'!L46","v":"3.D2"},{"$f":"'Turnierplan Eingabe Resultate'!N46","v":"4.D2"},{"$f":"IF('Turnierplan Eingabe Resultate'!P46=\"\",\"\",'Turnierplan Eingabe Resultate'!P46)","v":0},{"$f":"IF('Turnierplan Eingabe Resultate'!R46=\"\",\"\",'Turnierplan Eingabe Resultate'!R46)","v":1}]
["1.D2-2.D2",{"$f":"'Turnierplan Eingabe Resultate'!L47","v":"1.D2"},{"$f":"'Turnierplan Eingabe Resultate'!N47","v":"2.D2"},{"$f":"IF('Turnierplan Eingabe Resultate'!P47=\"\",\"\",'Turnierplan Eingabe Resultate'!P47)","v":4},{"$f":"IF('Turnierplan Eingabe Resultate'!R47=\"\",\"\",'Turnierplan Eingabe Resultate'!R47)","v":0}]
["1.C-2.C",{"$f":"'Turnierplan Eingabe Resultate'!L48","v":"1.C"},{"$f":"'Turnierplan Eingabe Resultate'!N48","v":"2.C"},{"$f":"IF('Turnierplan Eingabe Resultate'!P48=\"\",\"\",'Turnierplan Eingabe Resultate'!P48)","v":4},{"$f":"IF('Turnierplan Eingabe Resultate'!R48=\"\",\"\",'Turnierplan Eingabe Resultate'!R48)","v":0}]
["1.D1-2.D1",{"$f":"'Turnierplan Eingabe Resultate'!L49","v":"1.D1"},{"$f":"'Turnierplan Eingabe Resultate'!N49","v":"2.D1"},{"$f":"IF('Turnierplan Eingabe Resultate'!P49=\"\",\"\",'Turnierplan Eingabe Resultate'!P49)","v":0},{"$f":"IF('Turnierplan Eingabe Resultate'!R49=\"\",\"\",'Turnierplan Eingabe Resultate'!R49)","v":1}]
["0-0",{"$f":"'Turnierplan Eingabe Resultate'!L50","v":0},{"$f":"'Turnierplan Eingabe Resultate'!N50","v":0},{"$f":"IF('Turnierplan Eingabe Resultate'!P50=\"\",\"\",'Turnierplan Eingabe Resultate'!P50)","v":""},{"$f":"IF('Turnierplan Eingabe Resultate'!R50=\"\",\"\",'Turnierplan Eingabe Resultate'!R50)","v":""}]
["0-0",{"$f":"'Turnierplan Eingabe Resultate'!L51","v":0},{"$f":"'Turnierplan Eingabe Resultate'!N51","v":0},{"$f":"IF('Turnierplan Eingabe Resultate'!P51=\"\",\"\",'Turnierplan Eingabe Resultate'!P51)","v":""},{"$f":"IF('Turnierplan Eingabe Resultate'!R51=\"\",\"\",'Turnierplan Eingabe Resultate'!R51)","v":""}]
["0-0",{"$f":"'Turnierplan Eingabe Resultate'!L52","v":0},{"$f":"'Turnierplan Eingabe Resultate'!N52","v":0},{"$f":"IF('Turnierplan Eingabe Resultate'!P52=\"\",\"\",'Turnierplan Eingabe Resultate'!P52)","v":""},{"$f":"IF('Turnierplan Eingabe Resultate'!R52=\"\",\"\",'Turnierplan Eingabe Resultate'!R52)","v":""}]
["0-0",{"$f":"'Turnierplan Eingabe Resultate'!L53","v":0},{"$f":"'Turnierplan Eingabe Resultate'!N53","v":0},{"$f":"IF('Turnierplan Eingabe Resultate'!P53=\"\",\"\",'Turnierplan Eingabe Resultate'!P53)","v":""},{"$f":"IF('Turnierplan Eingabe Resultate'!R53=\"\",\"\",'Turnierplan Eingabe Resultate'!R53)","v":""}]
["21-22",{"$f":"'Turnierplan Eingabe Resultate'!S25","v":21},{"$f":"'Turnierplan Eingabe Resultate'!U25","v":22},{"$f":"IF('Turnierplan Eingabe Resultate'!W25=\"\",\"\",'Turnierplan Eingabe Resultate'!W25)","v":2},{"$f":"IF('Turnierplan Eingabe Resultate'!Y25=\"\",\"\",'Turnierplan Eingabe Resultate'!Y25)","v":2}]
["23-24",{"$f":"'Turnierplan Eingabe Resultate'!S26","v":23},{"$f":"'Turnierplan Eingabe Resultate'!U26","v":24},{"$f":"IF('Turnierplan Eingabe Resultate'!W26=\"\",\"\",'Turnierplan Eingabe Resultate'!W26)","v":3},{"$f":"IF('Turnierplan Eingabe Resultate'!Y26=\"\",\"\",'Turnierplan Eingabe Resultate'!Y26)","v":0}]
["7-8",{"$f":"'Turnierplan Eingabe Resultate'!S27","v":7},{"$f":"'Turnierplan Eingabe Resultate'!U27","v":8},{"$f":"IF('Turnierplan Eingabe Resultate'!W27=\"\",\"\",'Turnierplan Eingabe Resultate'!W27)","v":2},{"$f":"IF('Turnierplan Eingabe Resultate'!Y27=\"\",\"\",'Turnierplan Eingabe Resultate'!Y27)","v":5}]
["5-6",{"$f":"'Turnierplan Eingabe Resultate'!S28","v":5},{"$f":"'Turnierplan Eingabe Resultate'!U28","v":6},{"$f":"IF('Turnierplan Eingabe Resultate'!W28=\"\",\"\",'Turnierplan Eingabe Resultate'!W28)","v":2},{"$f":"IF('Turnierplan Eingabe Resultate'!Y28=\"\",\"\",'Turnierplan Eingabe Resultate'!Y28)","v":3}]
["25-21",{"$f":"'Turnierplan Eingabe Resultate'!S29","v":25},{"$f":"'Turnierplan Eingabe Resultate'!U29","v":21},{"$f":"IF('Turnierplan Eingabe Resultate'!W29=\"\",\"\",'Turnierplan Eingabe Resultate'!W29)","v":3},{"$f":"IF('Turnierplan Eingabe Resultate'!Y29=\"\",\"\",'Turnierplan Eingabe Resultate'!Y29)","v":1}]
["22-23",{"$f":"'Turnierplan Eingabe Resultate'!S30","v":22},{"$f":"'Turnierplan Eingabe Resultate'!U30","v":23},{"$f":"IF('Turnierplan Eingabe Resultate'!W30=\"\",\"\",'Turnierplan Eingabe Resultate'!W30)","v":2},{"$f":"IF('Turnierplan Eingabe Resultate'!Y30=\"\",\"\",'Turnierplan Eingabe Resultate'!Y30)","v":2}]
["12-14",{"$f":"'Turnierplan Eingabe Resultate'!S31","v":12},{"$f":"'Turnierplan Eingabe Resultate'!U31","v":14},{"$f":"IF('Turnierplan Eingabe Resultate'!W31=\"\",\"\",'Turnierplan Eingabe Resultate'!W31)","v":4},{"$f":"IF('Turnierplan Eingabe Resultate'!Y31=\"\",\"\",'Turnierplan Eingabe Resultate'!Y31)","v":3}]
["18-20",{"$f":"'Turnierplan Eingabe Resultate'!S32","v":18},{"$f":"'Turnierplan Eingabe Resultate'!U32","v":20},{"$f":"IF('Turnierplan Eingabe Resultate'!W32=\"\",\"\",'Turnierplan Eingabe Resultate'!W32)","v":4},{"$f":"IF('Turnierplan Eingabe Resultate'!Y32=\"\",\"\",'Turnierplan Eingabe Resultate'!Y32)","v":5}]
["24-25",{"$f":"'Turnierplan Eingabe Resultate'!S33","v":24},{"$f":"'Turnierplan Eingabe Resultate'!U33","v":25},{"$f":"IF('Turnierplan Eingabe Resultate'!W33=\"\",\"\",'Turnierplan Eingabe Resultate'!W33)","v":2},{"$f":"IF('Turnierplan Eingabe Resultate'!Y33=\"\",\"\",'Turnierplan Eingabe Resultate'!Y33)","v":2}]
[{"$f":"B68&\"-\"&C68","v":"21-23"},{"$f":"'Turnierplan Eingabe Resultate'!S34","v":21},{"$f":"'Turnierplan Eingabe Resultate'!U34","v":23},{"$f":"IF('Turnierplan Eingabe Resultate'!W34=\"\",\"\",'Turnierplan Eingabe Resultate'!W34)","v":1},{"$f":"IF('Turnierplan Eingabe Resultate'!Y34=\"\",\"\",'Turnierplan Eingabe Resultate'!Y34)","v":6}]
["14-11",{"$f":"'Turnierplan Eingabe Resultate'!S35","v":14},{"$f":"'Turnierplan Eingabe Resultate'!U35","v":11},{"$f":"IF('Turnierplan Eingabe Resultate'!W35=\"\",\"\",'Turnierplan Eingabe Resultate'!W35)","v":8},{"$f":"IF('Turnierplan Eingabe Resultate'!Y35=\"\",\"\",'Turnierplan Eingabe Resultate'!Y35)","v":1}]
["20-17",{"$f":"'Turnierplan Eingabe Resultate'!S36","v":20},{"$f":"'Turnierplan Eingabe Resultate'!U36","v":17},{"$f":"IF('Turnierplan Eingabe Resultate'!W36=\"\",\"\",'Turnierplan Eingabe Resultate'!W36)","v":1},{"$f":"IF('Turnierplan Eingabe Resultate'!Y36=\"\",\"\",'Turnierplan Eingabe Resultate'!Y36)","v":6}]
["22-24",{"$f":"'Turnierplan Eingabe Resultate'!S37","v":22},{"$f":"'Turnierplan Eingabe Resultate'!U37","v":24},{"$f":"IF('Turnierplan Eingabe Resultate'!W37=\"\",\"\",'Turnierplan Eingabe Resultate'!W37)","v":2},{"$f":"IF('Turnierplan Eingabe Resultate'!Y37=\"\",\"\",'Turnierplan Eingabe Resultate'!Y37)","v":3}]
["23-25",{"$f":"'Turnierplan Eingabe Resultate'!S38","v":23},{"$f":"'Turnierplan Eingabe Resultate'!U38","v":25},{"$f":"IF('Turnierplan Eingabe Resultate'!W38=\"\",\"\",'Turnierplan Eingabe Resultate'!W38)","v":3},{"$f":"IF('Turnierplan Eingabe Resultate'!Y38=\"\",\"\",'Turnierplan Eingabe Resultate'!Y38)","v":3}]
["11-13",{"$f":"'Turnierplan Eingabe Resultate'!S39","v":11},{"$f":"'Turnierplan Eingabe Resultate'!U39","v":13},{"$f":"IF('Turnierplan Eingabe Resultate'!W39=\"\",\"\",'Turnierplan Eingabe Resultate'!W39)","v":0},{"$f":"IF('Turnierplan Eingabe Resultate'!Y39=\"\",\"\",'Turnierplan Eingabe Resultate'!Y39)","v":6}]
["17-19",{"$f":"'Turnierplan Eingabe Resultate'!S40","v":17},{"$f":"'Turnierplan Eingabe Resultate'!U40","v":19},{"$f":"IF('Turnierplan Eingabe Resultate'!W40=\"\",\"\",'Turnierplan Eingabe Resultate'!W40)","v":5},{"$f":"IF('Turnierplan Eingabe Resultate'!Y40=\"\",\"\",'Turnierplan Eingabe Resultate'!Y40)","v":0}]
["24-21",{"$f":"'Turnierplan Eingabe Resultate'!S42","v":24},{"$f":"'Turnierplan Eingabe Resultate'!U42","v":21},{"$f":"IF('Turnierplan Eingabe Resultate'!W42=\"\",\"\",'Turnierplan Eingabe Resultate'!W42)","v":4},{"$f":"IF('Turnierplan Eingabe Resultate'!Y42=\"\",\"\",'Turnierplan Eingabe Resultate'!Y42)","v":0}]
["25-22",{"$f":"'Turnierplan Eingabe Resultate'!S43","v":25},{"$f":"'Turnierplan Eingabe Resultate'!U43","v":22},{"$f":"IF('Turnierplan Eingabe Resultate'!W43=\"\",\"\",'Turnierplan Eingabe Resultate'!W43)","v":1},{"$f":"IF('Turnierplan Eingabe Resultate'!Y43=\"\",\"\",'Turnierplan Eingabe Resultate'!Y43)","v":6}]
["13-12",{"$f":"'Turnierplan Eingabe Resultate'!S44","v":13},{"$f":"'Turnierplan Eingabe Resultate'!U44","v":12},{"$f":"IF('Turnierplan Eingabe Resultate'!W44=\"\",\"\",'Turnierplan Eingabe Resultate'!W44)","v":3},{"$f":"IF('Turnierplan Eingabe Resultate'!Y44=\"\",\"\",'Turnierplan Eingabe Resultate'!Y44)","v":5}]
["19-18",{"$f":"'Turnierplan Eingabe Resultate'!S45","v":19},{"$f":"'Turnierplan Eingabe Resultate'!U45","v":18},{"$f":"IF('Turnierplan Eingabe Resultate'!W45=\"\",\"\",'Turnierplan Eingabe Resultate'!W45)","v":2},{"$f":"IF('Turnierplan Eingabe Resultate'!Y45=\"\",\"\",'Turnierplan Eingabe Resultate'!Y45)","v":5}]
["1-4",{"$f":"'Turnierplan Eingabe Resultate'!S46","v":1},{"$f":"'Turnierplan Eingabe Resultate'!U46","v":4},{"$f":"IF('Turnierplan Eingabe Resultate'!W46=\"\",\"\",'Turnierplan Eingabe Resultate'!W46)","v":4},{"$f":"IF('Turnierplan Eingabe Resultate'!Y46=\"\",\"\",'Turnierplan Eingabe Resultate'!Y46)","v":2}]
["7-6",{"$f":"'Turnierplan Eingabe Resultate'!S47","v":7},{"$f":"'Turnierplan Eingabe Resultate'!U47","v":6},{"$f":"IF('Turnierplan Eingabe Resultate'!W47=\"\",\"\",'Turnierplan Eingabe Resultate'!W47)","v":0},{"$f":"IF('Turnierplan Eingabe Resultate'!Y47=\"\",\"\",'Turnierplan Eingabe Resultate'!Y47)","v":6}]
["5.C-6.C",{"$f":"'Turnierplan Eingabe Resultate'!S48","v":"5.C"},{"$f":"'Turnierplan Eingabe Resultate'!U48","v":"6.C"},{"$f":"IF('Turnierplan Eingabe Resultate'!W48=\"\",\"\",'Turnierplan Eingabe Resultate'!W48)","v":2},{"$f":"IF('Turnierplan Eingabe Resultate'!Y48=\"\",\"\",'Turnierplan Eingabe Resultate'!Y48)","v":3}]
["5.D1-6.D1",{"$f":"'Turnierplan Eingabe Resultate'!S49","v":"5.D1"},{"$f":"'Turnierplan Eingabe Resultate'!U49","v":"6.D1"},{"$f":"IF('Turnierplan Eingabe Resultate'!W49=\"\",\"\",'Turnierplan Eingabe Resultate'!W49)","v":4},{"$f":"IF('Turnierplan Eingabe Resultate'!Y49=\"\",\"\",'Turnierplan Eingabe Resultate'!Y49)","v":3}]
["0-0",{"$f":"'Turnierplan Eingabe Resultate'!S50","v":0},{"$f":"'Turnierplan Eingabe Resultate'!U50","v":0},{"$f":"IF('Turnierplan Eingabe Resultate'!W50=\"\",\"\",'Turnierplan Eingabe Resultate'!W50)","v":""},{"$f":"IF('Turnierplan Eingabe Resultate'!Y50=\"\",\"\",'Turnierplan Eingabe Resultate'!Y50)","v":""}]
["0-0",{"$f":"'Turnierplan Eingabe Resultate'!S51","v":0},{"$f":"'Turnierplan Eingabe Resultate'!U51","v":0},{"$f":"IF('Turnierplan Eingabe Resultate'!W51=\"\",\"\",'Turnierplan Eingabe Resultate'!W51)","v":""},{"$f":"IF('Turnierplan Eingabe Resultate'!Y51=\"\",\"\",'Turnierplan Eingabe Resultate'!Y51)","v":""}]
["0-0",{"$f":"'Turnierplan Eingabe Resultate'!S52","v":0},{"$f":"'Turnierplan Eingabe Resultate'!U52","v":0},{"$f":"IF('Turnierplan Eingabe Resultate'!W52=\"\",\"\",'Turnierplan Eingabe Resultate'!W52)","v":""},{"$f":"IF('Turnierplan Eingabe Resultate'!Y52=\"\",\"\",'Turnierplan Eingabe Resultate'!Y52)","v":""}]
["0-0",{"$f":"'Turnierplan Eingabe Resultate'!S53","v":0},{"$f":"'Turnierplan Eingabe Resultate'!U53","v":0},{"$f":"IF('Turnierplan Eingabe Resultate'!W53=\"\",\"\",'Turnierplan Eingabe Resultate'!W53)","v":""},{"$f":"IF('Turnierplan Eingabe Resultate'!Y53=\"\",\"\",'Turnierplan Eingabe Resultate'!Y53)","v":""}]
["0-0",{"$f":"'Turnierplan Eingabe Resultate'!S54","v":0},{"$f":"'Turnierplan Eingabe Resultate'!U54","v":0},{"$f":"IF('Turnierplan Eingabe Resultate'!W54=\"\",\"\",'Turnierplan Eingabe Resultate'!W54)","v":""},{"$f":"IF('Turnierplan Eingabe Resultate'!Y54=\"\",\"\",'Turnierplan Eingabe Resultate'!Y54)","v":""}]
["0-0",{"$f":"'Turnierplan Eingabe Resultate'!S55","v":0},{"$f":"'Turnierplan Eingabe Resultate'!U55","v":0},{"$f":"IF('Turnierplan Eingabe Resultate'!W55=\"\",\"\",'Turnierplan Eingabe Resultate'!W55)","v":""},{"$f":"IF('Turnierplan Eingabe Resultate'!Y55=\"\",\"\",'Turnierplan Eingabe Resultate'!Y55)","v":""}]
["0-0",{"$f":"'Turnierplan Eingabe Resultate'!S56","v":0},{"$f":"'Turnierplan Eingabe Resultate'!U56","v":0},{"$f":"IF('Turnierplan Eingabe Resultate'!W56=\"\",\"\",'Turnierplan Eingabe Resultate'!W56)","v":""},{"$f":"IF('Turnierplan Eingabe Resultate'!Y56=\"\",\"\",'Turnierplan Eingabe Resultate'!Y56)","v":""}]
["0-0",{"$f":"'Turnierplan Eingabe Resultate'!S57","v":0},{"$f":"'Turnierplan Eingabe Resultate'!U57","v":0},{"$f":"IF('Turnierplan Eingabe Resultate'!W57=\"\",\"\",'Turnierplan Eingabe Resultate'!W57)","v":""},{"$f":"IF('Turnierplan Eingabe Resultate'!Y57=\"\",\"\",'Turnierplan Eingabe Resultate'!Y57)","v":""}]